Workbook

Sheet Title Page
B8: Final Standardised Metering Pricing Model
B10: Version | C10: 1.02
B11: Date | C11: 2022-01-14
B14: Status
B16: Notes:
B17: Current model version contains test data.
C19: Locked Sheets Pwd:
B25: Version Summary
B27: Date | C27: Version | D27: Author | E27: Changes
B29: 2022-01-14 | C29: 1.02 | D29: AER | E29: Updates following consultation
B30: 2021-10-25 | C30: 1 | D30: AER | E30: Consultation version (contains anonymised input data)

Sheet AER Changelog
B2: Worksheet | C2: Cells | D2: Description of change
B3: Throughout workbook | D3: Added cost basis labelling
B4: Inputs | General | C4: C28:N29 | D4: Added historical inflation for escalation of inputs
B5: Inputs | General | C5: C30:N30 | D5: Added labour cost escalators
B6: Inputs | Exit Fees | C6: C9:N21 | D6: Updated inputs from RAB to reflect use of net capex, use of real regulatory depreciation and escalation to nominal, and closing balance to better represent data.
B7: Inputs | Exit Fees | C7: G31:G35 | D7: Updated 2025–26 meter exit fees
B8: Inputs | Exit Fees | C8: J51:J65 | D8: Updated cost basis
B9: Inputs | Exit Fees | C9: L52:L53 | D9: Updated meter labour costs
B10: Inputs | Exit Fees | C10: F93:G93 | D10: Updated administration hourly rate to be the draft decision ANS 2026-31 price
B11: Calc | Exit Fees | C11: K46:O55 | D11: Added CPI and labour escalations to calculations
B12: Calc | Exit Fees | C12: K77:O88 | D12: Updated calculation to consistently refer to closing balances
B13: Calc | Exit Fees | C13: K109:O109 | D13: Updated calculations to refer to closing balances
B14: Calc | Exit Fees | C14: F117:K117 | D14: Updated year labelling
B15: Calc | Exit Fees | C15: G121:K139 | D15: Added escalation of admin costs

Sheet Inputs | General
B1: ='Title Page'!B8&" v"&'Title Page'!$C$10 -> Final Standardised Metering Pricing Model v1.02 | V1: Worksheet check: | W1: =IF(COUNTA($X$14:$X$50)=COUNTIF($X14:$X51,"OK"),"OK","Check") -> OK
B2: =MID(CELL("filename",A1),FIND("]",CELL("filename",A1))+1,255) -> Inputs | General | I2: Key: | J2: Input | K2: External Link | M2: Internal Link | O2: Draft Decision | P2: Revised proposal
B5: 1. Inputs - General
C7: Inputs | D7: Source | E7: Input Format | G7: Value
C8: NSP name | D8: NSP | G8: AusNet
C9: Decision stage | D9: NSP | G9: revised proposal
C11: Forecast regulatory control period, first year | D11: NSP | E11: YYYY-YY | G11: 2026-27
C12: Forecast regulatory control period, last year | D12: NSP | G12: =LEFT(FPFirstYear,4)+4&"-"&RIGHT(FPFirstYear,2)+4 -> 2030-31
C14: Regulatory Period Length, Yrs | G14: =LEFT(G12,4)-LEFT(FPFirstYear,4)+1 -> 5
C16: Model Used For (Price Cap or Vic Exit Fees?) | G16: Exit Fees (Vic)
B21: =LEFT('Inputs | General'!B5,1)+1&". Linked Inputs - Inflation" -> 2. Linked Inputs - Inflation
I24: Base year | J24: Regulatory period
C25: Year | E25: Units | G25: 2023-24 | H25: 2024-25 | I25: =LEFT(J25,4)-1&"-"&RIGHT(J25,2)-1 -> 2025-26 | J25: =FPFirstYear -> 2026-27 | K25: =LEFT(J25,4)+1&"-"&RIGHT(J25,2)+1 -> 2027-28 | L25: =LEFT(K25,4)+1&"-"&RIGHT(K25,2)+1 -> 2028-29 | M25: 2029-30 | N25: 2030-31
C26: Inflation Assumption (CPI % increase) | E26: % | J26: 0.02599975634 | K26: 0.02599975634 | L26: 0.02599975634 | M26: 0.02599975634 | N26: 0.02599975634
C27: Cumulative Inflation Index (CPI end period) | E27: Index | I27: 1 | J27: =I27*(1+J26) -> 1.025999756 | K27: =J27*(1+K26) -> 1.0526755 | L27: =K27*(1+L26) -> 1.080044806 | M27: =L27*(1+M26) -> 1.108125708 | N27: =M27*(1+N26) -> 1.136936707
C28: Historical inflation | H28: 0.0242468773 | I28: 0.033 | J28: =J26 -> 0.02599975634 | K28: =K26 -> 0.02599975634 | L28: =L26 -> 0.02599975634 | M28: 0.02599975634 | N28: 0.02599975634
C29: Cumulative Inflation index $2023–24 to nominal | G29: 1 | H29: =G29*(1+H28) -> 1.024246877 | I29: =H29*(1+I28) -> 1.058047024 | J29: 1.085555989 | K29: 1.11378018 | L29: 1.142738194 | M29: 1.172449108 | N29: 1.202932499
C30: Labour escalator | H30: ='[2]Input| Prices'!K$43 -> 0.01448038264 | I30: ='[2]Input| Prices'!L$43 -> 0.01287329456 | J30: ='[2]Input| Prices'!M$43 -> 0.008120818073 | K30: ='[2]Input| Prices'!N$43 -> 0.009550582168 | L30: ='[2]Input| Prices'!O$43 -> 0.0111993349 | M30: ='[2]Input| Prices'!P$43 -> 0.01227436192 | N30: ='[2]Input| Prices'!Q$43 -> 0.01202541615
C31: Cumulative labour escalation | G31: 1 | H31: =G31*(1+H30) -> 1.014480383 | I31: =H31*(1+I30) -> 1.027540087 | J31: 1.035884554 | K31: 1.045777854 | L31: 1.057489871 | M31: 1.070469884 | N31: 1.08334273

Sheet Price Cap >

Sheet Inputs | Price Cap
B1: ='Title Page'!B8&" v"&'Title Page'!$C$10 -> Final Standardised Metering Pricing Model v1.02 | N1: DNSP: | O1: =IF('Inputs | General'!$G$16="Exit Fees (Vic)","NOT USED",NSP) -> NOT USED | U1: Worksheet check: | V1: =IF(COUNTA($W$4:$W$71)=COUNTIF($W4:$W72,"OK"),"OK","Check") -> OK
B2: =MID(CELL("filename",A1),FIND("]",CELL("filename",A1))+1,255) -> Inputs | Price Cap | H2: Key: | I2: Input | J2: External Link | K2: Internal Link
B5: =LEFT('Inputs | General'!B21,1)+1&". Linked Input - Inflation & Discount Rates" -> 3. Linked Input - Inflation & Discount Rates | J5: =IF('Inputs | General'!$G$16="Exit Fees (Vic)","NOT USED","") -> NOT USED
B7: Linked Inputs - Discount Rates | G7: Base year | H7: Regulatory period
C8: Year | E8: Units | G8: =LEFT(H8,4)-1&"-"&RIGHT(H8,2)-1 -> 2025-26 | H8: =FPFirstYear -> 2026-27 | I8: =LEFT(H8,4)+1&"-"&RIGHT(H8,2)+1 -> 2027-28 | J8: =LEFT(I8,4)+1&"-"&RIGHT(I8,2)+1 -> 2028-29 | K8: 2029-30 | L8: 2030-31 | N8: Link from PTRM
C9: Nominal Vanilla WACC | E9: % | H9: 0.05 | I9: 0.05 | J9: 0.05 | K9: 0.05 | L9: 0.05
C10: Cumulative Discount Index | E10: Index | G10: 1 | H10: =G10*(1+H9) -> 1.05 | I10: =H10*(1+I9) -> 1.1025 | J10: =I10*(1+J9) -> 1.157625 | K10: =J10*(1+K9) -> 1.21550625 | L10: =K10*(1+L9) -> 1.276281563
B15: =LEFT(B5,1)+1&". Linked Input - Building Block Revenue Requirements" -> 4. Linked Input - Building Block Revenue Requirements | J15: =IF('Inputs | General'!$G$16="Exit Fees (Vic)","NOT USED","") -> NOT USED
B17: Linked Inputs - Unsmoothed revenue requirement
E19: Units | H19: =FPFirstYear -> 2026-27 | I19: =LEFT(H19,4)+1&"-"&RIGHT(H19,2)+1 -> 2027-28 | J19: =LEFT(I19,4)+1&"-"&RIGHT(I19,2)+1 -> 2028-29 | K19: 2029-30 | L19: 2030-31 | N19: Link from PTRM
C20: Return on Capital | E20: $m | H20: ='[1]Revenue summary'!G7 -> 0 | I20: ='[1]Revenue summary'!H7 -> -1.787479077 | J20: ='[1]Revenue summary'!I7 -> -1.813857564 | K20: ='[1]Revenue summary'!J7 -> -0.4123065426 | L20: ='[1]Revenue summary'!K7 -> 2.077516312
C21: Return of Capital (regulatory depreciation) | E21: $m | H21: ='[1]Revenue summary'!G8 -> 47.27664101 | I21: ='[1]Revenue summary'!H8 -> 21.30284352 | J21: ='[1]Revenue summary'!I8 -> 16.58125105 | K21: ='[1]Revenue summary'!J8 -> 18.05528431 | L21: ='[1]Revenue summary'!K8 -> 18.58492168
C22: Operating Expenditure | E22: $m | H22: ='[1]Revenue summary'!G9 -> 11.64389967 | I22: ='[1]Revenue summary'!H9 -> 12.28375356 | J22: ='[1]Revenue summary'!I9 -> 13.46346137 | K22: ='[1]Revenue summary'!J9 -> 14.52621817 | L22: ='[1]Revenue summary'!K9 -> 15.41337451
C23: Revenue Adjustments | E23: $m | H23: ='[1]Revenue summary'!G10 -> 0 | I23: ='[1]Revenue summary'!H10 -> 0 | J23: ='[1]Revenue summary'!I10 -> 0 | K23: ='[1]Revenue summary'!J10 -> 0 | L23: ='[1]Revenue summary'!K10 -> 0
C24: Net Tax Allowance | E24: $m | H24: ='[1]Revenue summary'!G11 -> 5.007473497 | I24: ='[1]Revenue summary'!H11 -> 0.6985733843 | J24: ='[1]Revenue summary'!I11 -> 0 | K24: ='[1]Revenue summary'!J11 -> 0 | L24: ='[1]Revenue summary'!K11 -> 0
C25: Annual Revenue Requirement (unsmoothed) | E25: $m | H25: =SUM(H20:H24) -> 63.92801418 | I25: =SUM(I20:I24) -> 32.49769139 | J25: =SUM(J20:J24) -> 28.23085487 | K25: =SUM(K20:K24) -> 32.16919594 | L25: =SUM(L20:L24) -> 36.0758125
C27: Non-Capital Component | E27: $m | H27: =H22 -> 11.64389967 | I27: =I22 -> 12.28375356 | J27: =J22 -> 13.46346137 | K27: =K22 -> 14.52621817 | L27: =L22 -> 15.41337451
C28: Capital Component | E28: $m | H28: =SUM(H20:H21,H23:H24) -> 52.28411451 | I28: =SUM(I20:I21,I23:I24) -> 20.21393783 | J28: =SUM(J20:J21,J23:J24) -> 14.76739349 | K28: =SUM(K20:K21,K23:K24) -> 17.64297777 | L28: =SUM(L20:L21,L23:L24) -> 20.66243799
H29: =(H27+H28=H25)/1 -> 1 | I29: =(I27+I28=I25)/1 -> 1 | J29: =(J27+J28=J25)/1 -> 1 | K29: =(K27+K28=K25)/1 -> 1 | L29: =(L27+L28=L25)/1 -> 1
B31: NPV of unsmoothed revenue requirement
E32: Units | G32: NPV
C33: Non-capital | E33: $m | G33: =SUMPRODUCT($H27:$L27,1/$H$10:$L$10) -> 57.88893687
C34: Capital | E34: $m | G34: =SUMPRODUCT($H28:$L28,1/$H$10:$L$10) -> 111.5901443
C35: Total | E35: $m | G35: =G33+G34 -> 169.4790812
B39: =LEFT(B15,1)+1&". Input - Base Year Tariffs, Base Year Volume & Volume Forecast" -> 5. Input - Base Year Tariffs, Base Year Volume & Volume Forecast | J39: =IF('Inputs | General'!$G$16="Exit Fees (Vic)","NOT USED","") -> NOT USED
H41: =LEFT(J42,4)-1&"-"&RIGHT(J42,2)-1 -> 2025-26 | I41: =LEFT(J42,4)-1&"-"&RIGHT(J42,2)-1 -> 2025-26 | J41: Volume Forecast
A42: ▼ Table Filters | C42: Tariff # | D42: Tariff name | E42: Application | F42: Tariff Code | G42: Other designation | H42: Base year tariff ($/year) | I42: Base year volume | J42: =FPFirstYear -> 2026-27 | K42: =LEFT(J42,4)+1&"-"&RIGHT(J42,2)+1 -> 2027-28 | L42: =LEFT(K42,4)+1&"-"&RIGHT(K42,2)+1 -> 2028-29 | M42: 2029-30 | N42: 2030-31
C43: Tariff # | D43: Tariff name | E43: Application | F43: Tariff Code | G43: Other designation | H43: Base year tariff ($/year) | I43: Base year volume | J43: F-RP0 | K43: F-RP+1 | L43: F-RP+2 | M43: F-RP+3 | N43: F-RP+4
C44: 1 | D44: =D45 -> Residential Non ToU | E44: Non-capital | F44: =F45 -> R1 | G44: =G45 -> Primary | H44: 10 | I44: 1000000 | J44: =Table4[[#This Row],[Base year volume]]*0.9 -> 900000 | K44: =Table4[[#This Row],[F-RP0]]*0.9 -> 810000 | L44: =Table4[[#This Row],[F-RP+1]]*0.9 -> 729000 | M44: =Table4[[#This Row],[F-RP+2]]*0.9 -> 656100 | N44: =Table4[[#This Row],[F-RP+3]]*0.9 -> 590490
C45: 1 | D45: =D46 -> Residential Non ToU | E45: Capital | F45: =F46 -> R1 | G45: =G46 -> Primary | H45: 20 | I45: 1100000 | J45: =Table4[[#This Row],[Base year volume]] -> 1100000 | K45: =Table4[[#This Row],[F-RP0]] -> 1100000 | L45: =Table4[[#This Row],[F-RP+1]] -> 1100000 | M45: =Table4[[#This Row],[F-RP+2]] -> 1100000 | N45: =Table4[[#This Row],[F-RP+3]] -> 1100000
C46: 1 | D46: Residential Non ToU | E46: Total | F46: R1 | G46: Primary | H46: =H44+H45 -> 30
C47: 2 | D47: =D48 -> Residential ToU | E47: Non-capital | F47: =F48 -> R2 | G47: Primary | H47: 20 | I47: 300000 | J47: =Table4[[#This Row],[Base year volume]]*0.9 -> 270000 | K47: =Table4[[#This Row],[F-RP0]]*0.9 -> 243000 | L47: =Table4[[#This Row],[F-RP+1]]*0.9 -> 218700 | M47: =Table4[[#This Row],[F-RP+2]]*0.9 -> 196830 | N47: =Table4[[#This Row],[F-RP+3]]*0.9 -> 177147
C48: 2 | D48: Residential ToU | E48: Capital | F48: R2 | G48: Primary | H48: 20 | I48: 330000 | J48: =Table4[[#This Row],[Base year volume]] -> 330000 | K48: =Table4[[#This Row],[F-RP0]] -> 330000 | L48: =Table4[[#This Row],[F-RP+1]] -> 330000 | M48: =Table4[[#This Row],[F-RP+2]] -> 330000 | N48: =Table4[[#This Row],[F-RP+3]] -> 330000
C49: 2 | D49: Residential ToU | E49: Total | F49: R2 | G49: Primary | H49: =H47+H48 -> 40
C50: 3 | D50: =D51 -> Controlled load | E50: Non-capital | F50: =F51 -> B1 | G50: Secondary | H50: 1 | I50: 300000 | J50: =Table4[[#This Row],[Base year volume]]*0.9 -> 270000 | K50: =Table4[[#This Row],[F-RP0]]*0.9 -> 243000 | L50: =Table4[[#This Row],[F-RP+1]]*0.9 -> 218700 | M50: =Table4[[#This Row],[F-RP+2]]*0.9 -> 196830 | N50: =Table4[[#This Row],[F-RP+3]]*0.9 -> 177147
C51: 3 | D51: Controlled load | E51: Capital | F51: B1 | G51: Secondary | H51: 10 | I51: 330000 | J51: =Table4[[#This Row],[Base year volume]] -> 330000 | K51: =Table4[[#This Row],[F-RP0]] -> 330000 | L51: =Table4[[#This Row],[F-RP+1]] -> 330000 | M51: =Table4[[#This Row],[F-RP+2]] -> 330000 | N51: =Table4[[#This Row],[F-RP+3]] -> 330000
C52: 3 | D52: Controlled load | E52: Total | F52: B1 | G52: Secondary | H52: =H50+H51 -> 11
C53: 4 | D53: =D54 -> Small Business Non ToU | E53: Non-capital | F53: =F54 -> B2 | G53: Primary | H53: 10 | I53: 50000 | J53: =Table4[[#This Row],[Base year volume]]*0.9 -> 45000 | K53: =Table4[[#This Row],[F-RP0]]*0.9 -> 40500 | L53: =Table4[[#This Row],[F-RP+1]]*0.9 -> 36450 | M53: =Table4[[#This Row],[F-RP+2]]*0.9 -> 32805 | N53: =Table4[[#This Row],[F-RP+3]]*0.9 -> 29524.5
C54: 4 | D54: Small Business Non ToU | E54: Capital | F54: B2 | G54: Primary | H54: 30 | I54: 55000 | J54: =Table4[[#This Row],[Base year volume]] -> 55000 | K54: =Table4[[#This Row],[F-RP0]] -> 55000 | L54: =Table4[[#This Row],[F-RP+1]] -> 55000 | M54: =Table4[[#This Row],[F-RP+2]] -> 55000 | N54: =Table4[[#This Row],[F-RP+3]] -> 55000
C55: 4 | D55: Small Business Non ToU | E55: Total | F55: B2 | G55: Primary | H55: =H53+H54 -> 40
C56: 5 | D56: =D57 -> Small Business ToU | E56: Non-capital | F56: =F57 -> LV1 | G56: Primary | H56: 25 | I56: 50000 | J56: =Table4[[#This Row],[Base year volume]]*0.9 -> 45000 | K56: =Table4[[#This Row],[F-RP0]]*0.9 -> 40500 | L56: =Table4[[#This Row],[F-RP+1]]*0.9 -> 36450 | M56: =Table4[[#This Row],[F-RP+2]]*0.9 -> 32805 | N56: =Table4[[#This Row],[F-RP+3]]*0.9 -> 29524.5
C57: 5 | D57: Small Business ToU | E57: Capital | F57: LV1 | G57: Primary | H57: 20 | I57: 55000 | J57: =Table4[[#This Row],[Base year volume]] -> 55000 | K57: =Table4[[#This Row],[F-RP0]] -> 55000 | L57: =Table4[[#This Row],[F-RP+1]] -> 55000 | M57: =Table4[[#This Row],[F-RP+2]] -> 55000 | N57: =Table4[[#This Row],[F-RP+3]] -> 55000
A58: ▼ More Rows | C58: 5 | D58: Small Business ToU | E58: Total | F58: LV1 | G58: Primary | H58: =H56+H57 -> 45
C59: 6 | D59: =D60 -> LV 40-160 MWh (System) | E59: Non-capital | F59: =F60 -> 0 | G59: 0 | H59: 45 | I59: 10000 | J59: =Table4[[#This Row],[Base year volume]]*0.9 -> 9000 | K59: =Table4[[#This Row],[F-RP0]]*0.9 -> 8100 | L59: =Table4[[#This Row],[F-RP+1]]*0.9 -> 7290 | M59: =Table4[[#This Row],[F-RP+2]]*0.9 -> 6561 | N59: =Table4[[#This Row],[F-RP+3]]*0.9 -> 5904.9
C60: 6 | D60: LV 40-160 MWh (System) | E60: Capital | F60: 0 | G60: 0 | H60: 25 | I60: 10000 | J60: =Table4[[#This Row],[Base year volume]] -> 10000 | K60: =Table4[[#This Row],[F-RP0]] -> 10000 | L60: =Table4[[#This Row],[F-RP+1]] -> 10000 | M60: =Table4[[#This Row],[F-RP+2]] -> 10000 | N60: =Table4[[#This Row],[F-RP+3]] -> 10000
C61: 6 | D61: LV 40-160 MWh (System) | E61: Total | F61: 0 | G61: 0 | H61: =H59+H60 -> 70
C62: 7 | D62: =D63 -> 0 | E62: Non-capital | F62: =F63 -> 0 | G62: 0
C63: 7 | D63: 0 | E63: Capital | F63: 0 | G63: 0
C64: 7 | D64: 0 | E64: Total | F64: 0 | G64: 0 | H64: =H62+H63 -> 0
C65: 8 | D65: =D66 -> 0 | E65: Non-capital | F65: =F66 -> 0 | G65: 0
C66: 8 | D66: 0 | E66: Capital | F66: 0 | G66: 0
C67: 8 | D67: 0 | E67: Total | F67: 0 | G67: 0 | H67: =H65+H66 -> 0
C68: 9 | D68: =D69 -> 0 | E68: Non-capital | F68: =F69 -> 0 | G68: 0
C69: 9 | D69: 0 | E69: Capital | F69: 0 | G69: 0
C70: 9 | D70: 0 | E70: Total | F70: 0 | G70: 0 | H70: =H68+H69 -> 0
C71: 10 | D71: =D72 -> 0 | E71: Non-capital | F71: =F72 -> 0 | G71: 0
C72: 10 | D72: 0 | E72: Capital | F72: 0 | G72: 0
C73: 10 | D73: 0 | E73: Total | F73: 0 | G73: 0 | H73: =H71+H72 -> 0
C74: 11 | D74: =D75 -> 0 | E74: Non-capital | F74: =F75 -> 0 | G74: 0
C75: 11 | D75: 0 | E75: Capital | F75: 0 | G75: 0
C76: 11 | D76: 0 | E76: Total | F76: 0 | G76: 0 | H76: =H74+H75 -> 0
C77: 12 | D77: =D78 -> 0 | E77: Non-capital | F77: =F78 -> 0 | G77: 0
C78: 12 | D78: 0 | E78: Capital | F78: 0 | G78: 0
C79: 12 | D79: 0 | E79: Total | F79: 0 | G79: 0 | H79: =H77+H78 -> 0
C80: 13 | D80: =D81 -> 0 | E80: Non-capital | F80: =F81 -> 0 | G80: 0
C81: 13 | D81: 0 | E81: Capital | F81: 0 | G81: 0
C82: 13 | D82: 0 | E82: Total | F82: 0 | G82: 0 | H82: =H80+H81 -> 0
C83: 14 | D83: =D84 -> 0 | E83: Non-capital | F83: =F84 -> 0 | G83: 0
C84: 14 | D84: 0 | E84: Capital | F84: 0 | G84: 0
C85: 14 | D85: 0 | E85: Total | F85: 0 | G85: 0 | H85: =H83+H84 -> 0
C86: 15 | D86: =D87 -> 0 | E86: Non-capital | F86: =F87 -> 0 | G86: 0
C87: 15 | D87: 0 | E87: Capital | F87: 0 | G87: 0
C88: 15 | D88: 0 | E88: Total | F88: 0 | G88: 0 | H88: =H86+H87 -> 0
D90: Total | E90: Non-capital | I90: =SUMIFS(Table4[Base year volume],Table4[[Application]:[Application]],$E90) -> 1710000 | J90: =SUMIFS(Table4[F-RP0],Table4[[Application]:[Application]],$E90) -> 1539000 | K90: =SUMIFS(Table4[F-RP+1],Table4[[Application]:[Application]],$E90) -> 1385100 | L90: =SUMIFS(Table4[F-RP+2],Table4[[Application]:[Application]],$E90) -> 1246590 | M90: =SUMIFS(Table4[F-RP+3],Table4[[Application]:[Application]],$E90) -> 1121931 | N90: =SUMIFS(Table4[F-RP+4],Table4[[Application]:[Application]],$E90) -> 1009737.9
D91: Total | E91: Capital | I91: =SUMIFS(Table4[Base year volume],Table4[[Application]:[Application]],$E91) -> 1880000 | J91: =SUMIFS(Table4[F-RP0],Table4[[Application]:[Application]],$E91) -> 1880000 | K91: =SUMIFS(Table4[F-RP+1],Table4[[Application]:[Application]],$E91) -> 1880000 | L91: =SUMIFS(Table4[F-RP+2],Table4[[Application]:[Application]],$E91) -> 1880000 | M91: =SUMIFS(Table4[F-RP+3],Table4[[Application]:[Application]],$E91) -> 1880000 | N91: =SUMIFS(Table4[F-RP+4],Table4[[Application]:[Application]],$E91) -> 1880000
B95: =LEFT(B39,1)+1&". Set X-Factors" -> 6. Set X-Factors
A97: Price cap calculation
B99: 1: Non-capital
C101: Unsmoothed - Annual Revenue Requirement | E101: ='Calc | Price Cap'!I59/10^6 -> 18.5 | F101: ='Inputs | Price Cap'!H27 -> 11.64389967 | G101: ='Inputs | Price Cap'!I27 -> 12.28375356 | H101: ='Inputs | Price Cap'!J27 -> 13.46346137 | I101: ='Inputs | Price Cap'!K27 -> 14.52621817 | J101: ='Inputs | Price Cap'!L27 -> 15.41337451 | L101: ='Inputs | Price Cap'!G33 -> 57.88893687 | M101: NPV (unsmoothed)
F103: =F106-E101 -> 3.24922 | G103: First year difference ($m) | L103: =J101-I101 -> 0.8871563361 | M103: Final year difference ($m)
F104: =(F106/E101)-1 -> 0.1756335135 | G104: First year difference (%) | L104: =(J101/I101)-1 -> 0.06107276688 | M104: Final year difference (%)
C106: Smoothed - Expected Revenue | E106: ='Calc | Price Cap'!I59/10^6 -> 18.5 | F106: ='Calc | Price Cap'!J59/10^6 -> 21.74922 | G106: ='Calc | Price Cap'!K59/10^6 -> 20.282076 | H106: ='Calc | Price Cap'!L59/10^6 -> 18.9151443 | I106: ='Calc | Price Cap'!M59/10^6 -> 17.64226656 | J106: ='Calc | Price Cap'!N59/10^6 -> 16.45447624 | L106: =SUMPRODUCT($F106:$J106,1/'Inputs | Price Cap'!$H$10:$L$10) -> 82.85644555 | M106: NPV (smoothed)
C108: X Factors | F108: P_0 | G108: X_02 | H108: X_03 | I108: X_04 | J108: X_05
C109: positive P0, X imply real decrease in price/ revenue constraint | F109: -0.273156522 | G109: -0.01 | H109: -0.01 | I109: -0.01 | J109: -0.01 | L109: =L101-L106 -> -24.96750869 | M109: NPV difference (smoothed vs unsmoothed)
B115: 2: Capital
C117: Unsmoothed - Annual Revenue Requirement | E117: ='Calc | Price Cap'!I60/10^6 -> 34.9 | F117: ='Inputs | Price Cap'!H28 -> 52.28411451 | G117: ='Inputs | Price Cap'!I28 -> 20.21393783 | H117: ='Inputs | Price Cap'!J28 -> 14.76739349 | I117: ='Inputs | Price Cap'!K28 -> 17.64297777 | J117: ='Inputs | Price Cap'!L28 -> 20.66243799 | L117: ='Inputs | Price Cap'!G34 -> 111.5901443 | M117: NPV (unsmoothed)
F119: =F122-E117 -> -3.57925 | G119: First year difference ($m) | L119: =J117-I117 -> 3.019460222 | M119: Final year difference ($m)
F120: =(F122/E117)-1 -> -0.1025573066 | G120: First year difference (%) | L120: =(J117/I117)-1 -> 0.1711423243 | M120: Final year difference (%)
C122: Smoothed - Expected Revenue | E122: ='Calc | Price Cap'!I60/10^6 -> 34.9 | F122: ='Calc | Price Cap'!J60/10^6 -> 31.32075 | G122: ='Calc | Price Cap'!K60/10^6 -> 31.16565 | H122: ='Calc | Price Cap'!L60/10^6 -> 31.01055 | I122: ='Calc | Price Cap'!M60/10^6 -> 30.8703 | J122: ='Calc | Price Cap'!N60/10^6 -> 30.73005 | L122: =SUMPRODUCT($F122:$J122,1/'Inputs | Price Cap'!$H$10:$L$10) -> 134.3603985 | M122: NPV (smoothed)
C124: X Factors | F124: P_0 | G124: X_02 | H124: X_03 | I124: X_04 | J124: X_05
C125: positive P0, X imply real decrease in price/ revenue constraint | F125: 0.1254211795 | G125: 0.03 | H125: 0.03 | I125: 0.03 | J125: 0.03 | L125: =L117-L122 -> -22.77025421 | M125: NPV difference (smoothed vs unsmoothed)

Sheet Calc | Price Cap
B1: ='Title Page'!B8&" v"&'Title Page'!$C$10 -> Final Standardised Metering Pricing Model v1.02 | M1: DNSP: | N1: =IF('Inputs | General'!$G$16="Exit Fees (Vic)","NOT USED",NSP) -> NOT USED
B2: =MID(CELL("filename",A1),FIND("]",CELL("filename",A1))+1,255) -> Calc | Price Cap | H2: Key: | I2: Input | J2: External Link | K2: Internal Link
B5: Annual Charges Calculations
B7: Annual Smoothed Revenue Calculation
I8: Base Year Revenue | J8: Annual Revenue
A9: ▼ Table Filters | C9: Tariff # | D9: Tariff name | E9: Application | F9: Tariff Code | G9: Other designation | I9: =LEFT(J9,4)-1&"-"&RIGHT(J9,2)-1 -> 2025-26 | J9: =FPFirstYear -> 2026-27 | K9: =LEFT(J9,4)+1&"-"&RIGHT(J9,2)+1 -> 2027-28 | L9: =LEFT(K9,4)+1&"-"&RIGHT(K9,2)+1 -> 2028-29 | M9: 2029-30 | N9: 2030-31
C10: Tariff # | D10: Tariff name | E10: Application | F10: Tariff Code | G10: Other designation | H10: Column1 | I10: F-RP-1 | J10: F-RP0 | K10: F-RP+1 | L10: F-RP+2 | M10: F-RP+3 | N10: F-RP+4
C11: 1 | D11: ='Inputs | Price Cap'!D44 -> Residential Non ToU | E11: Non-capital | F11: ='Inputs | Price Cap'!F44 -> R1 | G11: ='Inputs | Price Cap'!G44 -> Primary | I11: ='Output | Price Caps'!$I9*'Inputs | Price Cap'!I44 -> 10000000 | J11: ='Output | Price Caps'!J9*'Inputs | Price Cap'!J44 -> 11754000 | K11: ='Output | Price Caps'!K9*'Inputs | Price Cap'!K44 -> 10959300 | L11: ='Output | Price Caps'!L9*'Inputs | Price Cap'!L44 -> 10220580 | M11: ='Output | Price Caps'!M9*'Inputs | Price Cap'!M44 -> 9533133 | N11: ='Output | Price Caps'!N9*'Inputs | Price Cap'!N44 -> 8892779.4
C12: 1 | D12: ='Inputs | Price Cap'!D45 -> Residential Non ToU | E12: Capital | F12: ='Inputs | Price Cap'!F45 -> R1 | G12: ='Inputs | Price Cap'!G45 -> Primary | I12: ='Output | Price Caps'!$I10*'Inputs | Price Cap'!I45 -> 22000000 | J12: ='Output | Price Caps'!J10*'Inputs | Price Cap'!J45 -> 19745000 | K12: ='Output | Price Caps'!K10*'Inputs | Price Cap'!K45 -> 19646000 | L12: ='Output | Price Caps'!L10*'Inputs | Price Cap'!L45 -> 19547000 | M12: ='Output | Price Caps'!M10*'Inputs | Price Cap'!M45 -> 19459000 | N12: ='Output | Price Caps'!N10*'Inputs | Price Cap'!N45 -> 19371000
C13: 1 | D13: ='Inputs | Price Cap'!D46 -> Residential Non ToU | E13: Total | F13: ='Inputs | Price Cap'!F46 -> R1 | G13: ='Inputs | Price Cap'!G46 -> Primary | I13: =I11+I12 -> 32000000 | J13: 31499000 | K13: 30605300 | L13: 29767580 | M13: 28992133 | N13: 28263779.4
C14: 2 | D14: ='Inputs | Price Cap'!D47 -> Residential ToU | E14: Non-capital | F14: ='Inputs | Price Cap'!F47 -> R2 | G14: ='Inputs | Price Cap'!G47 -> Primary | I14: ='Output | Price Caps'!$I12*'Inputs | Price Cap'!I47 -> 6000000 | J14: ='Output | Price Caps'!J12*'Inputs | Price Cap'!J47 -> 7055100 | K14: ='Output | Price Caps'!K12*'Inputs | Price Cap'!K47 -> 6580440 | L14: ='Output | Price Caps'!L12*'Inputs | Price Cap'!L47 -> 6136722 | M14: ='Output | Price Caps'!M12*'Inputs | Price Cap'!M47 -> 5723816.4 | N14: ='Output | Price Caps'!N12*'Inputs | Price Cap'!N47 -> 5337439.11
C15: 2 | D15: ='Inputs | Price Cap'!D48 -> Residential ToU | E15: Capital | F15: ='Inputs | Price Cap'!F48 -> R2 | G15: ='Inputs | Price Cap'!G48 -> Primary | I15: ='Output | Price Caps'!$I13*'Inputs | Price Cap'!I48 -> 6600000 | J15: ='Output | Price Caps'!J13*'Inputs | Price Cap'!J48 -> 5923500 | K15: ='Output | Price Caps'!K13*'Inputs | Price Cap'!K48 -> 5893800 | L15: ='Output | Price Caps'!L13*'Inputs | Price Cap'!L48 -> 5864100 | M15: ='Output | Price Caps'!M13*'Inputs | Price Cap'!M48 -> 5837700 | N15: ='Output | Price Caps'!N13*'Inputs | Price Cap'!N48 -> 5811300
C16: 2 | D16: ='Inputs | Price Cap'!D49 -> Residential ToU | E16: Total | F16: ='Inputs | Price Cap'!F49 -> R2 | G16: ='Inputs | Price Cap'!G49 -> Primary | I16: =I14+I15 -> 12600000 | J16: 12978600 | K16: 12474240 | L16: 12000822 | M16: 11561516.4 | N16: 11148739.11
C17: 3 | D17: ='Inputs | Price Cap'!D50 -> Controlled load | E17: Non-capital | F17: ='Inputs | Price Cap'!F50 -> B1 | G17: ='Inputs | Price Cap'!G50 -> Secondary | I17: ='Output | Price Caps'!$I15*'Inputs | Price Cap'!I50 -> 300000 | J17: ='Output | Price Caps'!J15*'Inputs | Price Cap'!J50 -> 353700 | K17: ='Output | Price Caps'!K15*'Inputs | Price Cap'!K50 -> 330480 | L17: ='Output | Price Caps'!L15*'Inputs | Price Cap'!L50 -> 308367 | M17: ='Output | Price Caps'!M15*'Inputs | Price Cap'!M50 -> 287371.8 | N17: ='Output | Price Caps'!N15*'Inputs | Price Cap'!N50 -> 267491.97
C18: 3 | D18: ='Inputs | Price Cap'!D51 -> Controlled load | E18: Capital | F18: ='Inputs | Price Cap'!F51 -> B1 | G18: ='Inputs | Price Cap'!G51 -> Secondary | I18: ='Output | Price Caps'!$I16*'Inputs | Price Cap'!I51 -> 3300000 | J18: ='Output | Price Caps'!J16*'Inputs | Price Cap'!J51 -> 2960100 | K18: ='Output | Price Caps'!K16*'Inputs | Price Cap'!K51 -> 2946900 | L18: ='Output | Price Caps'!L16*'Inputs | Price Cap'!L51 -> 2933700 | M18: ='Output | Price Caps'!M16*'Inputs | Price Cap'!M51 -> 2920500 | N18: ='Output | Price Caps'!N16*'Inputs | Price Cap'!N51 -> 2907300
C19: 3 | D19: ='Inputs | Price Cap'!D52 -> Controlled load | E19: Total | F19: ='Inputs | Price Cap'!F52 -> B1 | G19: ='Inputs | Price Cap'!G52 -> Secondary | I19: =I17+I18 -> 3600000 | J19: 3313800 | K19: 3277380 | L19: 3242067 | M19: 3207871.8 | N19: 3174791.97
C20: 4 | D20: ='Inputs | Price Cap'!D53 -> Small Business Non ToU | E20: Non-capital | F20: ='Inputs | Price Cap'!F53 -> B2 | G20: ='Inputs | Price Cap'!G53 -> Primary | I20: ='Output | Price Caps'!$I18*'Inputs | Price Cap'!I53 -> 500000 | J20: ='Output | Price Caps'!J18*'Inputs | Price Cap'!J53 -> 587700 | K20: ='Output | Price Caps'!K18*'Inputs | Price Cap'!K53 -> 547965 | L20: ='Output | Price Caps'!L18*'Inputs | Price Cap'!L53 -> 511029 | M20: ='Output | Price Caps'!M18*'Inputs | Price Cap'!M53 -> 476656.65 | N20: ='Output | Price Caps'!N18*'Inputs | Price Cap'!N53 -> 444638.97
C21: 4 | D21: ='Inputs | Price Cap'!D54 -> Small Business Non ToU | E21: Capital | F21: ='Inputs | Price Cap'!F54 -> B2 | G21: ='Inputs | Price Cap'!G54 -> Primary | I21: ='Output | Price Caps'!$I19*'Inputs | Price Cap'!I54 -> 1650000 | J21: ='Output | Price Caps'!J19*'Inputs | Price Cap'!J54 -> 1480600 | K21: ='Output | Price Caps'!K19*'Inputs | Price Cap'!K54 -> 1473450 | L21: ='Output | Price Caps'!L19*'Inputs | Price Cap'!L54 -> 1466300 | M21: ='Output | Price Caps'!M19*'Inputs | Price Cap'!M54 -> 1459150 | N21: ='Output | Price Caps'!N19*'Inputs | Price Cap'!N54 -> 1452000
C22: 4 | D22: ='Inputs | Price Cap'!D55 -> Small Business Non ToU | E22: Total | F22: ='Inputs | Price Cap'!F55 -> B2 | G22: ='Inputs | Price Cap'!G55 -> Primary | I22: =I20+I21 -> 2150000 | J22: 2068300 | K22: 2021415 | L22: 1977329 | M22: 1935806.65 | N22: 1896638.97
C23: 5 | D23: ='Inputs | Price Cap'!D56 -> Small Business ToU | E23: Non-capital | F23: ='Inputs | Price Cap'!F56 -> LV1 | G23: ='Inputs | Price Cap'!G56 -> Primary | I23: ='Output | Price Caps'!$I21*'Inputs | Price Cap'!I56 -> 1250000 | J23: ='Output | Price Caps'!J21*'Inputs | Price Cap'!J56 -> 1469700 | K23: ='Output | Price Caps'!K21*'Inputs | Price Cap'!K56 -> 1370520 | L23: ='Output | Price Caps'!L21*'Inputs | Price Cap'!L56 -> 1278301.5 | M23: ='Output | Price Caps'!M21*'Inputs | Price Cap'!M56 -> 1192133.7 | N23: ='Output | Price Caps'!N21*'Inputs | Price Cap'!N56 -> 1111892.67
C24: 5 | D24: ='Inputs | Price Cap'!D57 -> Small Business ToU | E24: Capital | F24: ='Inputs | Price Cap'!F57 -> LV1 | G24: ='Inputs | Price Cap'!G57 -> Primary | I24: ='Output | Price Caps'!$I22*'Inputs | Price Cap'!I57 -> 1100000 | J24: ='Output | Price Caps'!J22*'Inputs | Price Cap'!J57 -> 987250 | K24: ='Output | Price Caps'!K22*'Inputs | Price Cap'!K57 -> 982300 | L24: ='Output | Price Caps'!L22*'Inputs | Price Cap'!L57 -> 977350 | M24: ='Output | Price Caps'!M22*'Inputs | Price Cap'!M57 -> 972950 | N24: ='Output | Price Caps'!N22*'Inputs | Price Cap'!N57 -> 968550
A25: ▼ More Rows | C25: 5 | D25: ='Inputs | Price Cap'!D58 -> Small Business ToU | E25: Total | F25: ='Inputs | Price Cap'!F58 -> LV1 | G25: ='Inputs | Price Cap'!G58 -> Primary | I25: =I23+I24 -> 2350000 | J25: 2456950 | K25: 2352820 | L25: 2255651.5 | M25: 2165083.7 | N25: 2080442.67
C26: 6 | D26: ='Inputs | Price Cap'!D59 -> LV 40-160 MWh (System) | E26: Non-capital | F26: ='Inputs | Price Cap'!F59 -> 0 | G26: ='Inputs | Price Cap'!G59 -> 0 | I26: ='Output | Price Caps'!$I24*'Inputs | Price Cap'!I59 -> 450000 | J26: ='Output | Price Caps'!J24*'Inputs | Price Cap'!J59 -> 529020 | K26: ='Output | Price Caps'!K24*'Inputs | Price Cap'!K59 -> 493371 | L26: ='Output | Price Caps'!L24*'Inputs | Price Cap'!L59 -> 460144.8 | M26: ='Output | Price Caps'!M24*'Inputs | Price Cap'!M59 -> 429155.01 | N26: ='Output | Price Caps'!N24*'Inputs | Price Cap'!N59 -> 400234.122
C27: 6 | D27: ='Inputs | Price Cap'!D60 -> LV 40-160 MWh (System) | E27: Capital | F27: ='Inputs | Price Cap'!F60 -> 0 | G27: ='Inputs | Price Cap'!G60 -> 0 | I27: ='Output | Price Caps'!$I25*'Inputs | Price Cap'!I60 -> 250000 | J27: ='Output | Price Caps'!J25*'Inputs | Price Cap'!J60 -> 224300 | K27: ='Output | Price Caps'!K25*'Inputs | Price Cap'!K60 -> 223200 | L27: ='Output | Price Caps'!L25*'Inputs | Price Cap'!L60 -> 222100 | M27: ='Output | Price Caps'!M25*'Inputs | Price Cap'!M60 -> 221000 | N27: ='Output | Price Caps'!N25*'Inputs | Price Cap'!N60 -> 219900
C28: 6 | D28: ='Inputs | Price Cap'!D61 -> LV 40-160 MWh (System) | E28: Total | F28: ='Inputs | Price Cap'!F61 -> 0 | G28: ='Inputs | Price Cap'!G61 -> 0 | I28: =I26+I27 -> 700000 | J28: 753320 | K28: 716571 | L28: 682244.8 | M28: 650155.01 | N28: 620134.122
C29: 7 | D29: ='Inputs | Price Cap'!D62 -> 0 | E29: Non-capital | F29: ='Inputs | Price Cap'!F62 -> 0 | G29: ='Inputs | Price Cap'!G62 -> 0 | I29: ='Output | Price Caps'!$I27*'Inputs | Price Cap'!I62 -> 0 | J29: ='Output | Price Caps'!J27*'Inputs | Price Cap'!J62 -> 0 | K29: ='Output | Price Caps'!K27*'Inputs | Price Cap'!K62 -> 0 | L29: ='Output | Price Caps'!L27*'Inputs | Price Cap'!L62 -> 0 | M29: ='Output | Price Caps'!M27*'Inputs | Price Cap'!M62 -> 0 | N29: ='Output | Price Caps'!N27*'Inputs | Price Cap'!N62 -> 0
C30: 7 | D30: ='Inputs | Price Cap'!D63 -> 0 | E30: Capital | F30: ='Inputs | Price Cap'!F63 -> 0 | G30: ='Inputs | Price Cap'!G63 -> 0 | I30: ='Output | Price Caps'!$I28*'Inputs | Price Cap'!I63 -> 0 | J30: ='Output | Price Caps'!J28*'Inputs | Price Cap'!J63 -> 0 | K30: ='Output | Price Caps'!K28*'Inputs | Price Cap'!K63 -> 0 | L30: ='Output | Price Caps'!L28*'Inputs | Price Cap'!L63 -> 0 | M30: ='Output | Price Caps'!M28*'Inputs | Price Cap'!M63 -> 0 | N30: ='Output | Price Caps'!N28*'Inputs | Price Cap'!N63 -> 0
C31: 7 | D31: ='Inputs | Price Cap'!D64 -> 0 | E31: Total | F31: ='Inputs | Price Cap'!F64 -> 0 | G31: ='Inputs | Price Cap'!G64 -> 0 | I31: =I29+I30 -> 0 | J31: 0 | K31: 0 | L31: 0 | M31: 0 | N31: 0
C32: 8 | D32: ='Inputs | Price Cap'!D65 -> 0 | E32: Non-capital | F32: ='Inputs | Price Cap'!F65 -> 0 | G32: ='Inputs | Price Cap'!G65 -> 0 | I32: ='Output | Price Caps'!$I30*'Inputs | Price Cap'!I65 -> 0 | J32: ='Output | Price Caps'!J30*'Inputs | Price Cap'!J65 -> 0 | K32: ='Output | Price Caps'!K30*'Inputs | Price Cap'!K65 -> 0 | L32: ='Output | Price Caps'!L30*'Inputs | Price Cap'!L65 -> 0 | M32: ='Output | Price Caps'!M30*'Inputs | Price Cap'!M65 -> 0 | N32: ='Output | Price Caps'!N30*'Inputs | Price Cap'!N65 -> 0
C33: 8 | D33: ='Inputs | Price Cap'!D66 -> 0 | E33: Capital | F33: ='Inputs | Price Cap'!F66 -> 0 | G33: ='Inputs | Price Cap'!G66 -> 0 | I33: ='Output | Price Caps'!$I31*'Inputs | Price Cap'!I66 -> 0 | J33: ='Output | Price Caps'!J31*'Inputs | Price Cap'!J66 -> 0 | K33: ='Output | Price Caps'!K31*'Inputs | Price Cap'!K66 -> 0 | L33: ='Output | Price Caps'!L31*'Inputs | Price Cap'!L66 -> 0 | M33: ='Output | Price Caps'!M31*'Inputs | Price Cap'!M66 -> 0 | N33: ='Output | Price Caps'!N31*'Inputs | Price Cap'!N66 -> 0
C34: 8 | D34: ='Inputs | Price Cap'!D67 -> 0 | E34: Total | F34: ='Inputs | Price Cap'!F67 -> 0 | G34: ='Inputs | Price Cap'!G67 -> 0 | I34: =I32+I33 -> 0 | J34: 0 | K34: 0 | L34: 0 | M34: 0 | N34: 0
C35: 9 | D35: ='Inputs | Price Cap'!D68 -> 0 | E35: Non-capital | F35: ='Inputs | Price Cap'!F68 -> 0 | G35: ='Inputs | Price Cap'!G68 -> 0 | I35: ='Output | Price Caps'!$I33*'Inputs | Price Cap'!I68 -> 0 | J35: ='Output | Price Caps'!J33*'Inputs | Price Cap'!J68 -> 0 | K35: ='Output | Price Caps'!K33*'Inputs | Price Cap'!K68 -> 0 | L35: ='Output | Price Caps'!L33*'Inputs | Price Cap'!L68 -> 0 | M35: ='Output | Price Caps'!M33*'Inputs | Price Cap'!M68 -> 0 | N35: ='Output | Price Caps'!N33*'Inputs | Price Cap'!N68 -> 0
C36: 9 | D36: ='Inputs | Price Cap'!D69 -> 0 | E36: Capital | F36: ='Inputs | Price Cap'!F69 -> 0 | G36: ='Inputs | Price Cap'!G69 -> 0 | I36: ='Output | Price Caps'!$I34*'Inputs | Price Cap'!I69 -> 0 | J36: ='Output | Price Caps'!J34*'Inputs | Price Cap'!J69 -> 0 | K36: ='Output | Price Caps'!K34*'Inputs | Price Cap'!K69 -> 0 | L36: ='Output | Price Caps'!L34*'Inputs | Price Cap'!L69 -> 0 | M36: ='Output | Price Caps'!M34*'Inputs | Price Cap'!M69 -> 0 | N36: ='Output | Price Caps'!N34*'Inputs | Price Cap'!N69 -> 0
C37: 9 | D37: ='Inputs | Price Cap'!D70 -> 0 | E37: Total | F37: ='Inputs | Price Cap'!F70 -> 0 | G37: ='Inputs | Price Cap'!G70 -> 0 | I37: =I35+I36 -> 0 | J37: 0 | K37: 0 | L37: 0 | M37: 0 | N37: 0
C38: 10 | D38: ='Inputs | Price Cap'!D71 -> 0 | E38: Non-capital | F38: ='Inputs | Price Cap'!F71 -> 0 | G38: ='Inputs | Price Cap'!G71 -> 0 | I38: ='Output | Price Caps'!$I36*'Inputs | Price Cap'!I71 -> 0 | J38: ='Output | Price Caps'!J36*'Inputs | Price Cap'!J71 -> 0 | K38: ='Output | Price Caps'!K36*'Inputs | Price Cap'!K71 -> 0 | L38: ='Output | Price Caps'!L36*'Inputs | Price Cap'!L71 -> 0 | M38: ='Output | Price Caps'!M36*'Inputs | Price Cap'!M71 -> 0 | N38: ='Output | Price Caps'!N36*'Inputs | Price Cap'!N71 -> 0
C39: 10 | D39: ='Inputs | Price Cap'!D72 -> 0 | E39: Capital | F39: ='Inputs | Price Cap'!F72 -> 0 | G39: ='Inputs | Price Cap'!G72 -> 0 | I39: ='Output | Price Caps'!$I37*'Inputs | Price Cap'!I72 -> 0 | J39: ='Output | Price Caps'!J37*'Inputs | Price Cap'!J72 -> 0 | K39: ='Output | Price Caps'!K37*'Inputs | Price Cap'!K72 -> 0 | L39: ='Output | Price Caps'!L37*'Inputs | Price Cap'!L72 -> 0 | M39: ='Output | Price Caps'!M37*'Inputs | Price Cap'!M72 -> 0 | N39: ='Output | Price Caps'!N37*'Inputs | Price Cap'!N72 -> 0
C40: 10 | D40: ='Inputs | Price Cap'!D73 -> 0 | E40: Total | F40: ='Inputs | Price Cap'!F73 -> 0 | G40: ='Inputs | Price Cap'!G73 -> 0 | I40: =I38+I39 -> 0 | J40: 0 | K40: 0 | L40: 0 | M40: 0 | N40: 0
C41: 11 | D41: ='Inputs | Price Cap'!D74 -> 0 | E41: Non-capital | F41: ='Inputs | Price Cap'!F74 -> 0 | G41: ='Inputs | Price Cap'!G74 -> 0 | I41: ='Output | Price Caps'!$I39*'Inputs | Price Cap'!I74 -> 0 | J41: ='Output | Price Caps'!J39*'Inputs | Price Cap'!J74 -> 0 | K41: ='Output | Price Caps'!K39*'Inputs | Price Cap'!K74 -> 0 | L41: ='Output | Price Caps'!L39*'Inputs | Price Cap'!L74 -> 0 | M41: ='Output | Price Caps'!M39*'Inputs | Price Cap'!M74 -> 0 | N41: ='Output | Price Caps'!N39*'Inputs | Price Cap'!N74 -> 0
C42: 11 | D42: ='Inputs | Price Cap'!D75 -> 0 | E42: Capital | F42: ='Inputs | Price Cap'!F75 -> 0 | G42: ='Inputs | Price Cap'!G75 -> 0 | I42: ='Output | Price Caps'!$I40*'Inputs | Price Cap'!I75 -> 0 | J42: ='Output | Price Caps'!J40*'Inputs | Price Cap'!J75 -> 0 | K42: ='Output | Price Caps'!K40*'Inputs | Price Cap'!K75 -> 0 | L42: ='Output | Price Caps'!L40*'Inputs | Price Cap'!L75 -> 0 | M42: ='Output | Price Caps'!M40*'Inputs | Price Cap'!M75 -> 0 | N42: ='Output | Price Caps'!N40*'Inputs | Price Cap'!N75 -> 0
C43: 11 | D43: ='Inputs | Price Cap'!D76 -> 0 | E43: Total | F43: ='Inputs | Price Cap'!F76 -> 0 | G43: ='Inputs | Price Cap'!G76 -> 0 | I43: =I41+I42 -> 0 | J43: 0 | K43: 0 | L43: 0 | M43: 0 | N43: 0
C44: 12 | D44: ='Inputs | Price Cap'!D77 -> 0 | E44: Non-capital | F44: ='Inputs | Price Cap'!F77 -> 0 | G44: ='Inputs | Price Cap'!G77 -> 0 | I44: ='Output | Price Caps'!$I42*'Inputs | Price Cap'!I77 -> 0 | J44: ='Output | Price Caps'!J42*'Inputs | Price Cap'!J77 -> 0 | K44: ='Output | Price Caps'!K42*'Inputs | Price Cap'!K77 -> 0 | L44: ='Output | Price Caps'!L42*'Inputs | Price Cap'!L77 -> 0 | M44: ='Output | Price Caps'!M42*'Inputs | Price Cap'!M77 -> 0 | N44: ='Output | Price Caps'!N42*'Inputs | Price Cap'!N77 -> 0
C45: 12 | D45: ='Inputs | Price Cap'!D78 -> 0 | E45: Capital | F45: ='Inputs | Price Cap'!F78 -> 0 | G45: ='Inputs | Price Cap'!G78 -> 0 | I45: ='Output | Price Caps'!$I43*'Inputs | Price Cap'!I78 -> 0 | J45: ='Output | Price Caps'!J43*'Inputs | Price Cap'!J78 -> 0 | K45: ='Output | Price Caps'!K43*'Inputs | Price Cap'!K78 -> 0 | L45: ='Output | Price Caps'!L43*'Inputs | Price Cap'!L78 -> 0 | M45: ='Output | Price Caps'!M43*'Inputs | Price Cap'!M78 -> 0 | N45: ='Output | Price Caps'!N43*'Inputs | Price Cap'!N78 -> 0
C46: 12 | D46: ='Inputs | Price Cap'!D79 -> 0 | E46: Total | F46: ='Inputs | Price Cap'!F79 -> 0 | G46: ='Inputs | Price Cap'!G79 -> 0 | I46: =I44+I45 -> 0 | J46: 0 | K46: 0 | L46: 0 | M46: 0 | N46: 0
C47: 13 | D47: ='Inputs | Price Cap'!D80 -> 0 | E47: Non-capital | F47: ='Inputs | Price Cap'!F80 -> 0 | G47: ='Inputs | Price Cap'!G80 -> 0 | I47: ='Output | Price Caps'!$I45*'Inputs | Price Cap'!I80 -> 0 | J47: ='Output | Price Caps'!J45*'Inputs | Price Cap'!J80 -> 0 | K47: ='Output | Price Caps'!K45*'Inputs | Price Cap'!K80 -> 0 | L47: ='Output | Price Caps'!L45*'Inputs | Price Cap'!L80 -> 0 | M47: ='Output | Price Caps'!M45*'Inputs | Price Cap'!M80 -> 0 | N47: ='Output | Price Caps'!N45*'Inputs | Price Cap'!N80 -> 0
C48: 13 | D48: ='Inputs | Price Cap'!D81 -> 0 | E48: Capital | F48: ='Inputs | Price Cap'!F81 -> 0 | G48: ='Inputs | Price Cap'!G81 -> 0 | I48: ='Output | Price Caps'!$I46*'Inputs | Price Cap'!I81 -> 0 | J48: ='Output | Price Caps'!J46*'Inputs | Price Cap'!J81 -> 0 | K48: ='Output | Price Caps'!K46*'Inputs | Price Cap'!K81 -> 0 | L48: ='Output | Price Caps'!L46*'Inputs | Price Cap'!L81 -> 0 | M48: ='Output | Price Caps'!M46*'Inputs | Price Cap'!M81 -> 0 | N48: ='Output | Price Caps'!N46*'Inputs | Price Cap'!N81 -> 0
C49: 13 | D49: ='Inputs | Price Cap'!D82 -> 0 | E49: Total | F49: ='Inputs | Price Cap'!F82 -> 0 | G49: ='Inputs | Price Cap'!G82 -> 0 | I49: =I47+I48 -> 0 | J49: 0 | K49: 0 | L49: 0 | M49: 0 | N49: 0
C50: 14 | D50: ='Inputs | Price Cap'!D83 -> 0 | E50: Non-capital | F50: ='Inputs | Price Cap'!F83 -> 0 | G50: ='Inputs | Price Cap'!G83 -> 0 | I50: ='Output | Price Caps'!$I48*'Inputs | Price Cap'!I83 -> 0 | J50: ='Output | Price Caps'!J48*'Inputs | Price Cap'!J83 -> 0 | K50: ='Output | Price Caps'!K48*'Inputs | Price Cap'!K83 -> 0 | L50: ='Output | Price Caps'!L48*'Inputs | Price Cap'!L83 -> 0 | M50: ='Output | Price Caps'!M48*'Inputs | Price Cap'!M83 -> 0 | N50: ='Output | Price Caps'!N48*'Inputs | Price Cap'!N83 -> 0
C51: 14 | D51: ='Inputs | Price Cap'!D84 -> 0 | E51: Capital | F51: ='Inputs | Price Cap'!F84 -> 0 | G51: ='Inputs | Price Cap'!G84 -> 0 | I51: ='Output | Price Caps'!$I49*'Inputs | Price Cap'!I84 -> 0 | J51: ='Output | Price Caps'!J49*'Inputs | Price Cap'!J84 -> 0 | K51: ='Output | Price Caps'!K49*'Inputs | Price Cap'!K84 -> 0 | L51: ='Output | Price Caps'!L49*'Inputs | Price Cap'!L84 -> 0 | M51: ='Output | Price Caps'!M49*'Inputs | Price Cap'!M84 -> 0 | N51: ='Output | Price Caps'!N49*'Inputs | Price Cap'!N84 -> 0
C52: 14 | D52: ='Inputs | Price Cap'!D85 -> 0 | E52: Total | F52: ='Inputs | Price Cap'!F85 -> 0 | G52: ='Inputs | Price Cap'!G85 -> 0 | I52: =I50+I51 -> 0 | J52: 0 | K52: 0 | L52: 0 | M52: 0 | N52: 0
C53: 15 | D53: ='Inputs | Price Cap'!D86 -> 0 | E53: Non-capital | F53: ='Inputs | Price Cap'!F86 -> 0 | G53: ='Inputs | Price Cap'!G86 -> 0 | I53: ='Output | Price Caps'!$I51*'Inputs | Price Cap'!I86 -> 0 | J53: ='Output | Price Caps'!J51*'Inputs | Price Cap'!J86 -> 0 | K53: ='Output | Price Caps'!K51*'Inputs | Price Cap'!K86 -> 0 | L53: ='Output | Price Caps'!L51*'Inputs | Price Cap'!L86 -> 0 | M53: ='Output | Price Caps'!M51*'Inputs | Price Cap'!M86 -> 0 | N53: ='Output | Price Caps'!N51*'Inputs | Price Cap'!N86 -> 0
C54: 15 | D54: ='Inputs | Price Cap'!D87 -> 0 | E54: Capital | F54: ='Inputs | Price Cap'!F87 -> 0 | G54: ='Inputs | Price Cap'!G87 -> 0 | I54: ='Output | Price Caps'!$I52*'Inputs | Price Cap'!I87 -> 0 | J54: ='Output | Price Caps'!J52*'Inputs | Price Cap'!J87 -> 0 | K54: ='Output | Price Caps'!K52*'Inputs | Price Cap'!K87 -> 0 | L54: ='Output | Price Caps'!L52*'Inputs | Price Cap'!L87 -> 0 | M54: ='Output | Price Caps'!M52*'Inputs | Price Cap'!M87 -> 0 | N54: ='Output | Price Caps'!N52*'Inputs | Price Cap'!N87 -> 0
C55: 15 | D55: ='Inputs | Price Cap'!D88 -> 0 | E55: Total | F55: ='Inputs | Price Cap'!F88 -> 0 | G55: ='Inputs | Price Cap'!G88 -> 0 | I55: =I53+I54 -> 0 | J55: 0 | K55: 0 | L55: 0 | M55: 0 | N55: 0
B57: Total Smoothed Revenue
E58: Application | I58: =LEFT(J58,4)-1&"-"&RIGHT(J58,2)-1 -> 2025-26 | J58: =FPFirstYear -> 2026-27 | K58: =LEFT(J58,4)+1&"-"&RIGHT(J58,2)+1 -> 2027-28 | L58: =LEFT(K58,4)+1&"-"&RIGHT(K58,2)+1 -> 2028-29 | M58: 2029-30 | N58: 2030-31
E59: Non-capital | I59: =SUMIFS('Calc | Price Cap'!I$11:I$55,'Output | Price Caps'!$E$9:$E$53,$E59) -> 18500000 | J59: =SUMIFS('Calc | Price Cap'!J$11:J$55,'Output | Price Caps'!$E$9:$E$53,$E59) -> 21749220 | K59: =SUMIFS('Calc | Price Cap'!K$11:K$55,'Output | Price Caps'!$E$9:$E$53,$E59) -> 20282076 | L59: =SUMIFS('Calc | Price Cap'!L$11:L$55,'Output | Price Caps'!$E$9:$E$53,$E59) -> 18915144.3 | M59: =SUMIFS('Calc | Price Cap'!M$11:M$55,'Output | Price Caps'!$E$9:$E$53,$E59) -> 17642266.56 | N59: =SUMIFS('Calc | Price Cap'!N$11:N$55,'Output | Price Caps'!$E$9:$E$53,$E59) -> 16454476.24
E60: Capital | I60: =SUMIFS('Calc | Price Cap'!I$11:I$55,'Output | Price Caps'!$E$9:$E$53,$E60) -> 34900000 | J60: =SUMIFS('Calc | Price Cap'!J$11:J$55,'Output | Price Caps'!$E$9:$E$53,$E60) -> 31320750 | K60: =SUMIFS('Calc | Price Cap'!K$11:K$55,'Output | Price Caps'!$E$9:$E$53,$E60) -> 31165650 | L60: =SUMIFS('Calc | Price Cap'!L$11:L$55,'Output | Price Caps'!$E$9:$E$53,$E60) -> 31010550 | M60: =SUMIFS('Calc | Price Cap'!M$11:M$55,'Output | Price Caps'!$E$9:$E$53,$E60) -> 30870300 | N60: =SUMIFS('Calc | Price Cap'!N$11:N$55,'Output | Price Caps'!$E$9:$E$53,$E60) -> 30730050
E61: Total | I61: =SUMIFS('Calc | Price Cap'!I$11:I$55,'Output | Price Caps'!$E$9:$E$53,$E61) -> 53400000 | J61: =SUMIFS('Calc | Price Cap'!J$11:J$55,'Output | Price Caps'!$E$9:$E$53,$E61) -> 53069970 | K61: =SUMIFS('Calc | Price Cap'!K$11:K$55,'Output | Price Caps'!$E$9:$E$53,$E61) -> 51447726 | L61: =SUMIFS('Calc | Price Cap'!L$11:L$55,'Output | Price Caps'!$E$9:$E$53,$E61) -> 49925694.3 | M61: =SUMIFS('Calc | Price Cap'!M$11:M$55,'Output | Price Caps'!$E$9:$E$53,$E61) -> 48512566.56 | N61: =SUMIFS('Calc | Price Cap'!N$11:N$55,'Output | Price Caps'!$E$9:$E$53,$E61) -> 47184526.24
I63: =(ROUND(I59+I60,0)=ROUND(I61,0))/1 -> 1 | J63: 1 | K63: 1 | L63: 1 | M63: 1 | N63: 1

Sheet Output | Price Caps
C1: ='Title Page'!B8&" v"&'Title Page'!$C$10 -> Final Standardised Metering Pricing Model v1.02 | N1: DNSP: | O1: =IF('Inputs | General'!$G$16="Exit Fees (Vic)","NOT USED",NSP) -> NOT USED | U1: Worksheet check: | V1: =IF(COUNTA($W$5:$W$52)=COUNTIF($W5:$W53,"OK"),"OK","Check") -> OK
C2: =MID(CELL("filename",A1),FIND("]",CELL("filename",A1))+1,255) -> Output | Price Caps | H2: Key: | I2: Input | J2: External Link | K2: Internal Link
B5: RESULT - Price Cap - Annual Charges
I6: Base Year Charges | J6: Price Cap - Annual Charges (nominal)
A7: ▼ Table Filters | C7: Tariff # | D7: Tariff name | E7: Application | F7: Tariff Code | G7: Other designation | I7: =LEFT(J7,4)-1&"-"&RIGHT(J7,2)-1 -> 2025-26 | J7: =FPFirstYear -> 2026-27 | K7: =LEFT(J7,4)+1&"-"&RIGHT(J7,2)+1 -> 2027-28 | L7: =LEFT(K7,4)+1&"-"&RIGHT(K7,2)+1 -> 2028-29 | M7: 2029-30 | N7: 2030-31
C8: Tariff # | D8: Tariff name | E8: Application | F8: Tariff Code | G8: Other designation | H8: Ca | I8: F-RP-1 | J8: F-RP0 | K8: F-RP+1 | L8: F-RP+2 | M8: F-RP+3 | N8: F-RP+4 | O8: Column1
C9: 1 | D9: ='Inputs | Price Cap'!D44 -> Residential Non ToU | E9: Non-capital | F9: ='Inputs | Price Cap'!F44 -> R1 | G9: ='Inputs | Price Cap'!G44 -> Primary | I9: =ROUND('Inputs | Price Cap'!H44,2) -> 10 | J9: =ROUND('Output | Price Caps'!I9*(1-'Inputs | Price Cap'!F$109)*(1+'Inputs | General'!J$26),2) -> 13.06 | K9: =ROUND('Output | Price Caps'!J9*(1-'Inputs | Price Cap'!G$109)*(1+'Inputs | General'!K$26),2) -> 13.53 | L9: =ROUND('Output | Price Caps'!K9*(1-'Inputs | Price Cap'!H$109)*(1+'Inputs | General'!L$26),2) -> 14.02 | M9: =ROUND('Output | Price Caps'!L9*(1-'Inputs | Price Cap'!I$109)*(1+'Inputs | General'!M$26),2) -> 14.53 | N9: =ROUND('Output | Price Caps'!M9*(1-'Inputs | Price Cap'!J$109)*(1+'Inputs | General'!N$26),2) -> 15.06
C10: 1 | D10: ='Inputs | Price Cap'!D45 -> Residential Non ToU | E10: Capital | F10: ='Inputs | Price Cap'!F45 -> R1 | G10: ='Inputs | Price Cap'!G45 -> Primary | I10: =ROUND('Inputs | Price Cap'!H45,2) -> 20 | J10: =ROUND('Output | Price Caps'!I10*(1-'Inputs | Price Cap'!F$125)*(1+'Inputs | General'!J$26),2) -> 17.95 | K10: =ROUND('Output | Price Caps'!J10*(1-'Inputs | Price Cap'!G$125)*(1+'Inputs | General'!K$26),2) -> 17.86 | L10: =ROUND('Output | Price Caps'!K10*(1-'Inputs | Price Cap'!H$125)*(1+'Inputs | General'!L$26),2) -> 17.77 | M10: =ROUND('Output | Price Caps'!L10*(1-'Inputs | Price Cap'!I$125)*(1+'Inputs | General'!M$26),2) -> 17.69 | N10: =ROUND('Output | Price Caps'!M10*(1-'Inputs | Price Cap'!J$125)*(1+'Inputs | General'!N$26),2) -> 17.61
C11: 1 | D11: ='Inputs | Price Cap'!D46 -> Residential Non ToU | E11: Total | F11: ='Inputs | Price Cap'!F46 -> R1 | G11: ='Inputs | Price Cap'!G46 -> Primary | I11: =ROUND('Inputs | Price Cap'!H46,2) -> 30 | J11: =J9+J10 -> 31.01 | K11: =K9+K10 -> 31.39 | L11: =L9+L10 -> 31.79 | M11: =M9+M10 -> 32.22 | N11: =N9+N10 -> 32.67
C12: 2 | D12: ='Inputs | Price Cap'!D47 -> Residential ToU | E12: Non-capital | F12: ='Inputs | Price Cap'!F47 -> R2 | G12: ='Inputs | Price Cap'!G47 -> Primary | I12: =ROUND('Inputs | Price Cap'!H47,2) -> 20 | J12: =ROUND('Output | Price Caps'!I12*(1-'Inputs | Price Cap'!F$109)*(1+'Inputs | General'!J$26),2) -> 26.13 | K12: =ROUND('Output | Price Caps'!J12*(1-'Inputs | Price Cap'!G$109)*(1+'Inputs | General'!K$26),2) -> 27.08 | L12: =ROUND('Output | Price Caps'!K12*(1-'Inputs | Price Cap'!H$109)*(1+'Inputs | General'!L$26),2) -> 28.06 | M12: =ROUND('Output | Price Caps'!L12*(1-'Inputs | Price Cap'!I$109)*(1+'Inputs | General'!M$26),2) -> 29.08 | N12: =ROUND('Output | Price Caps'!M12*(1-'Inputs | Price Cap'!J$109)*(1+'Inputs | General'!N$26),2) -> 30.13
C13: 2 | D13: ='Inputs | Price Cap'!D48 -> Residential ToU | E13: Capital | F13: ='Inputs | Price Cap'!F48 -> R2 | G13: ='Inputs | Price Cap'!G48 -> Primary | I13: =ROUND('Inputs | Price Cap'!H48,2) -> 20 | J13: =ROUND('Output | Price Caps'!I13*(1-'Inputs | Price Cap'!F$125)*(1+'Inputs | General'!J$26),2) -> 17.95 | K13: =ROUND('Output | Price Caps'!J13*(1-'Inputs | Price Cap'!G$125)*(1+'Inputs | General'!K$26),2) -> 17.86 | L13: =ROUND('Output | Price Caps'!K13*(1-'Inputs | Price Cap'!H$125)*(1+'Inputs | General'!L$26),2) -> 17.77 | M13: =ROUND('Output | Price Caps'!L13*(1-'Inputs | Price Cap'!I$125)*(1+'Inputs | General'!M$26),2) -> 17.69 | N13: =ROUND('Output | Price Caps'!M13*(1-'Inputs | Price Cap'!J$125)*(1+'Inputs | General'!N$26),2) -> 17.61
C14: 2 | D14: ='Inputs | Price Cap'!D49 -> Residential ToU | E14: Total | F14: ='Inputs | Price Cap'!F49 -> R2 | G14: ='Inputs | Price Cap'!G49 -> Primary | I14: =ROUND('Inputs | Price Cap'!H49,2) -> 40 | J14: =J12+J13 -> 44.08 | K14: =K12+K13 -> 44.94 | L14: =L12+L13 -> 45.83 | M14: =M12+M13 -> 46.77 | N14: =N12+N13 -> 47.74
C15: 3 | D15: ='Inputs | Price Cap'!D50 -> Controlled load | E15: Non-capital | F15: ='Inputs | Price Cap'!F50 -> B1 | G15: ='Inputs | Price Cap'!G50 -> Secondary | I15: =ROUND('Inputs | Price Cap'!H50,2) -> 1 | J15: =ROUND('Output | Price Caps'!I15*(1-'Inputs | Price Cap'!F$109)*(1+'Inputs | General'!J$26),2) -> 1.31 | K15: =ROUND('Output | Price Caps'!J15*(1-'Inputs | Price Cap'!G$109)*(1+'Inputs | General'!K$26),2) -> 1.36 | L15: =ROUND('Output | Price Caps'!K15*(1-'Inputs | Price Cap'!H$109)*(1+'Inputs | General'!L$26),2) -> 1.41 | M15: =ROUND('Output | Price Caps'!L15*(1-'Inputs | Price Cap'!I$109)*(1+'Inputs | General'!M$26),2) -> 1.46 | N15: =ROUND('Output | Price Caps'!M15*(1-'Inputs | Price Cap'!J$109)*(1+'Inputs | General'!N$26),2) -> 1.51
C16: 3 | D16: ='Inputs | Price Cap'!D51 -> Controlled load | E16: Capital | F16: ='Inputs | Price Cap'!F51 -> B1 | G16: ='Inputs | Price Cap'!G51 -> Secondary | I16: =ROUND('Inputs | Price Cap'!H51,2) -> 10 | J16: =ROUND('Output | Price Caps'!I16*(1-'Inputs | Price Cap'!F$125)*(1+'Inputs | General'!J$26),2) -> 8.97 | K16: =ROUND('Output | Price Caps'!J16*(1-'Inputs | Price Cap'!G$125)*(1+'Inputs | General'!K$26),2) -> 8.93 | L16: =ROUND('Output | Price Caps'!K16*(1-'Inputs | Price Cap'!H$125)*(1+'Inputs | General'!L$26),2) -> 8.89 | M16: =ROUND('Output | Price Caps'!L16*(1-'Inputs | Price Cap'!I$125)*(1+'Inputs | General'!M$26),2) -> 8.85 | N16: =ROUND('Output | Price Caps'!M16*(1-'Inputs | Price Cap'!J$125)*(1+'Inputs | General'!N$26),2) -> 8.81
C17: 3 | D17: ='Inputs | Price Cap'!D52 -> Controlled load | E17: Total | F17: ='Inputs | Price Cap'!F52 -> B1 | G17: ='Inputs | Price Cap'!G52 -> Secondary | I17: =ROUND('Inputs | Price Cap'!H52,2) -> 11 | J17: =J15+J16 -> 10.28 | K17: =K15+K16 -> 10.29 | L17: =L15+L16 -> 10.3 | M17: =M15+M16 -> 10.31 | N17: =N15+N16 -> 10.32
C18: 4 | D18: ='Inputs | Price Cap'!D53 -> Small Business Non ToU | E18: Non-capital | F18: ='Inputs | Price Cap'!F53 -> B2 | G18: ='Inputs | Price Cap'!G53 -> Primary | I18: =ROUND('Inputs | Price Cap'!H53,2) -> 10 | J18: =ROUND('Output | Price Caps'!I18*(1-'Inputs | Price Cap'!F$109)*(1+'Inputs | General'!J$26),2) -> 13.06 | K18: =ROUND('Output | Price Caps'!J18*(1-'Inputs | Price Cap'!G$109)*(1+'Inputs | General'!K$26),2) -> 13.53 | L18: =ROUND('Output | Price Caps'!K18*(1-'Inputs | Price Cap'!H$109)*(1+'Inputs | General'!L$26),2) -> 14.02 | M18: =ROUND('Output | Price Caps'!L18*(1-'Inputs | Price Cap'!I$109)*(1+'Inputs | General'!M$26),2) -> 14.53 | N18: =ROUND('Output | Price Caps'!M18*(1-'Inputs | Price Cap'!J$109)*(1+'Inputs | General'!N$26),2) -> 15.06
C19: 4 | D19: ='Inputs | Price Cap'!D54 -> Small Business Non ToU | E19: Capital | F19: ='Inputs | Price Cap'!F54 -> B2 | G19: ='Inputs | Price Cap'!G54 -> Primary | I19: =ROUND('Inputs | Price Cap'!H54,2) -> 30 | J19: =ROUND('Output | Price Caps'!I19*(1-'Inputs | Price Cap'!F$125)*(1+'Inputs | General'!J$26),2) -> 26.92 | K19: =ROUND('Output | Price Caps'!J19*(1-'Inputs | Price Cap'!G$125)*(1+'Inputs | General'!K$26),2) -> 26.79 | L19: =ROUND('Output | Price Caps'!K19*(1-'Inputs | Price Cap'!H$125)*(1+'Inputs | General'!L$26),2) -> 26.66 | M19: =ROUND('Output | Price Caps'!L19*(1-'Inputs | Price Cap'!I$125)*(1+'Inputs | General'!M$26),2) -> 26.53 | N19: =ROUND('Output | Price Caps'!M19*(1-'Inputs | Price Cap'!J$125)*(1+'Inputs | General'!N$26),2) -> 26.4
C20: 4 | D20: ='Inputs | Price Cap'!D55 -> Small Business Non ToU | E20: Total | F20: ='Inputs | Price Cap'!F55 -> B2 | G20: ='Inputs | Price Cap'!G55 -> Primary | I20: =ROUND('Inputs | Price Cap'!H55,2) -> 40 | J20: =J18+J19 -> 39.98 | K20: =K18+K19 -> 40.32 | L20: =L18+L19 -> 40.68 | M20: =M18+M19 -> 41.06 | N20: =N18+N19 -> 41.46
C21: 5 | D21: ='Inputs | Price Cap'!D56 -> Small Business ToU | E21: Non-capital | F21: ='Inputs | Price Cap'!F56 -> LV1 | G21: ='Inputs | Price Cap'!G56 -> Primary | I21: =ROUND('Inputs | Price Cap'!H56,2) -> 25 | J21: =ROUND('Output | Price Caps'!I21*(1-'Inputs | Price Cap'!F$109)*(1+'Inputs | General'!J$26),2) -> 32.66 | K21: =ROUND('Output | Price Caps'!J21*(1-'Inputs | Price Cap'!G$109)*(1+'Inputs | General'!K$26),2) -> 33.84 | L21: =ROUND('Output | Price Caps'!K21*(1-'Inputs | Price Cap'!H$109)*(1+'Inputs | General'!L$26),2) -> 35.07 | M21: =ROUND('Output | Price Caps'!L21*(1-'Inputs | Price Cap'!I$109)*(1+'Inputs | General'!M$26),2) -> 36.34 | N21: =ROUND('Output | Price Caps'!M21*(1-'Inputs | Price Cap'!J$109)*(1+'Inputs | General'!N$26),2) -> 37.66
C22: 5 | D22: ='Inputs | Price Cap'!D57 -> Small Business ToU | E22: Capital | F22: ='Inputs | Price Cap'!F57 -> LV1 | G22: ='Inputs | Price Cap'!G57 -> Primary | I22: =ROUND('Inputs | Price Cap'!H57,2) -> 20 | J22: =ROUND('Output | Price Caps'!I22*(1-'Inputs | Price Cap'!F$125)*(1+'Inputs | General'!J$26),2) -> 17.95 | K22: =ROUND('Output | Price Caps'!J22*(1-'Inputs | Price Cap'!G$125)*(1+'Inputs | General'!K$26),2) -> 17.86 | L22: =ROUND('Output | Price Caps'!K22*(1-'Inputs | Price Cap'!H$125)*(1+'Inputs | General'!L$26),2) -> 17.77 | M22: =ROUND('Output | Price Caps'!L22*(1-'Inputs | Price Cap'!I$125)*(1+'Inputs | General'!M$26),2) -> 17.69 | N22: =ROUND('Output | Price Caps'!M22*(1-'Inputs | Price Cap'!J$125)*(1+'Inputs | General'!N$26),2) -> 17.61
C23: 5 | D23: ='Inputs | Price Cap'!D58 -> Small Business ToU | E23: Total | F23: ='Inputs | Price Cap'!F58 -> LV1 | G23: ='Inputs | Price Cap'!G58 -> Primary | I23: =ROUND('Inputs | Price Cap'!H58,2) -> 45 | J23: =J21+J22 -> 50.61 | K23: =K21+K22 -> 51.7 | L23: =L21+L22 -> 52.84 | M23: =M21+M22 -> 54.03 | N23: =N21+N22 -> 55.27
C24: 6 | D24: ='Inputs | Price Cap'!D59 -> LV 40-160 MWh (System) | E24: Non-capital | F24: ='Inputs | Price Cap'!F59 -> 0 | G24: ='Inputs | Price Cap'!G59 -> 0 | I24: =ROUND('Inputs | Price Cap'!H59,2) -> 45 | J24: =ROUND('Output | Price Caps'!I24*(1-'Inputs | Price Cap'!F$109)*(1+'Inputs | General'!J$26),2) -> 58.78 | K24: =ROUND('Output | Price Caps'!J24*(1-'Inputs | Price Cap'!G$109)*(1+'Inputs | General'!K$26),2) -> 60.91 | L24: =ROUND('Output | Price Caps'!K24*(1-'Inputs | Price Cap'!H$109)*(1+'Inputs | General'!L$26),2) -> 63.12 | M24: =ROUND('Output | Price Caps'!L24*(1-'Inputs | Price Cap'!I$109)*(1+'Inputs | General'!M$26),2) -> 65.41 | N24: =ROUND('Output | Price Caps'!M24*(1-'Inputs | Price Cap'!J$109)*(1+'Inputs | General'!N$26),2) -> 67.78
C25: 6 | D25: ='Inputs | Price Cap'!D60 -> LV 40-160 MWh (System) | E25: Capital | F25: ='Inputs | Price Cap'!F60 -> 0 | G25: ='Inputs | Price Cap'!G60 -> 0 | I25: =ROUND('Inputs | Price Cap'!H60,2) -> 25 | J25: =ROUND('Output | Price Caps'!I25*(1-'Inputs | Price Cap'!F$125)*(1+'Inputs | General'!J$26),2) -> 22.43 | K25: =ROUND('Output | Price Caps'!J25*(1-'Inputs | Price Cap'!G$125)*(1+'Inputs | General'!K$26),2) -> 22.32 | L25: =ROUND('Output | Price Caps'!K25*(1-'Inputs | Price Cap'!H$125)*(1+'Inputs | General'!L$26),2) -> 22.21 | M25: =ROUND('Output | Price Caps'!L25*(1-'Inputs | Price Cap'!I$125)*(1+'Inputs | General'!M$26),2) -> 22.1 | N25: =ROUND('Output | Price Caps'!M25*(1-'Inputs | Price Cap'!J$125)*(1+'Inputs | General'!N$26),2) -> 21.99
C26: 6 | D26: ='Inputs | Price Cap'!D61 -> LV 40-160 MWh (System) | E26: Total | F26: ='Inputs | Price Cap'!F61 -> 0 | G26: ='Inputs | Price Cap'!G61 -> 0 | I26: =ROUND('Inputs | Price Cap'!H61,2) -> 70 | J26: =J24+J25 -> 81.21 | K26: =K24+K25 -> 83.23 | L26: =L24+L25 -> 85.33 | M26: =M24+M25 -> 87.51 | N26: =N24+N25 -> 89.77
C27: 7 | D27: ='Inputs | Price Cap'!D62 -> 0 | E27: Non-capital | F27: ='Inputs | Price Cap'!F62 -> 0 | G27: ='Inputs | Price Cap'!G62 -> 0 | I27: =ROUND('Inputs | Price Cap'!H62,2) -> 0 | J27: =ROUND('Output | Price Caps'!I27*(1-'Inputs | Price Cap'!F$109)*(1+'Inputs | General'!J$26),2) -> 0 | K27: =ROUND('Output | Price Caps'!J27*(1-'Inputs | Price Cap'!G$109)*(1+'Inputs | General'!K$26),2) -> 0 | L27: =ROUND('Output | Price Caps'!K27*(1-'Inputs | Price Cap'!H$109)*(1+'Inputs | General'!L$26),2) -> 0 | M27: =ROUND('Output | Price Caps'!L27*(1-'Inputs | Price Cap'!I$109)*(1+'Inputs | General'!M$26),2) -> 0 | N27: =ROUND('Output | Price Caps'!M27*(1-'Inputs | Price Cap'!J$109)*(1+'Inputs | General'!N$26),2) -> 0
C28: 7 | D28: ='Inputs | Price Cap'!D63 -> 0 | E28: Capital | F28: ='Inputs | Price Cap'!F63 -> 0 | G28: ='Inputs | Price Cap'!G63 -> 0 | I28: =ROUND('Inputs | Price Cap'!H63,2) -> 0 | J28: =ROUND('Output | Price Caps'!I28*(1-'Inputs | Price Cap'!F$125)*(1+'Inputs | General'!J$26),2) -> 0 | K28: =ROUND('Output | Price Caps'!J28*(1-'Inputs | Price Cap'!G$125)*(1+'Inputs | General'!K$26),2) -> 0 | L28: =ROUND('Output | Price Caps'!K28*(1-'Inputs | Price Cap'!H$125)*(1+'Inputs | General'!L$26),2) -> 0 | M28: =ROUND('Output | Price Caps'!L28*(1-'Inputs | Price Cap'!I$125)*(1+'Inputs | General'!M$26),2) -> 0 | N28: =ROUND('Output | Price Caps'!M28*(1-'Inputs | Price Cap'!J$125)*(1+'Inputs | General'!N$26),2) -> 0
C29: 7 | D29: ='Inputs | Price Cap'!D64 -> 0 | E29: Total | F29: ='Inputs | Price Cap'!F64 -> 0 | G29: ='Inputs | Price Cap'!G64 -> 0 | I29: =ROUND('Inputs | Price Cap'!H64,2) -> 0 | J29: =J27+J28 -> 0 | K29: =K27+K28 -> 0 | L29: =L27+L28 -> 0 | M29: =M27+M28 -> 0 | N29: =N27+N28 -> 0
C30: 8 | D30: ='Inputs | Price Cap'!D65 -> 0 | E30: Non-capital | F30: ='Inputs | Price Cap'!F65 -> 0 | G30: ='Inputs | Price Cap'!G65 -> 0 | I30: =ROUND('Inputs | Price Cap'!H65,2) -> 0 | J30: =ROUND('Output | Price Caps'!I30*(1-'Inputs | Price Cap'!F$109)*(1+'Inputs | General'!J$26),2) -> 0 | K30: =ROUND('Output | Price Caps'!J30*(1-'Inputs | Price Cap'!G$109)*(1+'Inputs | General'!K$26),2) -> 0 | L30: =ROUND('Output | Price Caps'!K30*(1-'Inputs | Price Cap'!H$109)*(1+'Inputs | General'!L$26),2) -> 0 | M30: =ROUND('Output | Price Caps'!L30*(1-'Inputs | Price Cap'!I$109)*(1+'Inputs | General'!M$26),2) -> 0 | N30: =ROUND('Output | Price Caps'!M30*(1-'Inputs | Price Cap'!J$109)*(1+'Inputs | General'!N$26),2) -> 0
C31: 8 | D31: ='Inputs | Price Cap'!D66 -> 0 | E31: Capital | F31: ='Inputs | Price Cap'!F66 -> 0 | G31: ='Inputs | Price Cap'!G66 -> 0 | I31: =ROUND('Inputs | Price Cap'!H66,2) -> 0 | J31: =ROUND('Output | Price Caps'!I31*(1-'Inputs | Price Cap'!F$125)*(1+'Inputs | General'!J$26),2) -> 0 | K31: =ROUND('Output | Price Caps'!J31*(1-'Inputs | Price Cap'!G$125)*(1+'Inputs | General'!K$26),2) -> 0 | L31: =ROUND('Output | Price Caps'!K31*(1-'Inputs | Price Cap'!H$125)*(1+'Inputs | General'!L$26),2) -> 0 | M31: =ROUND('Output | Price Caps'!L31*(1-'Inputs | Price Cap'!I$125)*(1+'Inputs | General'!M$26),2) -> 0 | N31: =ROUND('Output | Price Caps'!M31*(1-'Inputs | Price Cap'!J$125)*(1+'Inputs | General'!N$26),2) -> 0
C32: 8 | D32: ='Inputs | Price Cap'!D67 -> 0 | E32: Total | F32: ='Inputs | Price Cap'!F67 -> 0 | G32: ='Inputs | Price Cap'!G67 -> 0 | I32: =ROUND('Inputs | Price Cap'!H67,2) -> 0 | J32: =J30+J31 -> 0 | K32: =K30+K31 -> 0 | L32: =L30+L31 -> 0 | M32: =M30+M31 -> 0 | N32: =N30+N31 -> 0
C33: 9 | D33: ='Inputs | Price Cap'!D68 -> 0 | E33: Non-capital | F33: ='Inputs | Price Cap'!F68 -> 0 | G33: ='Inputs | Price Cap'!G68 -> 0 | I33: =ROUND('Inputs | Price Cap'!H68,2) -> 0 | J33: =ROUND('Output | Price Caps'!I33*(1-'Inputs | Price Cap'!F$109)*(1+'Inputs | General'!J$26),2) -> 0 | K33: =ROUND('Output | Price Caps'!J33*(1-'Inputs | Price Cap'!G$109)*(1+'Inputs | General'!K$26),2) -> 0 | L33: =ROUND('Output | Price Caps'!K33*(1-'Inputs | Price Cap'!H$109)*(1+'Inputs | General'!L$26),2) -> 0 | M33: =ROUND('Output | Price Caps'!L33*(1-'Inputs | Price Cap'!I$109)*(1+'Inputs | General'!M$26),2) -> 0 | N33: =ROUND('Output | Price Caps'!M33*(1-'Inputs | Price Cap'!J$109)*(1+'Inputs | General'!N$26),2) -> 0
C34: 9 | D34: ='Inputs | Price Cap'!D69 -> 0 | E34: Capital | F34: ='Inputs | Price Cap'!F69 -> 0 | G34: ='Inputs | Price Cap'!G69 -> 0 | I34: =ROUND('Inputs | Price Cap'!H69,2) -> 0 | J34: =ROUND('Output | Price Caps'!I34*(1-'Inputs | Price Cap'!F$125)*(1+'Inputs | General'!J$26),2) -> 0 | K34: =ROUND('Output | Price Caps'!J34*(1-'Inputs | Price Cap'!G$125)*(1+'Inputs | General'!K$26),2) -> 0 | L34: =ROUND('Output | Price Caps'!K34*(1-'Inputs | Price Cap'!H$125)*(1+'Inputs | General'!L$26),2) -> 0 | M34: =ROUND('Output | Price Caps'!L34*(1-'Inputs | Price Cap'!I$125)*(1+'Inputs | General'!M$26),2) -> 0 | N34: =ROUND('Output | Price Caps'!M34*(1-'Inputs | Price Cap'!J$125)*(1+'Inputs | General'!N$26),2) -> 0
C35: 9 | D35: ='Inputs | Price Cap'!D70 -> 0 | E35: Total | F35: ='Inputs | Price Cap'!F70 -> 0 | G35: ='Inputs | Price Cap'!G70 -> 0 | I35: =ROUND('Inputs | Price Cap'!H70,2) -> 0 | J35: =J33+J34 -> 0 | K35: =K33+K34 -> 0 | L35: =L33+L34 -> 0 | M35: =M33+M34 -> 0 | N35: =N33+N34 -> 0
C36: 10 | D36: ='Inputs | Price Cap'!D71 -> 0 | E36: Non-capital | F36: ='Inputs | Price Cap'!F71 -> 0 | G36: ='Inputs | Price Cap'!G71 -> 0 | I36: =ROUND('Inputs | Price Cap'!H71,2) -> 0 | J36: =ROUND('Output | Price Caps'!I36*(1-'Inputs | Price Cap'!F$109)*(1+'Inputs | General'!J$26),2) -> 0 | K36: =ROUND('Output | Price Caps'!J36*(1-'Inputs | Price Cap'!G$109)*(1+'Inputs | General'!K$26),2) -> 0 | L36: =ROUND('Output | Price Caps'!K36*(1-'Inputs | Price Cap'!H$109)*(1+'Inputs | General'!L$26),2) -> 0 | M36: =ROUND('Output | Price Caps'!L36*(1-'Inputs | Price Cap'!I$109)*(1+'Inputs | General'!M$26),2) -> 0 | N36: =ROUND('Output | Price Caps'!M36*(1-'Inputs | Price Cap'!J$109)*(1+'Inputs | General'!N$26),2) -> 0
C37: 10 | D37: ='Inputs | Price Cap'!D72 -> 0 | E37: Capital | F37: ='Inputs | Price Cap'!F72 -> 0 | G37: ='Inputs | Price Cap'!G72 -> 0 | I37: =ROUND('Inputs | Price Cap'!H72,2) -> 0 | J37: =ROUND('Output | Price Caps'!I37*(1-'Inputs | Price Cap'!F$125)*(1+'Inputs | General'!J$26),2) -> 0 | K37: =ROUND('Output | Price Caps'!J37*(1-'Inputs | Price Cap'!G$125)*(1+'Inputs | General'!K$26),2) -> 0 | L37: =ROUND('Output | Price Caps'!K37*(1-'Inputs | Price Cap'!H$125)*(1+'Inputs | General'!L$26),2) -> 0 | M37: =ROUND('Output | Price Caps'!L37*(1-'Inputs | Price Cap'!I$125)*(1+'Inputs | General'!M$26),2) -> 0 | N37: =ROUND('Output | Price Caps'!M37*(1-'Inputs | Price Cap'!J$125)*(1+'Inputs | General'!N$26),2) -> 0
C38: 10 | D38: ='Inputs | Price Cap'!D73 -> 0 | E38: Total | F38: ='Inputs | Price Cap'!F73 -> 0 | G38: ='Inputs | Price Cap'!G73 -> 0 | I38: =ROUND('Inputs | Price Cap'!H73,2) -> 0 | J38: =J36+J37 -> 0 | K38: =K36+K37 -> 0 | L38: =L36+L37 -> 0 | M38: =M36+M37 -> 0 | N38: =N36+N37 -> 0
C39: 11 | D39: ='Inputs | Price Cap'!D74 -> 0 | E39: Non-capital | F39: ='Inputs | Price Cap'!F74 -> 0 | G39: ='Inputs | Price Cap'!G74 -> 0 | I39: =ROUND('Inputs | Price Cap'!H74,2) -> 0 | J39: =ROUND('Output | Price Caps'!I39*(1-'Inputs | Price Cap'!F$109)*(1+'Inputs | General'!J$26),2) -> 0 | K39: =ROUND('Output | Price Caps'!J39*(1-'Inputs | Price Cap'!G$109)*(1+'Inputs | General'!K$26),2) -> 0 | L39: =ROUND('Output | Price Caps'!K39*(1-'Inputs | Price Cap'!H$109)*(1+'Inputs | General'!L$26),2) -> 0 | M39: =ROUND('Output | Price Caps'!L39*(1-'Inputs | Price Cap'!I$109)*(1+'Inputs | General'!M$26),2) -> 0 | N39: =ROUND('Output | Price Caps'!M39*(1-'Inputs | Price Cap'!J$109)*(1+'Inputs | General'!N$26),2) -> 0
C40: 11 | D40: ='Inputs | Price Cap'!D75 -> 0 | E40: Capital | F40: ='Inputs | Price Cap'!F75 -> 0 | G40: ='Inputs | Price Cap'!G75 -> 0 | I40: =ROUND('Inputs | Price Cap'!H75,2) -> 0 | J40: =ROUND('Output | Price Caps'!I40*(1-'Inputs | Price Cap'!F$125)*(1+'Inputs | General'!J$26),2) -> 0 | K40: =ROUND('Output | Price Caps'!J40*(1-'Inputs | Price Cap'!G$125)*(1+'Inputs | General'!K$26),2) -> 0 | L40: =ROUND('Output | Price Caps'!K40*(1-'Inputs | Price Cap'!H$125)*(1+'Inputs | General'!L$26),2) -> 0 | M40: =ROUND('Output | Price Caps'!L40*(1-'Inputs | Price Cap'!I$125)*(1+'Inputs | General'!M$26),2) -> 0 | N40: =ROUND('Output | Price Caps'!M40*(1-'Inputs | Price Cap'!J$125)*(1+'Inputs | General'!N$26),2) -> 0
C41: 11 | D41: ='Inputs | Price Cap'!D76 -> 0 | E41: Total | F41: ='Inputs | Price Cap'!F76 -> 0 | G41: ='Inputs | Price Cap'!G76 -> 0 | I41: =ROUND('Inputs | Price Cap'!H76,2) -> 0 | J41: =J39+J40 -> 0 | K41: =K39+K40 -> 0 | L41: =L39+L40 -> 0 | M41: =M39+M40 -> 0 | N41: =N39+N40 -> 0
C42: 12 | D42: ='Inputs | Price Cap'!D77 -> 0 | E42: Non-capital | F42: ='Inputs | Price Cap'!F77 -> 0 | G42: ='Inputs | Price Cap'!G77 -> 0 | I42: =ROUND('Inputs | Price Cap'!H77,2) -> 0 | J42: =ROUND('Output | Price Caps'!I42*(1-'Inputs | Price Cap'!F$109)*(1+'Inputs | General'!J$26),2) -> 0 | K42: =ROUND('Output | Price Caps'!J42*(1-'Inputs | Price Cap'!G$109)*(1+'Inputs | General'!K$26),2) -> 0 | L42: =ROUND('Output | Price Caps'!K42*(1-'Inputs | Price Cap'!H$109)*(1+'Inputs | General'!L$26),2) -> 0 | M42: =ROUND('Output | Price Caps'!L42*(1-'Inputs | Price Cap'!I$109)*(1+'Inputs | General'!M$26),2) -> 0 | N42: =ROUND('Output | Price Caps'!M42*(1-'Inputs | Price Cap'!J$109)*(1+'Inputs | General'!N$26),2) -> 0
C43: 12 | D43: ='Inputs | Price Cap'!D78 -> 0 | E43: Capital | F43: ='Inputs | Price Cap'!F78 -> 0 | G43: ='Inputs | Price Cap'!G78 -> 0 | I43: =ROUND('Inputs | Price Cap'!H78,2) -> 0 | J43: =ROUND('Output | Price Caps'!I43*(1-'Inputs | Price Cap'!F$125)*(1+'Inputs | General'!J$26),2) -> 0 | K43: =ROUND('Output | Price Caps'!J43*(1-'Inputs | Price Cap'!G$125)*(1+'Inputs | General'!K$26),2) -> 0 | L43: =ROUND('Output | Price Caps'!K43*(1-'Inputs | Price Cap'!H$125)*(1+'Inputs | General'!L$26),2) -> 0 | M43: =ROUND('Output | Price Caps'!L43*(1-'Inputs | Price Cap'!I$125)*(1+'Inputs | General'!M$26),2) -> 0 | N43: =ROUND('Output | Price Caps'!M43*(1-'Inputs | Price Cap'!J$125)*(1+'Inputs | General'!N$26),2) -> 0
C44: 12 | D44: ='Inputs | Price Cap'!D79 -> 0 | E44: Total | F44: ='Inputs | Price Cap'!F79 -> 0 | G44: ='Inputs | Price Cap'!G79 -> 0 | I44: =ROUND('Inputs | Price Cap'!H79,2) -> 0 | J44: =J42+J43 -> 0 | K44: =K42+K43 -> 0 | L44: =L42+L43 -> 0 | M44: =M42+M43 -> 0 | N44: =N42+N43 -> 0
C45: 13 | D45: ='Inputs | Price Cap'!D80 -> 0 | E45: Non-capital | F45: ='Inputs | Price Cap'!F80 -> 0 | G45: ='Inputs | Price Cap'!G80 -> 0 | I45: =ROUND('Inputs | Price Cap'!H80,2) -> 0 | J45: =ROUND('Output | Price Caps'!I45*(1-'Inputs | Price Cap'!F$109)*(1+'Inputs | General'!J$26),2) -> 0 | K45: =ROUND('Output | Price Caps'!J45*(1-'Inputs | Price Cap'!G$109)*(1+'Inputs | General'!K$26),2) -> 0 | L45: =ROUND('Output | Price Caps'!K45*(1-'Inputs | Price Cap'!H$109)*(1+'Inputs | General'!L$26),2) -> 0 | M45: =ROUND('Output | Price Caps'!L45*(1-'Inputs | Price Cap'!I$109)*(1+'Inputs | General'!M$26),2) -> 0 | N45: =ROUND('Output | Price Caps'!M45*(1-'Inputs | Price Cap'!J$109)*(1+'Inputs | General'!N$26),2) -> 0
C46: 13 | D46: ='Inputs | Price Cap'!D81 -> 0 | E46: Capital | F46: ='Inputs | Price Cap'!F81 -> 0 | G46: ='Inputs | Price Cap'!G81 -> 0 | I46: =ROUND('Inputs | Price Cap'!H81,2) -> 0 | J46: =ROUND('Output | Price Caps'!I46*(1-'Inputs | Price Cap'!F$125)*(1+'Inputs | General'!J$26),2) -> 0 | K46: =ROUND('Output | Price Caps'!J46*(1-'Inputs | Price Cap'!G$125)*(1+'Inputs | General'!K$26),2) -> 0 | L46: =ROUND('Output | Price Caps'!K46*(1-'Inputs | Price Cap'!H$125)*(1+'Inputs | General'!L$26),2) -> 0 | M46: =ROUND('Output | Price Caps'!L46*(1-'Inputs | Price Cap'!I$125)*(1+'Inputs | General'!M$26),2) -> 0 | N46: =ROUND('Output | Price Caps'!M46*(1-'Inputs | Price Cap'!J$125)*(1+'Inputs | General'!N$26),2) -> 0
C47: 13 | D47: ='Inputs | Price Cap'!D82 -> 0 | E47: Total | F47: ='Inputs | Price Cap'!F82 -> 0 | G47: ='Inputs | Price Cap'!G82 -> 0 | I47: =ROUND('Inputs | Price Cap'!H82,2) -> 0 | J47: =J45+J46 -> 0 | K47: =K45+K46 -> 0 | L47: =L45+L46 -> 0 | M47: =M45+M46 -> 0 | N47: =N45+N46 -> 0
C48: 14 | D48: ='Inputs | Price Cap'!D83 -> 0 | E48: Non-capital | F48: ='Inputs | Price Cap'!F83 -> 0 | G48: ='Inputs | Price Cap'!G83 -> 0 | I48: =ROUND('Inputs | Price Cap'!H83,2) -> 0 | J48: =ROUND('Output | Price Caps'!I48*(1-'Inputs | Price Cap'!F$109)*(1+'Inputs | General'!J$26),2) -> 0 | K48: =ROUND('Output | Price Caps'!J48*(1-'Inputs | Price Cap'!G$109)*(1+'Inputs | General'!K$26),2) -> 0 | L48: =ROUND('Output | Price Caps'!K48*(1-'Inputs | Price Cap'!H$109)*(1+'Inputs | General'!L$26),2) -> 0 | M48: =ROUND('Output | Price Caps'!L48*(1-'Inputs | Price Cap'!I$109)*(1+'Inputs | General'!M$26),2) -> 0 | N48: =ROUND('Output | Price Caps'!M48*(1-'Inputs | Price Cap'!J$109)*(1+'Inputs | General'!N$26),2) -> 0
C49: 14 | D49: ='Inputs | Price Cap'!D84 -> 0 | E49: Capital | F49: ='Inputs | Price Cap'!F84 -> 0 | G49: ='Inputs | Price Cap'!G84 -> 0 | I49: =ROUND('Inputs | Price Cap'!H84,2) -> 0 | J49: =ROUND('Output | Price Caps'!I49*(1-'Inputs | Price Cap'!F$125)*(1+'Inputs | General'!J$26),2) -> 0 | K49: =ROUND('Output | Price Caps'!J49*(1-'Inputs | Price Cap'!G$125)*(1+'Inputs | General'!K$26),2) -> 0 | L49: =ROUND('Output | Price Caps'!K49*(1-'Inputs | Price Cap'!H$125)*(1+'Inputs | General'!L$26),2) -> 0 | M49: =ROUND('Output | Price Caps'!L49*(1-'Inputs | Price Cap'!I$125)*(1+'Inputs | General'!M$26),2) -> 0 | N49: =ROUND('Output | Price Caps'!M49*(1-'Inputs | Price Cap'!J$125)*(1+'Inputs | General'!N$26),2) -> 0
C50: 14 | D50: ='Inputs | Price Cap'!D85 -> 0 | E50: Total | F50: ='Inputs | Price Cap'!F85 -> 0 | G50: ='Inputs | Price Cap'!G85 -> 0 | I50: =ROUND('Inputs | Price Cap'!H85,2) -> 0 | J50: =J48+J49 -> 0 | K50: =K48+K49 -> 0 | L50: =L48+L49 -> 0 | M50: =M48+M49 -> 0 | N50: =N48+N49 -> 0
C51: 15 | D51: ='Inputs | Price Cap'!D86 -> 0 | E51: Non-capital | F51: ='Inputs | Price Cap'!F86 -> 0 | G51: ='Inputs | Price Cap'!G86 -> 0 | I51: =ROUND('Inputs | Price Cap'!H86,2) -> 0 | J51: =ROUND('Output | Price Caps'!I51*(1-'Inputs | Price Cap'!F$109)*(1+'Inputs | General'!J$26),2) -> 0 | K51: =ROUND('Output | Price Caps'!J51*(1-'Inputs | Price Cap'!G$109)*(1+'Inputs | General'!K$26),2) -> 0 | L51: =ROUND('Output | Price Caps'!K51*(1-'Inputs | Price Cap'!H$109)*(1+'Inputs | General'!L$26),2) -> 0 | M51: =ROUND('Output | Price Caps'!L51*(1-'Inputs | Price Cap'!I$109)*(1+'Inputs | General'!M$26),2) -> 0 | N51: =ROUND('Output | Price Caps'!M51*(1-'Inputs | Price Cap'!J$109)*(1+'Inputs | General'!N$26),2) -> 0
C52: 15 | D52: ='Inputs | Price Cap'!D87 -> 0 | E52: Capital | F52: ='Inputs | Price Cap'!F87 -> 0 | G52: ='Inputs | Price Cap'!G87 -> 0 | I52: =ROUND('Inputs | Price Cap'!H87,2) -> 0 | J52: =ROUND('Output | Price Caps'!I52*(1-'Inputs | Price Cap'!F$125)*(1+'Inputs | General'!J$26),2) -> 0 | K52: =ROUND('Output | Price Caps'!J52*(1-'Inputs | Price Cap'!G$125)*(1+'Inputs | General'!K$26),2) -> 0 | L52: =ROUND('Output | Price Caps'!K52*(1-'Inputs | Price Cap'!H$125)*(1+'Inputs | General'!L$26),2) -> 0 | M52: =ROUND('Output | Price Caps'!L52*(1-'Inputs | Price Cap'!I$125)*(1+'Inputs | General'!M$26),2) -> 0 | N52: =ROUND('Output | Price Caps'!M52*(1-'Inputs | Price Cap'!J$125)*(1+'Inputs | General'!N$26),2) -> 0
C53: 15 | D53: ='Inputs | Price Cap'!D88 -> 0 | E53: Total | F53: ='Inputs | Price Cap'!F88 -> 0 | G53: ='Inputs | Price Cap'!G88 -> 0 | I53: =ROUND('Inputs | Price Cap'!H88,2) -> 0 | J53: =J51+J52 -> 0 | K53: =K51+K52 -> 0 | L53: =L51+L52 -> 0 | M53: =M51+M52 -> 0 | N53: =N51+N52 -> 0
B56: Implicit X-Factors
D57: X-Factors | E57: =FPFirstYear -> 2026-27 | F57: =LEFT(E57,4)+1&"-"&RIGHT(E57,2)+1 -> 2027-28 | G57: =LEFT(F57,4)+1&"-"&RIGHT(F57,2)+1 -> 2028-29 | H57: =LEFT(G57,4)+1&"-"&RIGHT(G57,2)+1 -> 2029-30 | I57: =LEFT(H57,4)+1&"-"&RIGHT(H57,2)+1 -> 2030-31
E58: P_0 | F58: X_02 | G58: X_03 | H58: X_04 | I58: X_05
D59: All Tariffs - Non-Capital | E59: =NC_P_0_WAPC -> -0.273156522 | F59: =NC_X_02_WAPC -> -0.01 | G59: =NC_X_03_WAPC -> -0.01 | H59: =NC_X_04_WAPC -> -0.01 | I59: =NC_X_05_WAPC -> -0.01
D60: All Tariffs - Capital | E60: =C_P_0_WAPC -> 0.1254211795 | F60: =C_X_02_WAPC -> 0.03 | G60: =C_X_03_WAPC -> 0.03 | H60: =C_X_04_WAPC -> 0.03 | I60: =C_X_05_WAPC -> 0.03
B65: Cost Metric
I66: Base Year Charges | J66: Price Cap - Annual Charges
D67: Price Cap Per Meter | F67: Application | G67: Units | H67: Basis | I67: =LEFT(J67,4)-1&"-"&RIGHT(J67,2)-1 -> 2025-26 | J67: =FPFirstYear -> 2026-27 | K67: =LEFT(J67,4)+1&"-"&RIGHT(J67,2)+1 -> 2027-28 | L67: =LEFT(K67,4)+1&"-"&RIGHT(K67,2)+1 -> 2028-29 | M67: =LEFT(L67,4)+1&"-"&RIGHT(L67,2)+1 -> 2029-30 | N67: =LEFT(M67,4)+1&"-"&RIGHT(M67,2)+1 -> 2030-31
D68: Volume Weighted Average Price Cap - Per Meter | F68: Non-capital | G68: $dollars | H68: nominal | I68: ='Calc | Price Cap'!I59/'Inputs | Price Cap'!I90 -> 10.81871345 | J68: ='Calc | Price Cap'!J59/'Inputs | Price Cap'!J90 -> 14.13204678 | K68: ='Calc | Price Cap'!K59/'Inputs | Price Cap'!K90 -> 14.64304094 | L68: ='Calc | Price Cap'!L59/'Inputs | Price Cap'!L90 -> 15.17350877 | M68: ='Calc | Price Cap'!M59/'Inputs | Price Cap'!M90 -> 15.72491228 | N68: ='Calc | Price Cap'!N59/'Inputs | Price Cap'!N90 -> 16.29578947
D69: Volume Weighted Average Price Cap - Per Meter | F69: Capital | G69: $dollars | H69: nominal | I69: ='Calc | Price Cap'!I60/'Inputs | Price Cap'!I91 -> 18.56382979 | J69: ='Calc | Price Cap'!J60/'Inputs | Price Cap'!J91 -> 16.6599734 | K69: ='Calc | Price Cap'!K60/'Inputs | Price Cap'!K91 -> 16.5774734 | L69: ='Calc | Price Cap'!L60/'Inputs | Price Cap'!L91 -> 16.4949734 | M69: ='Calc | Price Cap'!M60/'Inputs | Price Cap'!M91 -> 16.42037234 | N69: ='Calc | Price Cap'!N60/'Inputs | Price Cap'!N91 -> 16.34577128
D70: Volume Weighted Average Price Cap - Per Non-Capital Meter | F70: Total | G70: $dollars | H70: nominal | I70: ='Calc | Price Cap'!I61/'Inputs | Price Cap'!I90 -> 31.22807018 | J70: ='Calc | Price Cap'!J61/'Inputs | Price Cap'!J90 -> 34.48341131 | K70: ='Calc | Price Cap'!K61/'Inputs | Price Cap'!K90 -> 37.14369071 | L70: ='Calc | Price Cap'!L61/'Inputs | Price Cap'!L90 -> 40.04981133 | M70: ='Calc | Price Cap'!M61/'Inputs | Price Cap'!M90 -> 43.24024076 | N70: ='Calc | Price Cap'!N61/'Inputs | Price Cap'!N90 -> 46.72947925

Sheet Exit Fees >

Sheet Input | Exit Fees
B1: ='Title Page'!B8&" v"&'Title Page'!$C$10 -> Final Standardised Metering Pricing Model v1.02 | M1: DNSP: | N1: =IF('Inputs | General'!$G$16="Price Cap","NOT USED",NSP) -> AusNet
B2: =MID(CELL("filename",A1),FIND("]",CELL("filename",A1))+1,255) -> Input | Exit Fees | H2: Key: | I2: Input | J2: External Link | K2: Internal Link | L2: Draft Decision | M2: Revised Proposal
B5: =LEFT('Inputs | General'!B21,1)+1&". Linked Input - RAB" -> 3. Linked Input - RAB | J5: =IF('Inputs | General'!$G$16="Price Cap","NOT USED","") -> 
B7: Linked Input - RAB Meters | G7: Base Year | H7: Regulatory Period
E8: Units | G8: =LEFT(H8,4)-1&"-"&RIGHT(H8,2)-1 -> 2025-26 | H8: =FPFirstYear -> 2026-27 | I8: =LEFT(H8,4)+1&"-"&RIGHT(H8,2)+1 -> 2027-28 | J8: =LEFT(I8,4)+1&"-"&RIGHT(I8,2)+1 -> 2028-29 | K8: =LEFT(J8,4)+1&"-"&RIGHT(J8,2)+1 -> 2029-30 | L8: =LEFT(K8,4)+1&"-"&RIGHT(K8,2)+1 -> 2030-31 | M8: =LEFT(L8,4)+1&"-"&RIGHT(L8,2)+1 -> 2031-32
C9: Opening RAB | E9: $m | F9: $nominal | H9: =G13 -> 117.4919526 | I9: =H13 -> 95.64561631 | J9: =I13 -> 101.6158032 | K9: 128.9152154 | L9: 172.8516191 | M9: 217.7005746 | N9: Opening balance of METERS row in PTRM inputs sheet of PTRM
C10: Net capital expenditure | E10: $m | F10: $nominal | H10: =[1]Assets!G$62 -> 14.38936646 | I10: =[1]Assets!H$62 -> 15.51994336 | J10: =[1]Assets!I$62 -> 35.06874252 | K10: =[1]Assets!J$62 -> 54.30643611 | L10: =[1]Assets!K$62 -> 59.20316552 | N10: Net capex from METERS row in ASSETS sheet of PTRM
C11: Regulatory depreciation | E11: $m | F11: $2025–26 | H11: =[1]Assets!G$128 -> 35.31745751 | I11: =[1]Assets!H$128 -> 9.071890124 | J11: =[1]Assets!I$128 -> 7.193525906 | K11: =[1]Assets!J$128 -> 9.358173292 | L11: =[1]Assets!K$128 -> 12.62533788 | N11: Depreciation from METERS row in ASSETS sheet of PTRM
C12: Regulatory depreciation | E12: $m | F12: $nominal | H12: =H11*'Inputs | General'!J27 -> 36.2357028 | I12: =I11*'Inputs | General'!K27 -> 9.549756473 | J12: =J11*'Inputs | General'!L27 -> 7.769330295 | K12: =K11*'Inputs | General'!M27 -> 10.37003241 | L12: =L11*'Inputs | General'!N27 -> 14.35421007
C13: Closing RAB | F13: $nominal | G13: 117.4919526 | H13: =H9+H10-H12 -> 95.64561631 | I13: =I9+I10-I12 -> 101.6158032 | J13: 128.9152154 | K13: 172.8516191 | L13: 217.7005746
B15: Linked Input - RAB Comms & IT
E16: Units | G16: =LEFT(H16,4)-1&"-"&RIGHT(H16,2)-1 -> 2025-26 | H16: =FPFirstYear -> 2026-27 | I16: =LEFT(H16,4)+1&"-"&RIGHT(H16,2)+1 -> 2027-28 | J16: =LEFT(I16,4)+1&"-"&RIGHT(I16,2)+1 -> 2028-29 | K16: =LEFT(J16,4)+1&"-"&RIGHT(J16,2)+1 -> 2029-30 | L16: =LEFT(K16,4)+1&"-"&RIGHT(K16,2)+1 -> 2030-31 | M16: =LEFT(L16,4)+1&"-"&RIGHT(L16,2)+1 -> 2031-32
C17: Opening RAB | E17: $m | F17: $nominal | H17: =G21 -> 11.32556262 | I17: =H21 -> 3.495173716 | J17: =I21 -> -1.159611174 | K17: -4.58729071 | L17: -9.528749699 | M17: -8.63079541 | N17: Opening balance of COMMS & IT rows from PTRM INPUTS sheet of PTRM
C18: Net capital expenditure | E18: $m | F18: $nominal | H18: =SUM([1]Assets!G$63:G$64) -> 2.661968445 | I18: =SUM([1]Assets!H$63:H$64) -> 5.701681316 | J18: =SUM([1]Assets!I$63:I$64) -> 4.244981044 | K18: =SUM([1]Assets!J$63:J$64) -> 2.412188792 | L18: =SUM([1]Assets!K$63:K$64) -> 5.798100735 | N18: Net capex from COMMS & IT rows in ASSETS sheet of PTRM
C19: Regulatory depreciation | E19: $m | F19: $2025–26 | H19: =SUM([1]Assets!G$141,[1]Assets!G$154) -> 10.22647158 | I19: =SUM([1]Assets!H$141,[1]Assets!H$154) -> 9.838232395 | J19: =SUM([1]Assets!I$141,[1]Assets!I$154) -> 7.104020624 | K19: =SUM([1]Assets!J$141,[1]Assets!J$154) -> 6.636113327 | L19: =SUM([1]Assets!K$141,[1]Assets!K$154) -> 4.309955354 | N19: Depreciation from COMMS & IT rows in ASSETS sheet of PTRM
C20: Regulatory depreciation | E20: $m | F20: $nominal | H20: =H19*'Inputs | General'!J27 -> 10.49235735 | I20: =I19*'Inputs | General'!K27 -> 10.35646621 | J20: =J19*'Inputs | General'!L27 -> 7.672660581 | K20: =K19*'Inputs | General'!M27 -> 7.353647781 | L20: =L19*'Inputs | General'!N27 -> 4.900146446
C21: Closing RAB | F21: $nominal | G21: 11.32556262 | H21: =H17+H18-H20 -> 3.495173716 | I21: =I17+I18-I20 -> -1.159611174 | J21: -4.58729071 | K21: -9.528749699 | L21: -8.63079541
E23: Units | G23: =LEFT(H23,4)-1&"-"&RIGHT(H23,2)-1 -> 2025-26 | H23: =FPFirstYear -> 2026-27 | I23: =LEFT(H23,4)+1&"-"&RIGHT(H23,2)+1 -> 2027-28 | J23: =LEFT(I23,4)+1&"-"&RIGHT(I23,2)+1 -> 2028-29 | K23: =LEFT(J23,4)+1&"-"&RIGHT(J23,2)+1 -> 2029-30 | L23: =LEFT(K23,4)+1&"-"&RIGHT(K23,2)+1 -> 2030-31 | M23: =LEFT(L23,4)+1&"-"&RIGHT(L23,2)+1 -> 2031-32
B24: TOTAL Opening RAB | E24: $m | F24: $nominal | H24: =H9+H17 -> 128.8175153 | I24: =I9+I17 -> 99.14079002 | J24: 100.456192 | K24: 124.3279247 | L24: 163.3228694 | M24: 209.0697792
B27: =LEFT(B5,1)+1&". Input | Define Exit Fees" -> 4. Input | Define Exit Fees
B29: Enter Allowed Exit Fee in final year of current Regulatory Period | G29: Exit Fee $2025–26
D30: Exit Fee Name | F30: Units | G30: Last Year - Current RP
D31: Single phase single element | F31: $dollars | G31: 315.21
D32: Single phase two element with contactor | F32: $dollars | G32: 315.21
D33: Multiphase | F33: $dollars | G33: 315.22
D34: Multiphase CT connected | F34: $dollars | G34: 315.22
D35: 0 | F35: $dollars | G35: 0
D36: 0 | F36: $dollars | G36: 0
D37: 0 | F37: $dollars | G37: 0
D38: 0 | F38: $dollars | G38: 0
D39: 0 | F39: $dollars | G39: 0
D40: 0 | F40: $dollars | G40: 0
B44: =LEFT(B27,1)+1&". Input | from Metering ACS Model" -> 5. Input | from Metering ACS Model
B46: METERS
B48: a | C48: Inputs - Designated Exit Fee by Meter Type | G48: b | H48: Linked Input - Meter Types & Unit Costs
K49: Equipment Cost | L49: Labour Cost | M49: Total Cost
D50: Designated Exit Fee | H50: Meter Type | I50: Units | J50: Basis | K50: New Meter Installations | L50: New Meter Installations | M50: New Meter Installations | Q50: Link from Metering - ACS Model
D51: Single phase single element | H51: AMI - Single Phase, single element | I51: $dollars | J51: $2023–24 | K51: 253.491047 | L51: 229.9266978 | M51: =K51+L51 -> 483.4177448
D52: Single phase two element with contactor | H52: AMI - Single Phase, two element | I52: $dollars | J52: $2023–24 | K52: 276.9552514 | L52: 229.9266978 | M52: 506.8819493
D53: Multiphase | H53: AMI - 3 Phase DC | I53: $dollars | J53: $2023–24 | K53: 372.5265952 | L53: 229.9266978 | M53: 602.453293
D54: Multiphase CT connected | H54: AMI 3Ph CT | I54: $dollars | J54: $2023–24 | K54: 472.9072383 | L54: 766.4223261 | M54: 1239.329564
I55: $dollars | J55: $2023–24
D56: 0 | I56: $dollars | J56: $2023–24 | M56: =K56+L56 -> 0
D57: 0 | I57: $dollars | J57: $2023–24
D58: 0 | I58: $dollars | J58: $2023–24
D59: 0 | I59: $dollars | J59: $2023–24
D60: 0 | I60: $dollars | J60: $2023–24
D61: 0 | I61: $dollars | J61: $2023–24
D62: 0 | I62: $dollars | J62: $2023–24
D63: 0 | H63: 0 | I63: $dollars | J63: $2023–24
D64: 0 | H64: 0 | I64: $dollars | J64: $2023–24
D65: 0 | H65: 0 | I65: $dollars | J65: $2023–24
B68: e | C68: Linked Input - Gross Meter Population (Year End), by meter type
J69: Number of meters in year
H70: =H50 -> Meter Type | I70: Units | J70: =LEFT(K70,4)-1&"-"&RIGHT(K70,2)-1 -> 2025-26 | K70: =FPFirstYear -> 2026-27 | L70: =LEFT(K70,4)+1&"-"&RIGHT(K70,2)+1 -> 2027-28 | M70: =LEFT(L70,4)+1&"-"&RIGHT(L70,2)+1 -> 2028-29 | N70: 2029-30 | O70: 2030-31 | Q70: Link from Metering - ACS Model
H71: AMI - Single Phase, single element | I71: No. | J71: ='[2]Input | Meters Vols & Costs'!P412 -> 573745.187 | K71: ='[2]Input | Meters Vols & Costs'!Q412 -> 580696.9234 | L71: ='[2]Input | Meters Vols & Costs'!R412 -> 585774.4388 | M71: ='[2]Input | Meters Vols & Costs'!S412 -> 589273.3794 | N71: ='[2]Input | Meters Vols & Costs'!T412 -> 591168.8808 | O71: ='[2]Input | Meters Vols & Costs'!U412 -> 591269.3014
H72: AMI - Single Phase, two element | I72: No. | J72: ='[2]Input | Meters Vols & Costs'!P413 -> 117291.813 | K72: ='[2]Input | Meters Vols & Costs'!Q413 -> 115944.4623 | L72: ='[2]Input | Meters Vols & Costs'!R413 -> 114538.6677 | M72: ='[2]Input | Meters Vols & Costs'!S413 -> 113116.7608 | N72: ='[2]Input | Meters Vols & Costs'!T413 -> 111690.294 | O72: ='[2]Input | Meters Vols & Costs'!U413 -> 110228.3807
H73: AMI - 3 Phase DC | I73: No. | J73: ='[2]Input | Meters Vols & Costs'!P414 -> 158168.274 | K73: ='[2]Input | Meters Vols & Costs'!Q414 -> 169944.743 | L73: ='[2]Input | Meters Vols & Costs'!R414 -> 183725.7566 | M73: ='[2]Input | Meters Vols & Costs'!S414 -> 199323.2276 | N73: ='[2]Input | Meters Vols & Costs'!T414 -> 217053.7307 | O73: ='[2]Input | Meters Vols & Costs'!U414 -> 236976.3956
H74: AMI 3Ph CT | I74: No. | J74: ='[2]Input | Meters Vols & Costs'!P415 -> 5270 | K74: ='[2]Input | Meters Vols & Costs'!Q415 -> 5365.326924 | L74: ='[2]Input | Meters Vols & Costs'!R415 -> 5459.980675 | M74: ='[2]Input | Meters Vols & Costs'!S415 -> 5555.662356 | N74: ='[2]Input | Meters Vols & Costs'!T415 -> 5652.202211 | O74: ='[2]Input | Meters Vols & Costs'!U415 -> 5749.560895
H75: 0 | I75: No.
I76: No.
H77: =H57 -> 0 | I77: No.
H78: 0 | I78: No.
H79: 0 | I79: No.
H80: 0 | I80: No.
H81: 0 | I81: No.
H82: 0 | I82: No.
H83: 0 | I83: No. | J83: 0 | K83: 0 | L83: 0 | M83: 0 | N83: 0 | O83: 0
H84: 0 | I84: No. | J84: 0 | K84: 0 | L84: 0 | M84: 0 | N84: 0 | O84: 0
H85: 0 | I85: No. | J85: 0 | K85: 0 | L85: 0 | M85: 0 | N85: 0 | O85: 0
H86: Total | I86: No. | J86: =SUM(J71:J85) -> 854475.274 | K86: 871951.4556 | L86: 889498.8438 | M86: 907269.0302 | N86: 925565.1077 | O86: 944223.6387
B89: =LEFT(B44,1)+1&". INPUT | Admin and handling" -> 6. INPUT | Admin and handling
B91: a | C91: Inputs - Admin Hourly Rate
D92: Admin Fees | E92: Units | G92: Rate
D93: Hourly Rate | E93: $dollars/hr | F93: $2023–24 | G93: =88.0589242315835/'Inputs | General'!J29 -> 81.11873097
B96: b | C96: Inputs - Admin & Handling Costs
D97: Admin Process Description | G97: Amount ($Fixed or Hours) | H97: Calculated or Entered | I97: Proportion required | K97: =FPFirstYear -> 2026-27 | L97: =LEFT(K97,4)+1&"-"&RIGHT(K97,2)+1 -> 2027-28 | M97: =LEFT(L97,4)+1&"-"&RIGHT(L97,2)+1 -> 2028-29 | N97: =LEFT(M97,4)+1&"-"&RIGHT(M97,2)+1 -> 2029-30 | O97: =LEFT(N97,4)+1&"-"&RIGHT(N97,2)+1 -> 2030-31
D98: Site visit @ 20% of the time to rectify issues and locate missing meters | G98: 175 | H98: Calc-Fixed | I98: 0.2
D99: Back-office admin processing | G99: 0.25 | H99: Calc-Hourly | I99: 1
D100: Receipt Meters into store | G100: 0.27 | H100: Calc-Hourly | I100: 1 | L100: 15 | M100: 25
K101: 12 | L101: 13 | M101: 14 | N101: 15 | O101: 16
D102: 0
D103: 0
D104: 0
D105: 0
D106: 0
D107: 0
B109: c | C109: Admin & Handling Cost Calculation (Autofilled)
D110: Admin Process Description | G110: Amount (Fixed or Hours) | H110: Calculated or Entered | I110: Proportion required | K110: =FPFirstYear -> 2026-27 | L110: =LEFT(K110,4)+1&"-"&RIGHT(K110,2)+1 -> 2027-28 | M110: =LEFT(L110,4)+1&"-"&RIGHT(L110,2)+1 -> 2028-29 | N110: =LEFT(M110,4)+1&"-"&RIGHT(M110,2)+1 -> 2029-30 | O110: =LEFT(N110,4)+1&"-"&RIGHT(N110,2)+1 -> 2030-31
D111: =D98 -> Site visit @ 20% of the time to rectify issues and locate missing meters | G111: =G98 -> 175 | H111: Calc-Fixed | I111: =I98 -> 0.2 | J111: =F93 -> $2023–24 | K111: =IF($H111="Calc-Fixed",$I111*$G111,IF($H111="Calc-Hourly",$G$93*$G111*$I111,IF($H111="Entered",K98,0))) -> 35 | L111: 35 | M111: 35 | N111: 35 | O111: 35
D112: Back-office admin processing | G112: 0.25 | H112: Calc-Hourly | I112: 1 | J112: =F93 -> $2023–24 | K112: 20.27968274 | L112: 20.27968274 | M112: 20.27968274 | N112: 20.27968274 | O112: 20.27968274
D113: Receipt Meters into store | G113: 0.27 | H113: Calc-Hourly | I113: 1 | J113: =F93 -> $2023–24 | K113: 21.90205736 | L113: 21.90205736 | M113: 21.90205736 | N113: 21.90205736 | O113: 21.90205736
D114: =D101 -> 0 | G114: =G101 -> 0 | H114: 0 | I114: 0 | K114: 0 | L114: 0 | M114: 0 | N114: 0 | O114: 0
D115: 0 | G115: 0 | H115: 0 | I115: 0 | K115: 0 | L115: 0 | M115: 0 | N115: 0 | O115: 0
D116: 0 | G116: 0 | H116: 0 | I116: 0 | K116: 0 | L116: 0 | M116: 0 | N116: 0 | O116: 0
D117: 0 | G117: 0 | H117: 0 | I117: 0 | K117: 0 | L117: 0 | M117: 0 | N117: 0 | O117: 0
D118: 0 | G118: 0 | H118: 0 | I118: 0 | K118: 0 | L118: 0 | M118: 0 | N118: 0 | O118: 0
D119: 0 | G119: 0 | H119: 0 | I119: 0 | K119: 0 | L119: 0 | M119: 0 | N119: 0 | O119: 0
D120: 0 | G120: 0 | H120: 0 | I120: 0 | K120: 0 | L120: 0 | M120: 0 | N120: 0 | O120: 0
D121: TOTAL ADMIN and Handling | K121: =SUM(K111:K120) -> 77.18174011 | L121: =SUM(L111:L120) -> 77.18174011 | M121: =SUM(M111:M120) -> 77.18174011 | N121: =SUM(N111:N120) -> 77.18174011 | O121: =SUM(O111:O120) -> 77.18174011

Sheet Calc | Exit Fees
B1: ='Title Page'!B8&" v"&'Title Page'!$C$10 -> Final Standardised Metering Pricing Model v1.02 | M1: DNSP: | N1: =IF('Inputs | General'!$G$16="Price Cap","NOT USED",NSP) -> AusNet
B2: =MID(CELL("filename",A1),FIND("]",CELL("filename",A1))+1,255) -> Calc | Exit Fees | H2: Key: | I2: Input | J2: External Link | K2: Internal Link | L2: Draft Decision | M2: Revised Proposal
B5: CALCULATION | Meters
B7: Calculation of Allocated Meters RAB by Designated Exit Fee
E10: Average number of meters (Year, Year-1) | K10: Average number of meters (Year, Year-1)
F11: ='Input | Exit Fees'!H70 -> Meter Type | G11: ='Input | Exit Fees'!I70 -> Units | H11: Designated Exit Fee | K11: =FPFirstYear -> 2026-27 | L11: =LEFT(K11,4)+1&"-"&RIGHT(K11,2)+1 -> 2027-28 | M11: =LEFT(L11,4)+1&"-"&RIGHT(L11,2)+1 -> 2028-29 | N11: 2029-30 | O11: 2030-31
F12: ='Input | Exit Fees'!H71 -> AMI - Single Phase, single element | G12: No. | H12: ='Input | Exit Fees'!D51 -> Single phase single element | K12: =IFERROR(AVERAGE('Input | Exit Fees'!J71:K71),0) -> 577221.0552 | L12: =IFERROR(AVERAGE('Input | Exit Fees'!K71:L71),0) -> 583235.6811 | M12: =IFERROR(AVERAGE('Input | Exit Fees'!L71:M71),0) -> 587523.9091 | N12: =IFERROR(AVERAGE('Input | Exit Fees'!M71:N71),0) -> 590221.1301 | O12: =IFERROR(AVERAGE('Input | Exit Fees'!N71:O71),0) -> 591219.0911
F13: ='Input | Exit Fees'!H72 -> AMI - Single Phase, two element | G13: No. | H13: ='Input | Exit Fees'!D52 -> Single phase two element with contactor | K13: =IFERROR(AVERAGE('Input | Exit Fees'!J72:K72),0) -> 116618.1376 | L13: =IFERROR(AVERAGE('Input | Exit Fees'!K72:L72),0) -> 115241.565 | M13: =IFERROR(AVERAGE('Input | Exit Fees'!L72:M72),0) -> 113827.7143 | N13: =IFERROR(AVERAGE('Input | Exit Fees'!M72:N72),0) -> 112403.5274 | O13: =IFERROR(AVERAGE('Input | Exit Fees'!N72:O72),0) -> 110959.3374
F14: ='Input | Exit Fees'!H73 -> AMI - 3 Phase DC | G14: No. | H14: ='Input | Exit Fees'!D53 -> Multiphase | K14: =IFERROR(AVERAGE('Input | Exit Fees'!J73:K73),0) -> 164056.5085 | L14: =IFERROR(AVERAGE('Input | Exit Fees'!K73:L73),0) -> 176835.2498 | M14: =IFERROR(AVERAGE('Input | Exit Fees'!L73:M73),0) -> 191524.4921 | N14: =IFERROR(AVERAGE('Input | Exit Fees'!M73:N73),0) -> 208188.4792 | O14: =IFERROR(AVERAGE('Input | Exit Fees'!N73:O73),0) -> 227015.0632
F15: ='Input | Exit Fees'!H74 -> AMI 3Ph CT | G15: No. | H15: ='Input | Exit Fees'!D54 -> Multiphase CT connected | K15: =IFERROR(AVERAGE('Input | Exit Fees'!J74:K74),0) -> 5317.663462 | L15: =IFERROR(AVERAGE('Input | Exit Fees'!K74:L74),0) -> 5412.6538 | M15: =IFERROR(AVERAGE('Input | Exit Fees'!L74:M74),0) -> 5507.821516 | N15: =IFERROR(AVERAGE('Input | Exit Fees'!M74:N74),0) -> 5603.932284 | O15: =IFERROR(AVERAGE('Input | Exit Fees'!N74:O74),0) -> 5700.881553
F16: ='Input | Exit Fees'!H75 -> 0 | G16: No. | H16: ='Input | Exit Fees'!D55 -> 0 | K16: =IFERROR(AVERAGE('Input | Exit Fees'!J75:K75),0) -> 0 | L16: =IFERROR(AVERAGE('Input | Exit Fees'!K75:L75),0) -> 0 | M16: =IFERROR(AVERAGE('Input | Exit Fees'!L75:M75),0) -> 0 | N16: =IFERROR(AVERAGE('Input | Exit Fees'!M75:N75),0) -> 0 | O16: =IFERROR(AVERAGE('Input | Exit Fees'!N75:O75),0) -> 0
F17: ='Input | Exit Fees'!H76 -> 0 | G17: No. | H17: ='Input | Exit Fees'!D56 -> 0 | K17: =IFERROR(AVERAGE('Input | Exit Fees'!J76:K76),0) -> 0 | L17: =IFERROR(AVERAGE('Input | Exit Fees'!K76:L76),0) -> 0 | M17: =IFERROR(AVERAGE('Input | Exit Fees'!L76:M76),0) -> 0 | N17: =IFERROR(AVERAGE('Input | Exit Fees'!M76:N76),0) -> 0 | O17: =IFERROR(AVERAGE('Input | Exit Fees'!N76:O76),0) -> 0
F18: ='Input | Exit Fees'!H77 -> 0 | G18: No. | H18: ='Input | Exit Fees'!D57 -> 0 | K18: =IFERROR(AVERAGE('Input | Exit Fees'!J77:K77),0) -> 0 | L18: =IFERROR(AVERAGE('Input | Exit Fees'!K77:L77),0) -> 0 | M18: =IFERROR(AVERAGE('Input | Exit Fees'!L77:M77),0) -> 0 | N18: =IFERROR(AVERAGE('Input | Exit Fees'!M77:N77),0) -> 0 | O18: =IFERROR(AVERAGE('Input | Exit Fees'!N77:O77),0) -> 0
F19: ='Input | Exit Fees'!H78 -> 0 | G19: No. | H19: ='Input | Exit Fees'!D58 -> 0 | K19: =IFERROR(AVERAGE('Input | Exit Fees'!J78:K78),0) -> 0 | L19: =IFERROR(AVERAGE('Input | Exit Fees'!K78:L78),0) -> 0 | M19: =IFERROR(AVERAGE('Input | Exit Fees'!L78:M78),0) -> 0 | N19: =IFERROR(AVERAGE('Input | Exit Fees'!M78:N78),0) -> 0 | O19: =IFERROR(AVERAGE('Input | Exit Fees'!N78:O78),0) -> 0
F20: ='Input | Exit Fees'!H79 -> 0 | G20: No. | H20: ='Input | Exit Fees'!D59 -> 0 | K20: =IFERROR(AVERAGE('Input | Exit Fees'!J79:K79),0) -> 0 | L20: =IFERROR(AVERAGE('Input | Exit Fees'!K79:L79),0) -> 0 | M20: =IFERROR(AVERAGE('Input | Exit Fees'!L79:M79),0) -> 0 | N20: =IFERROR(AVERAGE('Input | Exit Fees'!M79:N79),0) -> 0 | O20: =IFERROR(AVERAGE('Input | Exit Fees'!N79:O79),0) -> 0
F21: ='Input | Exit Fees'!H80 -> 0 | G21: No. | H21: ='Input | Exit Fees'!D60 -> 0 | K21: =IFERROR(AVERAGE('Input | Exit Fees'!J80:K80),0) -> 0 | L21: =IFERROR(AVERAGE('Input | Exit Fees'!K80:L80),0) -> 0 | M21: =IFERROR(AVERAGE('Input | Exit Fees'!L80:M80),0) -> 0 | N21: =IFERROR(AVERAGE('Input | Exit Fees'!M80:N80),0) -> 0 | O21: =IFERROR(AVERAGE('Input | Exit Fees'!N80:O80),0) -> 0
F22: ='Input | Exit Fees'!H81 -> 0 | G22: No. | H22: ='Input | Exit Fees'!D61 -> 0 | K22: =IFERROR(AVERAGE('Input | Exit Fees'!J81:K81),0) -> 0 | L22: =IFERROR(AVERAGE('Input | Exit Fees'!K81:L81),0) -> 0 | M22: =IFERROR(AVERAGE('Input | Exit Fees'!L81:M81),0) -> 0 | N22: =IFERROR(AVERAGE('Input | Exit Fees'!M81:N81),0) -> 0 | O22: =IFERROR(AVERAGE('Input | Exit Fees'!N81:O81),0) -> 0
F23: ='Input | Exit Fees'!H82 -> 0 | G23: No. | H23: ='Input | Exit Fees'!D62 -> 0 | K23: =IFERROR(AVERAGE('Input | Exit Fees'!J82:K82),0) -> 0 | L23: =IFERROR(AVERAGE('Input | Exit Fees'!K82:L82),0) -> 0 | M23: =IFERROR(AVERAGE('Input | Exit Fees'!L82:M82),0) -> 0 | N23: =IFERROR(AVERAGE('Input | Exit Fees'!M82:N82),0) -> 0 | O23: =IFERROR(AVERAGE('Input | Exit Fees'!N82:O82),0) -> 0
F24: ='Input | Exit Fees'!H83 -> 0 | G24: No. | H24: ='Input | Exit Fees'!D63 -> 0 | K24: =IFERROR(AVERAGE('Input | Exit Fees'!J83:K83),0) -> 0 | L24: =IFERROR(AVERAGE('Input | Exit Fees'!K83:L83),0) -> 0 | M24: =IFERROR(AVERAGE('Input | Exit Fees'!L83:M83),0) -> 0 | N24: =IFERROR(AVERAGE('Input | Exit Fees'!M83:N83),0) -> 0 | O24: =IFERROR(AVERAGE('Input | Exit Fees'!N83:O83),0) -> 0
F25: ='Input | Exit Fees'!H84 -> 0 | G25: No. | H25: ='Input | Exit Fees'!D64 -> 0 | K25: =IFERROR(AVERAGE('Input | Exit Fees'!J84:K84),0) -> 0 | L25: =IFERROR(AVERAGE('Input | Exit Fees'!K84:L84),0) -> 0 | M25: =IFERROR(AVERAGE('Input | Exit Fees'!L84:M84),0) -> 0 | N25: =IFERROR(AVERAGE('Input | Exit Fees'!M84:N84),0) -> 0 | O25: =IFERROR(AVERAGE('Input | Exit Fees'!N84:O84),0) -> 0
F26: ='Input | Exit Fees'!H85 -> 0 | G26: No. | H26: ='Input | Exit Fees'!D65 -> 0 | K26: =IFERROR(AVERAGE('Input | Exit Fees'!J85:K85),0) -> 0 | L26: =IFERROR(AVERAGE('Input | Exit Fees'!K85:L85),0) -> 0 | M26: =IFERROR(AVERAGE('Input | Exit Fees'!L85:M85),0) -> 0 | N26: =IFERROR(AVERAGE('Input | Exit Fees'!M85:N85),0) -> 0 | O26: =IFERROR(AVERAGE('Input | Exit Fees'!N85:O85),0) -> 0
F27: ='Input | Exit Fees'!H86 -> Total | G27: No. | K27: =SUM(K12:K26) -> 863213.3648 | L27: 880725.1497 | M27: 898383.937 | N27: 916417.069 | O27: 934894.3732
E29: Volume of meters | J29: End Year Vol | K29: Regulatory period
F30: Exit Fee | G30: Units | J30: =LEFT(K30,4)-1&"-"&RIGHT(K30,2)-1 -> 2025-26 | K30: =FPFirstYear -> 2026-27 | L30: =LEFT(K30,4)+1&"-"&RIGHT(K30,2)+1 -> 2027-28 | M30: =LEFT(L30,4)+1&"-"&RIGHT(L30,2)+1 -> 2028-29 | N30: 2029-30 | O30: 2030-31
F31: ='Input | Exit Fees'!$D31 -> Single phase single element | G31: =G12 -> No. | J31: =IF($F31=0,0,SUMPRODUCT('Input | Exit Fees'!$J$71:$J$85,($H$12:$H$26=$F31)/1)) -> 573745.187 | K31: =IF($F31=0,0,SUMPRODUCT(K$12:K$26,($H$12:$H$26=$F31)/1)) -> 577221.0552 | L31: =IF($F31=0,0,SUMPRODUCT(L$12:L$26,($H$12:$H$26=$F31)/1)) -> 583235.6811 | M31: =IF($F31=0,0,SUMPRODUCT(M$12:M$26,($H$12:$H$26=$F31)/1)) -> 587523.9091 | N31: =IF($F31=0,0,SUMPRODUCT(N$12:N$26,($H$12:$H$26=$F31)/1)) -> 590221.1301 | O31: =IF($F31=0,0,SUMPRODUCT(O$12:O$26,($H$12:$H$26=$F31)/1)) -> 591219.0911
F32: ='Input | Exit Fees'!$D32 -> Single phase two element with contactor | G32: =G13 -> No. | J32: =IF($F32=0,0,SUMPRODUCT('Input | Exit Fees'!$J$71:$J$85,($H$12:$H$26=$F32)/1)) -> 117291.813 | K32: =IF($F32=0,0,SUMPRODUCT(K$12:K$26,($H$12:$H$26=$F32)/1)) -> 116618.1376 | L32: =IF($F32=0,0,SUMPRODUCT(L$12:L$26,($H$12:$H$26=$F32)/1)) -> 115241.565 | M32: =IF($F32=0,0,SUMPRODUCT(M$12:M$26,($H$12:$H$26=$F32)/1)) -> 113827.7143 | N32: =IF($F32=0,0,SUMPRODUCT(N$12:N$26,($H$12:$H$26=$F32)/1)) -> 112403.5274 | O32: =IF($F32=0,0,SUMPRODUCT(O$12:O$26,($H$12:$H$26=$F32)/1)) -> 110959.3374
F33: ='Input | Exit Fees'!$D33 -> Multiphase | G33: No. | J33: =IF($F33=0,0,SUMPRODUCT('Input | Exit Fees'!$J$71:$J$85,($H$12:$H$26=$F33)/1)) -> 158168.274 | K33: =IF($F33=0,0,SUMPRODUCT(K$12:K$26,($H$12:$H$26=$F33)/1)) -> 164056.5085 | L33: =IF($F33=0,0,SUMPRODUCT(L$12:L$26,($H$12:$H$26=$F33)/1)) -> 176835.2498 | M33: =IF($F33=0,0,SUMPRODUCT(M$12:M$26,($H$12:$H$26=$F33)/1)) -> 191524.4921 | N33: =IF($F33=0,0,SUMPRODUCT(N$12:N$26,($H$12:$H$26=$F33)/1)) -> 208188.4792 | O33: =IF($F33=0,0,SUMPRODUCT(O$12:O$26,($H$12:$H$26=$F33)/1)) -> 227015.0632
F34: ='Input | Exit Fees'!$D34 -> Multiphase CT connected | G34: No. | J34: =IF($F34=0,0,SUMPRODUCT('Input | Exit Fees'!$J$71:$J$85,($H$12:$H$26=$F34)/1)) -> 5270 | K34: =IF($F34=0,0,SUMPRODUCT(K$12:K$26,($H$12:$H$26=$F34)/1)) -> 5317.663462 | L34: =IF($F34=0,0,SUMPRODUCT(L$12:L$26,($H$12:$H$26=$F34)/1)) -> 5412.6538 | M34: =IF($F34=0,0,SUMPRODUCT(M$12:M$26,($H$12:$H$26=$F34)/1)) -> 5507.821516 | N34: =IF($F34=0,0,SUMPRODUCT(N$12:N$26,($H$12:$H$26=$F34)/1)) -> 5603.932284 | O34: =IF($F34=0,0,SUMPRODUCT(O$12:O$26,($H$12:$H$26=$F34)/1)) -> 5700.881553
F35: ='Input | Exit Fees'!$D35 -> 0 | G35: No. | J35: =IF($F35=0,0,SUMPRODUCT('Input | Exit Fees'!$J$71:$J$85,($H$12:$H$26=$F35)/1)) -> 0 | K35: =IF($F35=0,0,SUMPRODUCT(K$12:K$26,($H$12:$H$26=$F35)/1)) -> 0 | L35: =IF($F35=0,0,SUMPRODUCT(L$12:L$26,($H$12:$H$26=$F35)/1)) -> 0 | M35: =IF($F35=0,0,SUMPRODUCT(M$12:M$26,($H$12:$H$26=$F35)/1)) -> 0 | N35: =IF($F35=0,0,SUMPRODUCT(N$12:N$26,($H$12:$H$26=$F35)/1)) -> 0 | O35: =IF($F35=0,0,SUMPRODUCT(O$12:O$26,($H$12:$H$26=$F35)/1)) -> 0
F36: ='Input | Exit Fees'!$D36 -> 0 | G36: No. | J36: =IF($F36=0,0,SUMPRODUCT('Input | Exit Fees'!$J$71:$J$85,($H$12:$H$26=$F36)/1)) -> 0 | K36: =IF($F36=0,0,SUMPRODUCT(K$12:K$26,($H$12:$H$26=$F36)/1)) -> 0 | L36: =IF($F36=0,0,SUMPRODUCT(L$12:L$26,($H$12:$H$26=$F36)/1)) -> 0 | M36: =IF($F36=0,0,SUMPRODUCT(M$12:M$26,($H$12:$H$26=$F36)/1)) -> 0 | N36: =IF($F36=0,0,SUMPRODUCT(N$12:N$26,($H$12:$H$26=$F36)/1)) -> 0 | O36: =IF($F36=0,0,SUMPRODUCT(O$12:O$26,($H$12:$H$26=$F36)/1)) -> 0
F37: ='Input | Exit Fees'!$D37 -> 0 | G37: No. | J37: =IF($F37=0,0,SUMPRODUCT('Input | Exit Fees'!$J$71:$J$85,($H$12:$H$26=$F37)/1)) -> 0 | K37: =IF($F37=0,0,SUMPRODUCT(K$12:K$26,($H$12:$H$26=$F37)/1)) -> 0 | L37: =IF($F37=0,0,SUMPRODUCT(L$12:L$26,($H$12:$H$26=$F37)/1)) -> 0 | M37: =IF($F37=0,0,SUMPRODUCT(M$12:M$26,($H$12:$H$26=$F37)/1)) -> 0 | N37: =IF($F37=0,0,SUMPRODUCT(N$12:N$26,($H$12:$H$26=$F37)/1)) -> 0 | O37: =IF($F37=0,0,SUMPRODUCT(O$12:O$26,($H$12:$H$26=$F37)/1)) -> 0
F38: ='Input | Exit Fees'!$D38 -> 0 | G38: No. | J38: =IF($F38=0,0,SUMPRODUCT('Input | Exit Fees'!$J$71:$J$85,($H$12:$H$26=$F38)/1)) -> 0 | K38: =IF($F38=0,0,SUMPRODUCT(K$12:K$26,($H$12:$H$26=$F38)/1)) -> 0 | L38: =IF($F38=0,0,SUMPRODUCT(L$12:L$26,($H$12:$H$26=$F38)/1)) -> 0 | M38: =IF($F38=0,0,SUMPRODUCT(M$12:M$26,($H$12:$H$26=$F38)/1)) -> 0 | N38: =IF($F38=0,0,SUMPRODUCT(N$12:N$26,($H$12:$H$26=$F38)/1)) -> 0 | O38: =IF($F38=0,0,SUMPRODUCT(O$12:O$26,($H$12:$H$26=$F38)/1)) -> 0
F39: ='Input | Exit Fees'!$D39 -> 0 | G39: No. | J39: =IF($F39=0,0,SUMPRODUCT('Input | Exit Fees'!$J$71:$J$85,($H$12:$H$26=$F39)/1)) -> 0 | K39: =IF($F39=0,0,SUMPRODUCT(K$12:K$26,($H$12:$H$26=$F39)/1)) -> 0 | L39: =IF($F39=0,0,SUMPRODUCT(L$12:L$26,($H$12:$H$26=$F39)/1)) -> 0 | M39: =IF($F39=0,0,SUMPRODUCT(M$12:M$26,($H$12:$H$26=$F39)/1)) -> 0 | N39: =IF($F39=0,0,SUMPRODUCT(N$12:N$26,($H$12:$H$26=$F39)/1)) -> 0 | O39: =IF($F39=0,0,SUMPRODUCT(O$12:O$26,($H$12:$H$26=$F39)/1)) -> 0
F40: ='Input | Exit Fees'!$D40 -> 0 | G40: No. | J40: =IF($F40=0,0,SUMPRODUCT('Input | Exit Fees'!$J$71:$J$85,($H$12:$H$26=$F40)/1)) -> 0 | K40: =IF($F40=0,0,SUMPRODUCT(K$12:K$26,($H$12:$H$26=$F40)/1)) -> 0 | L40: =IF($F40=0,0,SUMPRODUCT(L$12:L$26,($H$12:$H$26=$F40)/1)) -> 0 | M40: =IF($F40=0,0,SUMPRODUCT(M$12:M$26,($H$12:$H$26=$F40)/1)) -> 0 | N40: =IF($F40=0,0,SUMPRODUCT(N$12:N$26,($H$12:$H$26=$F40)/1)) -> 0 | O40: =IF($F40=0,0,SUMPRODUCT(O$12:O$26,($H$12:$H$26=$F40)/1)) -> 0
F41: Total | G41: =G22 -> No. | J41: =SUM(J31:J40) -> 854475.274 | K41: 863213.3648 | L41: 880725.1497 | M41: 898383.937 | N41: 916417.069 | O41: 934894.3732
E44: Cost-Weighted Volume of Meters ($nominal) | K44: Regulatory period
F45: Exit Fee | G45: Units | K45: =FPFirstYear -> 2026-27 | L45: =LEFT(K45,4)+1&"-"&RIGHT(K45,2)+1 -> 2027-28 | M45: =LEFT(L45,4)+1&"-"&RIGHT(L45,2)+1 -> 2028-29 | N45: =LEFT(M45,4)+1&"-"&RIGHT(M45,2)+1 -> 2029-30 | O45: =LEFT(N45,4)+1&"-"&RIGHT(N45,2)+1 -> 2030-31
F46: ='Input | Exit Fees'!$D31 -> Single phase single element | G46: $dollars | K46: =SUMPRODUCT('Input | Exit Fees'!$K$51:$K$65,K$12:K$26,($H$12:$H$26=$F46)/1)*'Inputs | General'!J$29+SUMPRODUCT('Input | Exit Fees'!$L$51:$L$65,K$12:K$26,($H$12:$H$26=$F46)/1)*'Inputs | General'!J$31 -> 296320029.9 | L46: =SUMPRODUCT('Input | Exit Fees'!$K$51:$K$65,L$12:L$26,($H$12:$H$26=$F46)/1)*'Inputs | General'!K$29+SUMPRODUCT('Input | Exit Fees'!$L$51:$L$65,L$12:L$26,($H$12:$H$26=$F46)/1)*'Inputs | General'!K$31 -> 304907187.9 | M46: =SUMPRODUCT('Input | Exit Fees'!$K$51:$K$65,M$12:M$26,($H$12:$H$26=$F46)/1)*'Inputs | General'!L$29+SUMPRODUCT('Input | Exit Fees'!$L$51:$L$65,M$12:M$26,($H$12:$H$26=$F46)/1)*'Inputs | General'!L$31 -> 313043934.1 | N46: =SUMPRODUCT('Input | Exit Fees'!$K$51:$K$65,N$12:N$26,($H$12:$H$26=$F46)/1)*'Inputs | General'!M$29+SUMPRODUCT('Input | Exit Fees'!$L$51:$L$65,N$12:N$26,($H$12:$H$26=$F46)/1)*'Inputs | General'!M$31 -> 320687772.6 | O46: =SUMPRODUCT('Input | Exit Fees'!$K$51:$K$65,O$12:O$26,($H$12:$H$26=$F46)/1)*'Inputs | General'!N$29+SUMPRODUCT('Input | Exit Fees'!$L$51:$L$65,O$12:O$26,($H$12:$H$26=$F46)/1)*'Inputs | General'!N$31 -> 327548404.1
F47: ='Input | Exit Fees'!$D32 -> Single phase two element with contactor | G47: $dollars | K47: =SUMPRODUCT('Input | Exit Fees'!$K$51:$K$65,K$12:K$26,($H$12:$H$26=$F47)/1)*'Inputs | General'!J$29+SUMPRODUCT('Input | Exit Fees'!$L$51:$L$65,K$12:K$26,($H$12:$H$26=$F47)/1)*'Inputs | General'!J$31 -> 62837111.64 | L47: =SUMPRODUCT('Input | Exit Fees'!$K$51:$K$65,L$12:L$26,($H$12:$H$26=$F47)/1)*'Inputs | General'!K$29+SUMPRODUCT('Input | Exit Fees'!$L$51:$L$65,L$12:L$26,($H$12:$H$26=$F47)/1)*'Inputs | General'!K$31 -> 63258344.37 | M47: =SUMPRODUCT('Input | Exit Fees'!$K$51:$K$65,M$12:M$26,($H$12:$H$26=$F47)/1)*'Inputs | General'!L$29+SUMPRODUCT('Input | Exit Fees'!$L$51:$L$65,M$12:M$26,($H$12:$H$26=$F47)/1)*'Inputs | General'!L$31 -> 63701688.03 | N47: =SUMPRODUCT('Input | Exit Fees'!$K$51:$K$65,N$12:N$26,($H$12:$H$26=$F47)/1)*'Inputs | General'!M$29+SUMPRODUCT('Input | Exit Fees'!$L$51:$L$65,N$12:N$26,($H$12:$H$26=$F47)/1)*'Inputs | General'!M$31 -> 64165052.65 | O47: =SUMPRODUCT('Input | Exit Fees'!$K$51:$K$65,O$12:O$26,($H$12:$H$26=$F47)/1)*'Inputs | General'!N$29+SUMPRODUCT('Input | Exit Fees'!$L$51:$L$65,O$12:O$26,($H$12:$H$26=$F47)/1)*'Inputs | General'!N$31 -> 64605839.99
F48: ='Input | Exit Fees'!$D33 -> Multiphase | G48: $dollars | K48: =SUMPRODUCT('Input | Exit Fees'!$K$51:$K$65,K$12:K$26,($H$12:$H$26=$F48)/1)*'Inputs | General'!J$29+SUMPRODUCT('Input | Exit Fees'!$L$51:$L$65,K$12:K$26,($H$12:$H$26=$F48)/1)*'Inputs | General'!J$31 -> 105418773.6 | L48: =SUMPRODUCT('Input | Exit Fees'!$K$51:$K$65,L$12:L$26,($H$12:$H$26=$F48)/1)*'Inputs | General'!K$29+SUMPRODUCT('Input | Exit Fees'!$L$51:$L$65,L$12:L$26,($H$12:$H$26=$F48)/1)*'Inputs | General'!K$31 -> 115891631.2 | M48: =SUMPRODUCT('Input | Exit Fees'!$K$51:$K$65,M$12:M$26,($H$12:$H$26=$F48)/1)*'Inputs | General'!L$29+SUMPRODUCT('Input | Exit Fees'!$L$51:$L$65,M$12:M$26,($H$12:$H$26=$F48)/1)*'Inputs | General'!L$31 -> 128100299 | N48: =SUMPRODUCT('Input | Exit Fees'!$K$51:$K$65,N$12:N$26,($H$12:$H$26=$F48)/1)*'Inputs | General'!M$29+SUMPRODUCT('Input | Exit Fees'!$L$51:$L$65,N$12:N$26,($H$12:$H$26=$F48)/1)*'Inputs | General'!M$31 -> 142171512.7 | O48: =SUMPRODUCT('Input | Exit Fees'!$K$51:$K$65,O$12:O$26,($H$12:$H$26=$F48)/1)*'Inputs | General'!N$29+SUMPRODUCT('Input | Exit Fees'!$L$51:$L$65,O$12:O$26,($H$12:$H$26=$F48)/1)*'Inputs | General'!N$31 -> 158278026.8
F49: ='Input | Exit Fees'!$D34 -> Multiphase CT connected | G49: $dollars | K49: =SUMPRODUCT('Input | Exit Fees'!$K$51:$K$65,K$12:K$26,($H$12:$H$26=$F49)/1)*'Inputs | General'!J$29+SUMPRODUCT('Input | Exit Fees'!$L$51:$L$65,K$12:K$26,($H$12:$H$26=$F49)/1)*'Inputs | General'!J$31 -> 6951740.678 | L49: =SUMPRODUCT('Input | Exit Fees'!$K$51:$K$65,L$12:L$26,($H$12:$H$26=$F49)/1)*'Inputs | General'!K$29+SUMPRODUCT('Input | Exit Fees'!$L$51:$L$65,L$12:L$26,($H$12:$H$26=$F49)/1)*'Inputs | General'!K$31 -> 7189206.962 | M49: =SUMPRODUCT('Input | Exit Fees'!$K$51:$K$65,M$12:M$26,($H$12:$H$26=$F49)/1)*'Inputs | General'!L$29+SUMPRODUCT('Input | Exit Fees'!$L$51:$L$65,M$12:M$26,($H$12:$H$26=$F49)/1)*'Inputs | General'!L$31 -> 7440477.583 | N49: =SUMPRODUCT('Input | Exit Fees'!$K$51:$K$65,N$12:N$26,($H$12:$H$26=$F49)/1)*'Inputs | General'!M$29+SUMPRODUCT('Input | Exit Fees'!$L$51:$L$65,N$12:N$26,($H$12:$H$26=$F49)/1)*'Inputs | General'!M$31 -> 7704799.917 | O49: =SUMPRODUCT('Input | Exit Fees'!$K$51:$K$65,O$12:O$26,($H$12:$H$26=$F49)/1)*'Inputs | General'!N$29+SUMPRODUCT('Input | Exit Fees'!$L$51:$L$65,O$12:O$26,($H$12:$H$26=$F49)/1)*'Inputs | General'!N$31 -> 7976522.629
F50: ='Input | Exit Fees'!$D35 -> 0 | G50: $dollars | K50: =SUMPRODUCT('Input | Exit Fees'!$K$51:$K$65,K$12:K$26,($H$12:$H$26=$F50)/1)*'Inputs | General'!J$29+SUMPRODUCT('Input | Exit Fees'!$L$51:$L$65,K$12:K$26,($H$12:$H$26=$F50)/1)*'Inputs | General'!J$31 -> 0 | L50: =SUMPRODUCT('Input | Exit Fees'!$K$51:$K$65,L$12:L$26,($H$12:$H$26=$F50)/1)*'Inputs | General'!K$29+SUMPRODUCT('Input | Exit Fees'!$L$51:$L$65,L$12:L$26,($H$12:$H$26=$F50)/1)*'Inputs | General'!K$31 -> 0 | M50: =SUMPRODUCT('Input | Exit Fees'!$K$51:$K$65,M$12:M$26,($H$12:$H$26=$F50)/1)*'Inputs | General'!L$29+SUMPRODUCT('Input | Exit Fees'!$L$51:$L$65,M$12:M$26,($H$12:$H$26=$F50)/1)*'Inputs | General'!L$31 -> 0 | N50: =SUMPRODUCT('Input | Exit Fees'!$K$51:$K$65,N$12:N$26,($H$12:$H$26=$F50)/1)*'Inputs | General'!M$29+SUMPRODUCT('Input | Exit Fees'!$L$51:$L$65,N$12:N$26,($H$12:$H$26=$F50)/1)*'Inputs | General'!M$31 -> 0 | O50: =SUMPRODUCT('Input | Exit Fees'!$K$51:$K$65,O$12:O$26,($H$12:$H$26=$F50)/1)*'Inputs | General'!N$29+SUMPRODUCT('Input | Exit Fees'!$L$51:$L$65,O$12:O$26,($H$12:$H$26=$F50)/1)*'Inputs | General'!N$31 -> 0
F51: ='Input | Exit Fees'!$D36 -> 0 | G51: $dollars | K51: =SUMPRODUCT('Input | Exit Fees'!$K$51:$K$65,K$12:K$26,($H$12:$H$26=$F51)/1)*'Inputs | General'!J$29+SUMPRODUCT('Input | Exit Fees'!$L$51:$L$65,K$12:K$26,($H$12:$H$26=$F51)/1)*'Inputs | General'!J$31 -> 0 | L51: =SUMPRODUCT('Input | Exit Fees'!$K$51:$K$65,L$12:L$26,($H$12:$H$26=$F51)/1)*'Inputs | General'!K$29+SUMPRODUCT('Input | Exit Fees'!$L$51:$L$65,L$12:L$26,($H$12:$H$26=$F51)/1)*'Inputs | General'!K$31 -> 0 | M51: =SUMPRODUCT('Input | Exit Fees'!$K$51:$K$65,M$12:M$26,($H$12:$H$26=$F51)/1)*'Inputs | General'!L$29+SUMPRODUCT('Input | Exit Fees'!$L$51:$L$65,M$12:M$26,($H$12:$H$26=$F51)/1)*'Inputs | General'!L$31 -> 0 | N51: =SUMPRODUCT('Input | Exit Fees'!$K$51:$K$65,N$12:N$26,($H$12:$H$26=$F51)/1)*'Inputs | General'!M$29+SUMPRODUCT('Input | Exit Fees'!$L$51:$L$65,N$12:N$26,($H$12:$H$26=$F51)/1)*'Inputs | General'!M$31 -> 0 | O51: =SUMPRODUCT('Input | Exit Fees'!$K$51:$K$65,O$12:O$26,($H$12:$H$26=$F51)/1)*'Inputs | General'!N$29+SUMPRODUCT('Input | Exit Fees'!$L$51:$L$65,O$12:O$26,($H$12:$H$26=$F51)/1)*'Inputs | General'!N$31 -> 0
F52: ='Input | Exit Fees'!$D37 -> 0 | G52: $dollars | K52: =SUMPRODUCT('Input | Exit Fees'!$K$51:$K$65,K$12:K$26,($H$12:$H$26=$F52)/1)*'Inputs | General'!J$29+SUMPRODUCT('Input | Exit Fees'!$L$51:$L$65,K$12:K$26,($H$12:$H$26=$F52)/1)*'Inputs | General'!J$31 -> 0 | L52: =SUMPRODUCT('Input | Exit Fees'!$K$51:$K$65,L$12:L$26,($H$12:$H$26=$F52)/1)*'Inputs | General'!K$29+SUMPRODUCT('Input | Exit Fees'!$L$51:$L$65,L$12:L$26,($H$12:$H$26=$F52)/1)*'Inputs | General'!K$31 -> 0 | M52: =SUMPRODUCT('Input | Exit Fees'!$K$51:$K$65,M$12:M$26,($H$12:$H$26=$F52)/1)*'Inputs | General'!L$29+SUMPRODUCT('Input | Exit Fees'!$L$51:$L$65,M$12:M$26,($H$12:$H$26=$F52)/1)*'Inputs | General'!L$31 -> 0 | N52: =SUMPRODUCT('Input | Exit Fees'!$K$51:$K$65,N$12:N$26,($H$12:$H$26=$F52)/1)*'Inputs | General'!M$29+SUMPRODUCT('Input | Exit Fees'!$L$51:$L$65,N$12:N$26,($H$12:$H$26=$F52)/1)*'Inputs | General'!M$31 -> 0 | O52: =SUMPRODUCT('Input | Exit Fees'!$K$51:$K$65,O$12:O$26,($H$12:$H$26=$F52)/1)*'Inputs | General'!N$29+SUMPRODUCT('Input | Exit Fees'!$L$51:$L$65,O$12:O$26,($H$12:$H$26=$F52)/1)*'Inputs | General'!N$31 -> 0
F53: ='Input | Exit Fees'!$D38 -> 0 | G53: $dollars | K53: =SUMPRODUCT('Input | Exit Fees'!$K$51:$K$65,K$12:K$26,($H$12:$H$26=$F53)/1)*'Inputs | General'!J$29+SUMPRODUCT('Input | Exit Fees'!$L$51:$L$65,K$12:K$26,($H$12:$H$26=$F53)/1)*'Inputs | General'!J$31 -> 0 | L53: =SUMPRODUCT('Input | Exit Fees'!$K$51:$K$65,L$12:L$26,($H$12:$H$26=$F53)/1)*'Inputs | General'!K$29+SUMPRODUCT('Input | Exit Fees'!$L$51:$L$65,L$12:L$26,($H$12:$H$26=$F53)/1)*'Inputs | General'!K$31 -> 0 | M53: =SUMPRODUCT('Input | Exit Fees'!$K$51:$K$65,M$12:M$26,($H$12:$H$26=$F53)/1)*'Inputs | General'!L$29+SUMPRODUCT('Input | Exit Fees'!$L$51:$L$65,M$12:M$26,($H$12:$H$26=$F53)/1)*'Inputs | General'!L$31 -> 0 | N53: =SUMPRODUCT('Input | Exit Fees'!$K$51:$K$65,N$12:N$26,($H$12:$H$26=$F53)/1)*'Inputs | General'!M$29+SUMPRODUCT('Input | Exit Fees'!$L$51:$L$65,N$12:N$26,($H$12:$H$26=$F53)/1)*'Inputs | General'!M$31 -> 0 | O53: =SUMPRODUCT('Input | Exit Fees'!$K$51:$K$65,O$12:O$26,($H$12:$H$26=$F53)/1)*'Inputs | General'!N$29+SUMPRODUCT('Input | Exit Fees'!$L$51:$L$65,O$12:O$26,($H$12:$H$26=$F53)/1)*'Inputs | General'!N$31 -> 0
F54: ='Input | Exit Fees'!$D39 -> 0 | G54: $dollars | K54: =SUMPRODUCT('Input | Exit Fees'!$K$51:$K$65,K$12:K$26,($H$12:$H$26=$F54)/1)*'Inputs | General'!J$29+SUMPRODUCT('Input | Exit Fees'!$L$51:$L$65,K$12:K$26,($H$12:$H$26=$F54)/1)*'Inputs | General'!J$31 -> 0 | L54: =SUMPRODUCT('Input | Exit Fees'!$K$51:$K$65,L$12:L$26,($H$12:$H$26=$F54)/1)*'Inputs | General'!K$29+SUMPRODUCT('Input | Exit Fees'!$L$51:$L$65,L$12:L$26,($H$12:$H$26=$F54)/1)*'Inputs | General'!K$31 -> 0 | M54: =SUMPRODUCT('Input | Exit Fees'!$K$51:$K$65,M$12:M$26,($H$12:$H$26=$F54)/1)*'Inputs | General'!L$29+SUMPRODUCT('Input | Exit Fees'!$L$51:$L$65,M$12:M$26,($H$12:$H$26=$F54)/1)*'Inputs | General'!L$31 -> 0 | N54: =SUMPRODUCT('Input | Exit Fees'!$K$51:$K$65,N$12:N$26,($H$12:$H$26=$F54)/1)*'Inputs | General'!M$29+SUMPRODUCT('Input | Exit Fees'!$L$51:$L$65,N$12:N$26,($H$12:$H$26=$F54)/1)*'Inputs | General'!M$31 -> 0 | O54: =SUMPRODUCT('Input | Exit Fees'!$K$51:$K$65,O$12:O$26,($H$12:$H$26=$F54)/1)*'Inputs | General'!N$29+SUMPRODUCT('Input | Exit Fees'!$L$51:$L$65,O$12:O$26,($H$12:$H$26=$F54)/1)*'Inputs | General'!N$31 -> 0
F55: ='Input | Exit Fees'!$D40 -> 0 | G55: $dollars | K55: =SUMPRODUCT('Input | Exit Fees'!$K$51:$K$65,K$12:K$26,($H$12:$H$26=$F55)/1)*'Inputs | General'!J$29+SUMPRODUCT('Input | Exit Fees'!$L$51:$L$65,K$12:K$26,($H$12:$H$26=$F55)/1)*'Inputs | General'!J$31 -> 0 | L55: =SUMPRODUCT('Input | Exit Fees'!$K$51:$K$65,L$12:L$26,($H$12:$H$26=$F55)/1)*'Inputs | General'!K$29+SUMPRODUCT('Input | Exit Fees'!$L$51:$L$65,L$12:L$26,($H$12:$H$26=$F55)/1)*'Inputs | General'!K$31 -> 0 | M55: =SUMPRODUCT('Input | Exit Fees'!$K$51:$K$65,M$12:M$26,($H$12:$H$26=$F55)/1)*'Inputs | General'!L$29+SUMPRODUCT('Input | Exit Fees'!$L$51:$L$65,M$12:M$26,($H$12:$H$26=$F55)/1)*'Inputs | General'!L$31 -> 0 | N55: =SUMPRODUCT('Input | Exit Fees'!$K$51:$K$65,N$12:N$26,($H$12:$H$26=$F55)/1)*'Inputs | General'!M$29+SUMPRODUCT('Input | Exit Fees'!$L$51:$L$65,N$12:N$26,($H$12:$H$26=$F55)/1)*'Inputs | General'!M$31 -> 0 | O55: =SUMPRODUCT('Input | Exit Fees'!$K$51:$K$65,O$12:O$26,($H$12:$H$26=$F55)/1)*'Inputs | General'!N$29+SUMPRODUCT('Input | Exit Fees'!$L$51:$L$65,O$12:O$26,($H$12:$H$26=$F55)/1)*'Inputs | General'!N$31 -> 0
F56: Total | G56: $dollars | K56: =SUM(K46:K55) -> 471527655.8 | L56: =SUM(L46:L55) -> 491246370.4 | M56: =SUM(M46:M55) -> 512286398.7 | N56: =SUM(N46:N55) -> 534729137.9 | O56: =SUM(O46:O55) -> 558408793.5
E59: Proportionate Volume-Weighted Costs | K59: Regulatory period
F60: Exit Fee | G60: Units | K60: =FPFirstYear -> 2026-27 | L60: =LEFT(K60,4)+1&"-"&RIGHT(K60,2)+1 -> 2027-28 | M60: =LEFT(L60,4)+1&"-"&RIGHT(L60,2)+1 -> 2028-29 | N60: =LEFT(M60,4)+1&"-"&RIGHT(M60,2)+1 -> 2029-30 | O60: =LEFT(N60,4)+1&"-"&RIGHT(N60,2)+1 -> 2030-31
F61: ='Input | Exit Fees'!$D31 -> Single phase single element | G61: % | K61: =K46/K$56 -> 0.6284255574 | L61: =L46/L$56 -> 0.6206807953 | M61: 0.6110721169 | N61: 0.5997200263 | O61: 0.586574581
F62: ='Input | Exit Fees'!$D32 -> Single phase two element with contactor | G62: % | K62: 0.1332628338 | L62: 0.1287711181 | M62: 0.1243478027 | N62: 0.1199954297 | O62: 0.1156963156
F63: ='Input | Exit Fees'!$D33 -> Multiphase | G63: % | K63: 0.2235685909 | L63: 0.2359134605 | M63: 0.250056022 | N63: 0.2658757539 | O63: 0.2834447248
F64: ='Input | Exit Fees'!$D34 -> Multiphase CT connected | G64: % | K64: 0.01474301792 | L64: 0.01463462612 | M64: 0.01452405842 | N64: 0.01440879012 | O64: 0.01428437862
F65: ='Input | Exit Fees'!$D35 -> 0 | G65: % | K65: 0 | L65: 0 | M65: 0 | N65: 0 | O65: 0
F66: ='Input | Exit Fees'!$D36 -> 0 | G66: % | K66: 0 | L66: 0 | M66: 0 | N66: 0 | O66: 0
F67: ='Input | Exit Fees'!$D37 -> 0 | G67: % | K67: 0 | L67: 0 | M67: 0 | N67: 0 | O67: 0
F68: ='Input | Exit Fees'!$D38 -> 0 | G68: % | K68: 0 | L68: 0 | M68: 0 | N68: 0 | O68: 0
F69: ='Input | Exit Fees'!$D39 -> 0 | G69: % | K69: 0 | L69: 0 | M69: 0 | N69: 0 | O69: 0
F70: ='Input | Exit Fees'!$D40 -> 0 | G70: % | K70: 0 | L70: 0 | M70: 0 | N70: 0 | O70: 0
F71: Total | G71: % | K71: =SUM(K61:K70) -> 1 | L71: =SUM(L61:L70) -> 1 | M71: =SUM(M61:M70) -> 1 | N71: =SUM(N61:N70) -> 1 | O71: =SUM(O61:O70) -> 1
A72: =PRODUCT(J72:O72) -> 1 | K72: =(K71=1)/1 -> 1 | L72: =(L71=1)/1 -> 1 | M72: =(M71=1)/1 -> 1 | N72: =(N71=1)/1 -> 1 | O72: =(O71=1)/1 -> 1
E75: Allocated Meter RAB by Designated Exit Fee ($nominal) | K75: Regulatory period
F76: Exit Fee | G76: Units | K76: =FPFirstYear -> 2026-27 | L76: =LEFT(K76,4)+1&"-"&RIGHT(K76,2)+1 -> 2027-28 | M76: =LEFT(L76,4)+1&"-"&RIGHT(L76,2)+1 -> 2028-29 | N76: =LEFT(M76,4)+1&"-"&RIGHT(M76,2)+1 -> 2029-30 | O76: =LEFT(N76,4)+1&"-"&RIGHT(N76,2)+1 -> 2030-31
F77: ='Input | Exit Fees'!$D31 -> Single phase single element | G77: $m | K77: =AVERAGE('Input | Exit Fees'!G$13:H$13)*'Calc | Exit Fees'!K61 -> 66.97054778 | L77: =AVERAGE('Input | Exit Fees'!H$13:I$13)*'Calc | Exit Fees'!L61 -> 61.21818737 | M77: =AVERAGE('Input | Exit Fees'!I$13:J$13)*'Calc | Exit Fees'!M61 -> 70.43553877 | N77: =AVERAGE('Input | Exit Fees'!J$13:K$13)*'Calc | Exit Fees'!N61 -> 90.48780697 | O77: =AVERAGE('Input | Exit Fees'!K$13:L$13)*'Calc | Exit Fees'!O61 -> 114.5439947
F78: ='Input | Exit Fees'!$D32 -> Single phase two element with contactor | G78: $m | K78: =AVERAGE('Input | Exit Fees'!G$13:H$13)*'Calc | Exit Fees'!K62 -> 14.20165822 | L78: =AVERAGE('Input | Exit Fees'!H$13:I$13)*'Calc | Exit Fees'!L62 -> 12.70078677 | M78: =AVERAGE('Input | Exit Fees'!I$13:J$13)*'Calc | Exit Fees'!M62 -> 14.33301281 | N78: =AVERAGE('Input | Exit Fees'!J$13:K$13)*'Calc | Exit Fees'!N62 -> 18.10532048 | O78: =AVERAGE('Input | Exit Fees'!K$13:L$13)*'Calc | Exit Fees'!O62 -> 22.59272492
F79: ='Input | Exit Fees'!$D33 -> Multiphase | G79: $m | K79: =AVERAGE('Input | Exit Fees'!G$13:H$13)*'Calc | Exit Fees'!K63 -> 23.82543298 | L79: =AVERAGE('Input | Exit Fees'!H$13:I$13)*'Calc | Exit Fees'!L63 -> 23.26831205 | M79: =AVERAGE('Input | Exit Fees'!I$13:J$13)*'Calc | Exit Fees'!M63 -> 28.82283473 | N79: =AVERAGE('Input | Exit Fees'!J$13:K$13)*'Calc | Exit Fees'!N63 -> 40.11624232 | O79: =AVERAGE('Input | Exit Fees'!K$13:L$13)*'Calc | Exit Fees'!O63 -> 55.34997954
F80: ='Input | Exit Fees'!$D34 -> Multiphase CT connected | G80: $m | K80: =AVERAGE('Input | Exit Fees'!G$13:H$13)*'Calc | Exit Fees'!K64 -> 1.571145499 | L80: =AVERAGE('Input | Exit Fees'!H$13:I$13)*'Calc | Exit Fees'!L64 -> 1.443423561 | M80: =AVERAGE('Input | Exit Fees'!I$13:J$13)*'Calc | Exit Fees'!M64 -> 1.674122991 | N80: =AVERAGE('Input | Exit Fees'!J$13:K$13)*'Calc | Exit Fees'!N64 -> 2.174047492 | O80: =AVERAGE('Input | Exit Fees'!K$13:L$13)*'Calc | Exit Fees'!O64 -> 2.789397702
F81: ='Input | Exit Fees'!$D35 -> 0 | G81: $m | K81: =AVERAGE('Input | Exit Fees'!G$13:H$13)*'Calc | Exit Fees'!K65 -> 0 | L81: =AVERAGE('Input | Exit Fees'!H$13:I$13)*'Calc | Exit Fees'!L65 -> 0 | M81: =AVERAGE('Input | Exit Fees'!I$13:J$13)*'Calc | Exit Fees'!M65 -> 0 | N81: =AVERAGE('Input | Exit Fees'!J$13:K$13)*'Calc | Exit Fees'!N65 -> 0 | O81: =AVERAGE('Input | Exit Fees'!K$13:L$13)*'Calc | Exit Fees'!O65 -> 0
F82: ='Input | Exit Fees'!$D36 -> 0 | G82: $m | K82: =AVERAGE('Input | Exit Fees'!G$13:H$13)*'Calc | Exit Fees'!K66 -> 0 | L82: =AVERAGE('Input | Exit Fees'!H$13:I$13)*'Calc | Exit Fees'!L66 -> 0 | M82: =AVERAGE('Input | Exit Fees'!I$13:J$13)*'Calc | Exit Fees'!M66 -> 0 | N82: =AVERAGE('Input | Exit Fees'!J$13:K$13)*'Calc | Exit Fees'!N66 -> 0 | O82: =AVERAGE('Input | Exit Fees'!K$13:L$13)*'Calc | Exit Fees'!O66 -> 0
F83: ='Input | Exit Fees'!$D37 -> 0 | G83: $m | K83: =AVERAGE('Input | Exit Fees'!G$13:H$13)*'Calc | Exit Fees'!K67 -> 0 | L83: =AVERAGE('Input | Exit Fees'!H$13:I$13)*'Calc | Exit Fees'!L67 -> 0 | M83: =AVERAGE('Input | Exit Fees'!I$13:J$13)*'Calc | Exit Fees'!M67 -> 0 | N83: =AVERAGE('Input | Exit Fees'!J$13:K$13)*'Calc | Exit Fees'!N67 -> 0 | O83: =AVERAGE('Input | Exit Fees'!K$13:L$13)*'Calc | Exit Fees'!O67 -> 0
F84: ='Input | Exit Fees'!$D38 -> 0 | G84: $m | K84: =AVERAGE('Input | Exit Fees'!G$13:H$13)*'Calc | Exit Fees'!K68 -> 0 | L84: =AVERAGE('Input | Exit Fees'!H$13:I$13)*'Calc | Exit Fees'!L68 -> 0 | M84: =AVERAGE('Input | Exit Fees'!I$13:J$13)*'Calc | Exit Fees'!M68 -> 0 | N84: =AVERAGE('Input | Exit Fees'!J$13:K$13)*'Calc | Exit Fees'!N68 -> 0 | O84: =AVERAGE('Input | Exit Fees'!K$13:L$13)*'Calc | Exit Fees'!O68 -> 0
F85: ='Input | Exit Fees'!$D39 -> 0 | G85: $m | K85: =AVERAGE('Input | Exit Fees'!G$13:H$13)*'Calc | Exit Fees'!K69 -> 0 | L85: =AVERAGE('Input | Exit Fees'!H$13:I$13)*'Calc | Exit Fees'!L69 -> 0 | M85: =AVERAGE('Input | Exit Fees'!I$13:J$13)*'Calc | Exit Fees'!M69 -> 0 | N85: =AVERAGE('Input | Exit Fees'!J$13:K$13)*'Calc | Exit Fees'!N69 -> 0 | O85: =AVERAGE('Input | Exit Fees'!K$13:L$13)*'Calc | Exit Fees'!O69 -> 0
F86: ='Input | Exit Fees'!$D40 -> 0 | G86: $m | K86: =AVERAGE('Input | Exit Fees'!G$13:H$13)*'Calc | Exit Fees'!K70 -> 0 | L86: =AVERAGE('Input | Exit Fees'!H$13:I$13)*'Calc | Exit Fees'!L70 -> 0 | M86: =AVERAGE('Input | Exit Fees'!I$13:J$13)*'Calc | Exit Fees'!M70 -> 0 | N86: =AVERAGE('Input | Exit Fees'!J$13:K$13)*'Calc | Exit Fees'!N70 -> 0 | O86: =AVERAGE('Input | Exit Fees'!K$13:L$13)*'Calc | Exit Fees'!O70 -> 0
F87: Total | G87: $m | K87: =SUM(K77:K86) -> 106.5687845 | L87: =SUM(L77:L86) -> 98.63070975 | M87: =SUM(M77:M86) -> 115.2655093 | N87: =SUM(N77:N86) -> 150.8834173 | O87: =SUM(O77:O86) -> 195.2760968
A88: =PRODUCT(J88:O88) -> 1 | K88: =(K87=AVERAGE('Input | Exit Fees'!G$13:H$13))/1 -> 1 | L88: =(L87=AVERAGE('Input | Exit Fees'!H$13:I$13))/1 -> 1 | M88: =(M87=AVERAGE('Input | Exit Fees'!I$13:J$13))/1 -> 1 | N88: =(N87=AVERAGE('Input | Exit Fees'!J$13:K$13))/1 -> 1 | O88: =(O87=AVERAGE('Input | Exit Fees'!K$13:L$13))/1 -> 1
E90: Allocated Meter RAB by Designated Exit Fee Per Meter ($nominal) | K90: Regulatory period
F91: Exit Fee | G91: Units | K91: =FPFirstYear -> 2026-27 | L91: =LEFT(K91,4)+1&"-"&RIGHT(K91,2)+1 -> 2027-28 | M91: =LEFT(L91,4)+1&"-"&RIGHT(L91,2)+1 -> 2028-29 | N91: =LEFT(M91,4)+1&"-"&RIGHT(M91,2)+1 -> 2029-30 | O91: =LEFT(N91,4)+1&"-"&RIGHT(N91,2)+1 -> 2030-31
F92: ='Input | Exit Fees'!$D31 -> Single phase single element | G92: $dollars | K92: =IFERROR(K77*10^6/K31,0) -> 116.0223578 | L92: =IFERROR(L77*10^6/L31,0) -> 104.9630353 | M92: 119.8853999 | N92: 153.3117036 | O92: 193.7420432
F93: ='Input | Exit Fees'!$D32 -> Single phase two element with contactor | G93: $dollars | K93: 121.7791546 | L93: 110.2101206 | M93: 125.9184804 | N93: 161.0743088 | O93: 203.6126517
F94: ='Input | Exit Fees'!$D33 -> Multiphase | G94: $dollars | K94: 145.2269903 | L94: 131.5818655 | M94: 150.491639 | N94: 192.6919418 | O94: 243.8163299
F95: ='Input | Exit Fees'!$D34 -> Multiphase CT connected | G95: $dollars | K95: 295.457866 | L95: 266.6757591 | M95: 303.9537477 | N95: 387.9503502 | O95: 489.2923447
F96: ='Input | Exit Fees'!$D35 -> 0 | G96: $dollars | K96: 0 | L96: 0 | M96: 0 | N96: 0 | O96: 0
F97: ='Input | Exit Fees'!$D36 -> 0 | G97: $dollars | K97: 0 | L97: 0 | M97: 0 | N97: 0 | O97: 0
F98: ='Input | Exit Fees'!$D37 -> 0 | G98: $dollars | K98: 0 | L98: 0 | M98: 0 | N98: 0 | O98: 0
F99: ='Input | Exit Fees'!$D38 -> 0 | G99: $dollars | K99: 0 | L99: 0 | M99: 0 | N99: 0 | O99: 0
F100: ='Input | Exit Fees'!$D39 -> 0 | G100: $dollars | K100: 0 | L100: 0 | M100: 0 | N100: 0 | O100: 0
F101: ='Input | Exit Fees'!$D40 -> 0 | G101: $dollars | K101: 0 | L101: 0 | M101: 0 | N101: 0 | O101: 0
B103: Calculations | Comms & IT ($nominal)
C105: Calculation of Allocated Comms & IT RAB by Designated Exit Fee
K107: Regulatory period
F108: Exit Fee Component | G108: Units | K108: =FPFirstYear -> 2026-27 | L108: =LEFT(K108,4)+1&"-"&RIGHT(K108,2)+1 -> 2027-28 | M108: =LEFT(L108,4)+1&"-"&RIGHT(L108,2)+1 -> 2028-29 | N108: =LEFT(M108,4)+1&"-"&RIGHT(M108,2)+1 -> 2029-30 | O108: =LEFT(N108,4)+1&"-"&RIGHT(N108,2)+1 -> 2030-31
F109: Comms & IT RAB per meter | G109: $dollars | K109: =(AVERAGE('Input | Exit Fees'!G$21:H$21)*10^6)/'Calc | Exit Fees'!K$41 -> 8.584630948 | L109: =(AVERAGE('Input | Exit Fees'!H$21:I$21)*10^6)/'Calc | Exit Fees'!L$41 -> 1.325931559 | M109: =(AVERAGE('Input | Exit Fees'!I$21:J$21)*10^6)/'Calc | Exit Fees'!M$41 -> -3.198466517 | N109: =(AVERAGE('Input | Exit Fees'!J$21:K$21)*10^6)/'Calc | Exit Fees'!N$41 -> -7.701755504 | O109: =(AVERAGE('Input | Exit Fees'!K$21:L$21)*10^6)/'Calc | Exit Fees'!O$41 -> -9.712083862
B113: Calculations | Exit Fees with Component Detail ($nominal)
F115: Base Year | G115: Regulatory period
G116: Tariff ($/year)
C117: No. | D117: Exit Fee Name | E117: Component | F117: 2025–26 | G117: 2026–27 | H117: 2027–28 | I117: 2028–29 | J117: 2029–30 | K117: 2030–31
C118: 1 | D118: ='Input | Exit Fees'!D31 -> Single phase single element
E119: Meter RAB | G119: =IF($D118=0,0,SUMIFS('Calc | Exit Fees'!K$92:K$101,'Input | Exit Fees'!$D$31:$D$40,$D118)) -> 116.0223578 | H119: =IF($D118=0,0,SUMIFS('Calc | Exit Fees'!L$92:L$101,'Input | Exit Fees'!$D$31:$D$40,$D118)) -> 104.9630353 | I119: =IF($D118=0,0,SUMIFS('Calc | Exit Fees'!M$92:M$101,'Input | Exit Fees'!$D$31:$D$40,$D118)) -> 119.8853999 | J119: =IF($D118=0,0,SUMIFS('Calc | Exit Fees'!N$92:N$101,'Input | Exit Fees'!$D$31:$D$40,$D118)) -> 153.3117036 | K119: =IF($D118=0,0,SUMIFS('Calc | Exit Fees'!O$92:O$101,'Input | Exit Fees'!$D$31:$D$40,$D118)) -> 193.7420432
E120: Comms & IT | G120: =IF($D118=0,0,'Calc | Exit Fees'!K$109) -> 8.584630948 | H120: =IF($D118=0,0,'Calc | Exit Fees'!L$109) -> 1.325931559 | I120: =IF($D118=0,0,'Calc | Exit Fees'!M$109) -> -3.198466517 | J120: =IF($D118=0,0,'Calc | Exit Fees'!N$109) -> -7.701755504 | K120: =IF($D118=0,0,'Calc | Exit Fees'!O$109) -> -9.712083862
E121: Admin cost | G121: =IF($D118=0,0,'Input | Exit Fees'!K$121*'Inputs | General'!J29) -> 83.78510022 | H121: =IF($D118=0,0,'Input | Exit Fees'!L$121*'Inputs | General'!K29) -> 85.96349241 | I121: =IF($D118=0,0,'Input | Exit Fees'!M$121*'Inputs | General'!L29) -> 88.19852226 | J121: =IF($D118=0,0,'Input | Exit Fees'!N$121*'Inputs | General'!M29) -> 90.49166235 | K121: =IF($D118=0,0,'Input | Exit Fees'!O$121*'Inputs | General'!N29) -> 92.84442352
E123: TOTAL exit fee | F123: =IF(D118=0,0,'Input | Exit Fees'!G31) -> 315.21 | G123: =SUM(G119:G122) -> 208.3920889 | H123: =SUM(H119:H122) -> 192.2524592 | I123: 204.8854556 | J123: 236.1016105 | K123: 276.8743828
C124: 2 | D124: ='Input | Exit Fees'!D32 -> Single phase two element with contactor
E125: =IF($D124=0,"",E$119) -> Meter RAB | G125: =IF($D124=0,0,SUMIFS('Calc | Exit Fees'!K$92:K$101,'Input | Exit Fees'!$D$31:$D$40,$D124)) -> 121.7791546 | H125: =IF($D124=0,0,SUMIFS('Calc | Exit Fees'!L$92:L$101,'Input | Exit Fees'!$D$31:$D$40,$D124)) -> 110.2101206 | I125: =IF($D124=0,0,SUMIFS('Calc | Exit Fees'!M$92:M$101,'Input | Exit Fees'!$D$31:$D$40,$D124)) -> 125.9184804 | J125: =IF($D124=0,0,SUMIFS('Calc | Exit Fees'!N$92:N$101,'Input | Exit Fees'!$D$31:$D$40,$D124)) -> 161.0743088 | K125: =IF($D124=0,0,SUMIFS('Calc | Exit Fees'!O$92:O$101,'Input | Exit Fees'!$D$31:$D$40,$D124)) -> 203.6126517
E126: =IF($D124=0,"",E$120) -> Comms & IT | G126: =IF($D124=0,0,'Calc | Exit Fees'!K$109) -> 8.584630948 | H126: =IF($D124=0,0,'Calc | Exit Fees'!L$109) -> 1.325931559 | I126: =IF($D124=0,0,'Calc | Exit Fees'!M$109) -> -3.198466517 | J126: =IF($D124=0,0,'Calc | Exit Fees'!N$109) -> -7.701755504 | K126: =IF($D124=0,0,'Calc | Exit Fees'!O$109) -> -9.712083862
E127: =IF($D124=0,"",E$121) -> Admin cost | G127: =IF($D124=0,0,'Input | Exit Fees'!K$121*'Inputs | General'!J29) -> 83.78510022 | H127: =IF($D124=0,0,'Input | Exit Fees'!L$121*'Inputs | General'!K29) -> 85.96349241 | I127: =IF($D124=0,0,'Input | Exit Fees'!M$121*'Inputs | General'!L29) -> 88.19852226 | J127: =IF($D124=0,0,'Input | Exit Fees'!N$121*'Inputs | General'!M29) -> 90.49166235 | K127: =IF($D124=0,0,'Input | Exit Fees'!O$121*'Inputs | General'!N29) -> 92.84442352
E129: =IF($D124=0,"",E$123) -> TOTAL exit fee | F129: =IF(D124=0,0,'Input | Exit Fees'!G32) -> 315.21 | G129: =SUM(G125:G128) -> 214.1488858 | H129: =SUM(H125:H128) -> 197.4995445 | I129: 210.9185362 | J129: 243.8642156 | K129: 286.7449914
C130: 3 | D130: ='Input | Exit Fees'!D33 -> Multiphase
E131: =IF($D130=0,"",E$119) -> Meter RAB | G131: =IF($D130=0,0,SUMIFS('Calc | Exit Fees'!K$92:K$101,'Input | Exit Fees'!$D$31:$D$40,$D130)) -> 145.2269903 | H131: =IF($D130=0,0,SUMIFS('Calc | Exit Fees'!L$92:L$101,'Input | Exit Fees'!$D$31:$D$40,$D130)) -> 131.5818655 | I131: =IF($D130=0,0,SUMIFS('Calc | Exit Fees'!M$92:M$101,'Input | Exit Fees'!$D$31:$D$40,$D130)) -> 150.491639 | J131: =IF($D130=0,0,SUMIFS('Calc | Exit Fees'!N$92:N$101,'Input | Exit Fees'!$D$31:$D$40,$D130)) -> 192.6919418 | K131: =IF($D130=0,0,SUMIFS('Calc | Exit Fees'!O$92:O$101,'Input | Exit Fees'!$D$31:$D$40,$D130)) -> 243.8163299
E132: =IF($D130=0,"",E$120) -> Comms & IT | G132: =IF($D130=0,0,'Calc | Exit Fees'!K$109) -> 8.584630948 | H132: =IF($D130=0,0,'Calc | Exit Fees'!L$109) -> 1.325931559 | I132: =IF($D130=0,0,'Calc | Exit Fees'!M$109) -> -3.198466517 | J132: =IF($D130=0,0,'Calc | Exit Fees'!N$109) -> -7.701755504 | K132: =IF($D130=0,0,'Calc | Exit Fees'!O$109) -> -9.712083862
E133: =IF($D130=0,"",E$121) -> Admin cost | G133: =IF($D130=0,0,'Input | Exit Fees'!K$121*'Inputs | General'!J29) -> 83.78510022 | H133: =IF($D130=0,0,'Input | Exit Fees'!L$121*'Inputs | General'!K29) -> 85.96349241 | I133: =IF($D130=0,0,'Input | Exit Fees'!M$121*'Inputs | General'!L29) -> 88.19852226 | J133: =IF($D130=0,0,'Input | Exit Fees'!N$121*'Inputs | General'!M29) -> 90.49166235 | K133: =IF($D130=0,0,'Input | Exit Fees'!O$121*'Inputs | General'!N29) -> 92.84442352
E135: =IF($D130=0,"",E$123) -> TOTAL exit fee | F135: =IF(D130=0,0,'Input | Exit Fees'!G33) -> 315.22 | G135: =SUM(G131:G134) -> 237.5967215 | H135: =SUM(H131:H134) -> 218.8712894 | I135: 235.4916948 | J135: 275.4818487 | K135: 326.9486696
C136: 4 | D136: ='Input | Exit Fees'!D34 -> Multiphase CT connected
E137: =IF($D136=0,"",E$119) -> Meter RAB | G137: =IF($D136=0,0,SUMIFS('Calc | Exit Fees'!K$92:K$101,'Input | Exit Fees'!$D$31:$D$40,$D136)) -> 295.457866 | H137: =IF($D136=0,0,SUMIFS('Calc | Exit Fees'!L$92:L$101,'Input | Exit Fees'!$D$31:$D$40,$D136)) -> 266.6757591 | I137: =IF($D136=0,0,SUMIFS('Calc | Exit Fees'!M$92:M$101,'Input | Exit Fees'!$D$31:$D$40,$D136)) -> 303.9537477 | J137: =IF($D136=0,0,SUMIFS('Calc | Exit Fees'!N$92:N$101,'Input | Exit Fees'!$D$31:$D$40,$D136)) -> 387.9503502 | K137: =IF($D136=0,0,SUMIFS('Calc | Exit Fees'!O$92:O$101,'Input | Exit Fees'!$D$31:$D$40,$D136)) -> 489.2923447
E138: =IF($D136=0,"",E$120) -> Comms & IT | G138: =IF($D136=0,0,'Calc | Exit Fees'!K$109) -> 8.584630948 | H138: =IF($D136=0,0,'Calc | Exit Fees'!L$109) -> 1.325931559 | I138: =IF($D136=0,0,'Calc | Exit Fees'!M$109) -> -3.198466517 | J138: =IF($D136=0,0,'Calc | Exit Fees'!N$109) -> -7.701755504 | K138: =IF($D136=0,0,'Calc | Exit Fees'!O$109) -> -9.712083862
E139: =IF($D136=0,"",E$121) -> Admin cost | G139: =IF($D136=0,0,'Input | Exit Fees'!K$121*'Inputs | General'!J29) -> 83.78510022 | H139: =IF($D136=0,0,'Input | Exit Fees'!L$121*'Inputs | General'!K29) -> 85.96349241 | I139: =IF($D136=0,0,'Input | Exit Fees'!M$121*'Inputs | General'!L29) -> 88.19852226 | J139: =IF($D136=0,0,'Input | Exit Fees'!N$121*'Inputs | General'!M29) -> 90.49166235 | K139: =IF($D136=0,0,'Input | Exit Fees'!O$121*'Inputs | General'!N29) -> 92.84442352
E141: =IF($D136=0,"",E$123) -> TOTAL exit fee | F141: =IF(D136=0,0,'Input | Exit Fees'!G34) -> 315.22 | G141: =SUM(G137:G140) -> 387.8275972 | H141: =SUM(H137:H140) -> 353.9651831 | I141: 388.9538034 | J141: 470.740257 | K141: 572.4246843
C142: 5 | D142: ='Input | Exit Fees'!D35 -> 0
E143: =IF($D142=0,"",E$119) ->  | G143: =IF($D142=0,0,SUMIFS('Calc | Exit Fees'!K$92:K$101,'Input | Exit Fees'!$D$31:$D$40,$D142)) -> 0 | H143: =IF($D142=0,0,SUMIFS('Calc | Exit Fees'!L$92:L$101,'Input | Exit Fees'!$D$31:$D$40,$D142)) -> 0 | I143: =IF($D142=0,0,SUMIFS('Calc | Exit Fees'!M$92:M$101,'Input | Exit Fees'!$D$31:$D$40,$D142)) -> 0 | J143: =IF($D142=0,0,SUMIFS('Calc | Exit Fees'!N$92:N$101,'Input | Exit Fees'!$D$31:$D$40,$D142)) -> 0 | K143: =IF($D142=0,0,SUMIFS('Calc | Exit Fees'!O$92:O$101,'Input | Exit Fees'!$D$31:$D$40,$D142)) -> 0
E144: =IF($D142=0,"",E$120) ->  | G144: =IF($D142=0,0,'Calc | Exit Fees'!K$109) -> 0 | H144: =IF($D142=0,0,'Calc | Exit Fees'!L$109) -> 0 | I144: =IF($D142=0,0,'Calc | Exit Fees'!M$109) -> 0 | J144: =IF($D142=0,0,'Calc | Exit Fees'!N$109) -> 0 | K144: =IF($D142=0,0,'Calc | Exit Fees'!O$109) -> 0
E145: =IF($D142=0,"",E$121) ->  | G145: =IF($D142=0,0,'Input | Exit Fees'!K$121*'Inputs | General'!J29) -> 0 | H145: =IF($D142=0,0,'Input | Exit Fees'!L$121*'Inputs | General'!K29) -> 0 | I145: =IF($D142=0,0,'Input | Exit Fees'!M$121*'Inputs | General'!L29) -> 0 | J145: =IF($D142=0,0,'Input | Exit Fees'!N$121*'Inputs | General'!M29) -> 0 | K145: =IF($D142=0,0,'Input | Exit Fees'!O$121*'Inputs | General'!N29) -> 0
E147: =IF($D142=0,"",E$123) ->  | F147: =IF(D142=0,0,'Input | Exit Fees'!G35) -> 0 | G147: =SUM(G143:G146) -> 0 | H147: =SUM(H143:H146) -> 0 | I147: 0 | J147: 0 | K147: 0
C148: 6 | D148: ='Input | Exit Fees'!D36 -> 0
E149: =IF($D148=0,"",E$119) ->  | G149: =IF($D148=0,0,SUMIFS('Calc | Exit Fees'!K$92:K$101,'Input | Exit Fees'!$D$31:$D$40,$D148)) -> 0 | H149: =IF($D148=0,0,SUMIFS('Calc | Exit Fees'!L$92:L$101,'Input | Exit Fees'!$D$31:$D$40,$D148)) -> 0 | I149: =IF($D148=0,0,SUMIFS('Calc | Exit Fees'!M$92:M$101,'Input | Exit Fees'!$D$31:$D$40,$D148)) -> 0 | J149: =IF($D148=0,0,SUMIFS('Calc | Exit Fees'!N$92:N$101,'Input | Exit Fees'!$D$31:$D$40,$D148)) -> 0 | K149: =IF($D148=0,0,SUMIFS('Calc | Exit Fees'!O$92:O$101,'Input | Exit Fees'!$D$31:$D$40,$D148)) -> 0
E150: =IF($D148=0,"",E$120) ->  | G150: =IF($D148=0,0,'Calc | Exit Fees'!K$109) -> 0 | H150: =IF($D148=0,0,'Calc | Exit Fees'!L$109) -> 0 | I150: =IF($D148=0,0,'Calc | Exit Fees'!M$109) -> 0 | J150: =IF($D148=0,0,'Calc | Exit Fees'!N$109) -> 0 | K150: =IF($D148=0,0,'Calc | Exit Fees'!O$109) -> 0
E151: =IF($D148=0,"",E$121) ->  | G151: =IF($D148=0,0,'Input | Exit Fees'!K$121) -> 0 | H151: =IF($D148=0,0,'Input | Exit Fees'!L$121) -> 0 | I151: =IF($D148=0,0,'Input | Exit Fees'!M$121) -> 0 | J151: =IF($D148=0,0,'Input | Exit Fees'!N$121) -> 0 | K151: =IF($D148=0,0,'Input | Exit Fees'!O$121) -> 0
E153: =IF($D148=0,"",E$123) ->  | F153: =IF(D148=0,0,'Input | Exit Fees'!G36) -> 0 | G153: =SUM(G149:G152) -> 0 | H153: =SUM(H149:H152) -> 0 | I153: 0 | J153: 0 | K153: 0
C154: 7 | D154: ='Input | Exit Fees'!D37 -> 0
E155: =IF($D154=0,"",E$119) ->  | G155: =IF($D154=0,0,SUMIFS('Calc | Exit Fees'!K$92:K$101,'Input | Exit Fees'!$D$31:$D$40,$D154)) -> 0 | H155: =IF($D154=0,0,SUMIFS('Calc | Exit Fees'!L$92:L$101,'Input | Exit Fees'!$D$31:$D$40,$D154)) -> 0 | I155: =IF($D154=0,0,SUMIFS('Calc | Exit Fees'!M$92:M$101,'Input | Exit Fees'!$D$31:$D$40,$D154)) -> 0 | J155: =IF($D154=0,0,SUMIFS('Calc | Exit Fees'!N$92:N$101,'Input | Exit Fees'!$D$31:$D$40,$D154)) -> 0 | K155: =IF($D154=0,0,SUMIFS('Calc | Exit Fees'!O$92:O$101,'Input | Exit Fees'!$D$31:$D$40,$D154)) -> 0
E156: =IF($D154=0,"",E$120) ->  | G156: =IF($D154=0,0,'Calc | Exit Fees'!K$109) -> 0 | H156: =IF($D154=0,0,'Calc | Exit Fees'!L$109) -> 0 | I156: =IF($D154=0,0,'Calc | Exit Fees'!M$109) -> 0 | J156: =IF($D154=0,0,'Calc | Exit Fees'!N$109) -> 0 | K156: =IF($D154=0,0,'Calc | Exit Fees'!O$109) -> 0
E157: =IF($D154=0,"",E$121) ->  | G157: =IF($D154=0,0,'Input | Exit Fees'!K$121) -> 0 | H157: =IF($D154=0,0,'Input | Exit Fees'!L$121) -> 0 | I157: =IF($D154=0,0,'Input | Exit Fees'!M$121) -> 0 | J157: =IF($D154=0,0,'Input | Exit Fees'!N$121) -> 0 | K157: =IF($D154=0,0,'Input | Exit Fees'!O$121) -> 0
E159: =IF($D154=0,"",E$123) ->  | F159: =IF(D154=0,0,'Input | Exit Fees'!G37) -> 0 | G159: =SUM(G155:G158) -> 0 | H159: =SUM(H155:H158) -> 0 | I159: 0 | J159: 0 | K159: 0
C160: 8 | D160: ='Input | Exit Fees'!D38 -> 0
E161: =IF($D160=0,"",E$119) ->  | G161: =IF($D160=0,0,SUMIFS('Calc | Exit Fees'!K$92:K$101,'Input | Exit Fees'!$D$31:$D$40,$D160)) -> 0 | H161: =IF($D160=0,0,SUMIFS('Calc | Exit Fees'!L$92:L$101,'Input | Exit Fees'!$D$31:$D$40,$D160)) -> 0 | I161: =IF($D160=0,0,SUMIFS('Calc | Exit Fees'!M$92:M$101,'Input | Exit Fees'!$D$31:$D$40,$D160)) -> 0 | J161: =IF($D160=0,0,SUMIFS('Calc | Exit Fees'!N$92:N$101,'Input | Exit Fees'!$D$31:$D$40,$D160)) -> 0 | K161: =IF($D160=0,0,SUMIFS('Calc | Exit Fees'!O$92:O$101,'Input | Exit Fees'!$D$31:$D$40,$D160)) -> 0
E162: =IF($D160=0,"",E$120) ->  | G162: =IF($D160=0,0,'Calc | Exit Fees'!K$109) -> 0 | H162: =IF($D160=0,0,'Calc | Exit Fees'!L$109) -> 0 | I162: =IF($D160=0,0,'Calc | Exit Fees'!M$109) -> 0 | J162: =IF($D160=0,0,'Calc | Exit Fees'!N$109) -> 0 | K162: =IF($D160=0,0,'Calc | Exit Fees'!O$109) -> 0
E163: =IF($D160=0,"",E$121) ->  | G163: =IF($D160=0,0,'Input | Exit Fees'!K$121) -> 0 | H163: =IF($D160=0,0,'Input | Exit Fees'!L$121) -> 0 | I163: =IF($D160=0,0,'Input | Exit Fees'!M$121) -> 0 | J163: =IF($D160=0,0,'Input | Exit Fees'!N$121) -> 0 | K163: =IF($D160=0,0,'Input | Exit Fees'!O$121) -> 0
E165: =IF($D160=0,"",E$123) ->  | F165: =IF(D160=0,0,'Input | Exit Fees'!G38) -> 0 | G165: =SUM(G161:G164) -> 0 | H165: =SUM(H161:H164) -> 0 | I165: 0 | J165: 0 | K165: 0
C166: 9 | D166: ='Input | Exit Fees'!D39 -> 0
E167: =IF($D166=0,"",E$119) ->  | G167: =IF($D166=0,0,SUMIFS('Calc | Exit Fees'!K$92:K$101,'Input | Exit Fees'!$D$31:$D$40,$D166)) -> 0 | H167: =IF($D166=0,0,SUMIFS('Calc | Exit Fees'!L$92:L$101,'Input | Exit Fees'!$D$31:$D$40,$D166)) -> 0 | I167: =IF($D166=0,0,SUMIFS('Calc | Exit Fees'!M$92:M$101,'Input | Exit Fees'!$D$31:$D$40,$D166)) -> 0 | J167: =IF($D166=0,0,SUMIFS('Calc | Exit Fees'!N$92:N$101,'Input | Exit Fees'!$D$31:$D$40,$D166)) -> 0 | K167: =IF($D166=0,0,SUMIFS('Calc | Exit Fees'!O$92:O$101,'Input | Exit Fees'!$D$31:$D$40,$D166)) -> 0
E168: =IF($D166=0,"",E$120) ->  | G168: =IF($D166=0,0,'Calc | Exit Fees'!K$109) -> 0 | H168: =IF($D166=0,0,'Calc | Exit Fees'!L$109) -> 0 | I168: =IF($D166=0,0,'Calc | Exit Fees'!M$109) -> 0 | J168: =IF($D166=0,0,'Calc | Exit Fees'!N$109) -> 0 | K168: =IF($D166=0,0,'Calc | Exit Fees'!O$109) -> 0
E169: =IF($D166=0,"",E$121) ->  | G169: =IF($D166=0,0,'Input | Exit Fees'!K$121) -> 0 | H169: =IF($D166=0,0,'Input | Exit Fees'!L$121) -> 0 | I169: =IF($D166=0,0,'Input | Exit Fees'!M$121) -> 0 | J169: =IF($D166=0,0,'Input | Exit Fees'!N$121) -> 0 | K169: =IF($D166=0,0,'Input | Exit Fees'!O$121) -> 0
E171: =IF($D166=0,"",E$123) ->  | F171: =IF(D166=0,0,'Input | Exit Fees'!G39) -> 0 | G171: =SUM(G167:G170) -> 0 | H171: =SUM(H167:H170) -> 0 | I171: 0 | J171: 0 | K171: 0
C172: 10 | D172: ='Input | Exit Fees'!D40 -> 0
E173: =IF($D172=0,"",E$119) ->  | G173: =IF($D172=0,0,SUMIFS('Calc | Exit Fees'!K$92:K$101,'Input | Exit Fees'!$D$31:$D$40,$D172)) -> 0 | H173: =IF($D172=0,0,SUMIFS('Calc | Exit Fees'!L$92:L$101,'Input | Exit Fees'!$D$31:$D$40,$D172)) -> 0 | I173: =IF($D172=0,0,SUMIFS('Calc | Exit Fees'!M$92:M$101,'Input | Exit Fees'!$D$31:$D$40,$D172)) -> 0 | J173: =IF($D172=0,0,SUMIFS('Calc | Exit Fees'!N$92:N$101,'Input | Exit Fees'!$D$31:$D$40,$D172)) -> 0 | K173: =IF($D172=0,0,SUMIFS('Calc | Exit Fees'!O$92:O$101,'Input | Exit Fees'!$D$31:$D$40,$D172)) -> 0
E174: =IF($D172=0,"",E$120) ->  | G174: =IF($D172=0,0,'Calc | Exit Fees'!K$109) -> 0 | H174: =IF($D172=0,0,'Calc | Exit Fees'!L$109) -> 0 | I174: =IF($D172=0,0,'Calc | Exit Fees'!M$109) -> 0 | J174: =IF($D172=0,0,'Calc | Exit Fees'!N$109) -> 0 | K174: =IF($D172=0,0,'Calc | Exit Fees'!O$109) -> 0
E175: =IF($D172=0,"",E$121) ->  | G175: =IF($D172=0,0,'Input | Exit Fees'!K$121) -> 0 | H175: =IF($D172=0,0,'Input | Exit Fees'!L$121) -> 0 | I175: =IF($D172=0,0,'Input | Exit Fees'!M$121) -> 0 | J175: =IF($D172=0,0,'Input | Exit Fees'!N$121) -> 0 | K175: =IF($D172=0,0,'Input | Exit Fees'!O$121) -> 0
E177: =IF($D172=0,"",E$123) ->  | F177: =IF(D172=0,0,'Input | Exit Fees'!G40) -> 0 | G177: =SUM(G173:G176) -> 0 | H177: =SUM(H173:H176) -> 0 | I177: 0 | J177: 0 | K177: 0

Sheet Output | Exit Fee price caps
B1: ='Title Page'!B8&" v"&'Title Page'!$C$10 -> Final Standardised Metering Pricing Model v1.02 | M1: DNSP: | N1: =IF('Inputs | General'!$G$16="Price Cap","NOT USED",NSP) -> AusNet
B2: =MID(CELL("filename",A1),FIND("]",CELL("filename",A1))+1,255) -> Output | Exit Fee price caps | H2: Key: | I2: Input | J2: External Link | K2: Internal Link | L2: Draft Decision | M2: Revised Proposal
C5: Applicable Exit Fees Price Caps
H7: Base Year | I7: Regulatory Period
D8: Exit Fee Name | F8: Units | G8: Basis | H8: =LEFT(I8,4)-1&"-"&RIGHT(I8,2)-1 -> 2025-26 | I8: =FPFirstYear -> 2026-27 | J8: =LEFT(I8,4)+1&"-"&RIGHT(I8,2)+1 -> 2027-28 | K8: =LEFT(J8,4)+1&"-"&RIGHT(J8,2)+1 -> 2028-29 | L8: 2029-30 | M8: 2030-31
D9: =D25 -> Single phase single element | F9: $dollars | G9: nominal | H9: =ROUND(H25,2) -> 315.21 | I9: =IF(I25=0,0,ROUND(H9*(1-I45)*(1+I$41),2)) -> 208.39 | J9: 192.25 | K9: 204.88 | L9: 236.1 | M9: 276.87
D10: =D26 -> Single phase two element with contactor | F10: $dollars | G10: nominal | H10: 315.21 | I10: 214.15 | J10: 197.5 | K10: 210.92 | L10: 243.87 | M10: 286.75
D11: Multiphase | F11: $dollars | G11: nominal | H11: =ROUND(H27,2) -> 315.22 | I11: =IF(I27=0,0,ROUND(H11*(1-I47)*(1+I$41),2)) -> 237.6 | J11: =IF(J27=0,0,ROUND(I11*(1-J47)*(1+J$41),2)) -> 218.87 | K11: 235.49 | L11: 275.48 | M11: 326.95
D12: Multiphase CT connected | F12: $dollars | G12: nominal | H12: 315.22 | I12: 387.83 | J12: 353.97 | K12: 388.96 | L12: 470.75 | M12: 572.44
D13: 0 | F13: $dollars | G13: nominal | H13: 0 | I13: 0 | J13: 0 | K13: 0 | L13: 0 | M13: 0
D14: 0 | F14: $dollars | G14: nominal | H14: 0 | I14: 0 | J14: 0 | K14: 0 | L14: 0 | M14: 0
D15: 0 | F15: $dollars | G15: nominal | H15: 0 | I15: 0 | J15: 0 | K15: 0 | L15: 0 | M15: 0
D16: 0 | F16: $dollars | G16: nominal | H16: 0 | I16: 0 | J16: 0 | K16: 0 | L16: 0 | M16: 0
D17: 0 | F17: $dollars | G17: nominal | H17: 0 | I17: 0 | J17: 0 | K17: 0 | L17: 0 | M17: 0
D18: 0 | F18: $dollars | G18: nominal | H18: 0 | I18: 0 | J18: 0 | K18: 0 | L18: 0 | M18: 0
C21: Exit Fees Per Meter
H23: Base Year | I23: Regulatory Period
D24: Exit Fee Name | F24: Units | G24: Basis | H24: =LEFT(I24,4)-1&"-"&RIGHT(I24,2)-1 -> 2025-26 | I24: =FPFirstYear -> 2026-27 | J24: =LEFT(I24,4)+1&"-"&RIGHT(I24,2)+1 -> 2027-28 | K24: =LEFT(J24,4)+1&"-"&RIGHT(J24,2)+1 -> 2028-29 | L24: 2029-30 | M24: 2030-31
D25: ='Input | Exit Fees'!$D31 -> Single phase single element | F25: $dollars | G25: nominal | H25: =INDEX(Table3[2025–26],MATCH('Output | Exit Fee price caps'!$D25,Table3[[Exit Fee Name]:[Exit Fee Name]],0)+5) -> 315.21 | I25: =INDEX(Table3[2026–27],MATCH('Output | Exit Fee price caps'!$D25,Table3[[Exit Fee Name]:[Exit Fee Name]],0)+5) -> 208.3920889 | J25: =INDEX(Table3[2027–28],MATCH('Output | Exit Fee price caps'!$D25,Table3[[Exit Fee Name]:[Exit Fee Name]],0)+5) -> 192.2524592 | K25: =INDEX(Table3[2028–29],MATCH('Output | Exit Fee price caps'!$D25,Table3[[Exit Fee Name]:[Exit Fee Name]],0)+5) -> 204.8854556 | L25: =INDEX(Table3[2029–30],MATCH('Output | Exit Fee price caps'!$D25,Table3[[Exit Fee Name]:[Exit Fee Name]],0)+5) -> 236.1016105 | M25: =INDEX(Table3[2030–31],MATCH('Output | Exit Fee price caps'!$D25,Table3[[Exit Fee Name]:[Exit Fee Name]],0)+5) -> 276.8743828
D26: ='Input | Exit Fees'!$D32 -> Single phase two element with contactor | F26: $dollars | G26: nominal | H26: =INDEX(Table3[2025–26],MATCH('Output | Exit Fee price caps'!$D26,Table3[[Exit Fee Name]:[Exit Fee Name]],0)+5) -> 315.21 | I26: =INDEX(Table3[2026–27],MATCH('Output | Exit Fee price caps'!$D26,Table3[[Exit Fee Name]:[Exit Fee Name]],0)+5) -> 214.1488858 | J26: =INDEX(Table3[2027–28],MATCH('Output | Exit Fee price caps'!$D26,Table3[[Exit Fee Name]:[Exit Fee Name]],0)+5) -> 197.4995445 | K26: =INDEX(Table3[2028–29],MATCH('Output | Exit Fee price caps'!$D26,Table3[[Exit Fee Name]:[Exit Fee Name]],0)+5) -> 210.9185362 | L26: =INDEX(Table3[2029–30],MATCH('Output | Exit Fee price caps'!$D26,Table3[[Exit Fee Name]:[Exit Fee Name]],0)+5) -> 243.8642156 | M26: =INDEX(Table3[2030–31],MATCH('Output | Exit Fee price caps'!$D26,Table3[[Exit Fee Name]:[Exit Fee Name]],0)+5) -> 286.7449914
D27: ='Input | Exit Fees'!$D33 -> Multiphase | F27: $dollars | G27: nominal | H27: =INDEX(Table3[2025–26],MATCH('Output | Exit Fee price caps'!$D27,Table3[[Exit Fee Name]:[Exit Fee Name]],0)+5) -> 315.22 | I27: =INDEX(Table3[2026–27],MATCH('Output | Exit Fee price caps'!$D27,Table3[[Exit Fee Name]:[Exit Fee Name]],0)+5) -> 237.5967215 | J27: =INDEX(Table3[2027–28],MATCH('Output | Exit Fee price caps'!$D27,Table3[[Exit Fee Name]:[Exit Fee Name]],0)+5) -> 218.8712894 | K27: =INDEX(Table3[2028–29],MATCH('Output | Exit Fee price caps'!$D27,Table3[[Exit Fee Name]:[Exit Fee Name]],0)+5) -> 235.4916948 | L27: =INDEX(Table3[2029–30],MATCH('Output | Exit Fee price caps'!$D27,Table3[[Exit Fee Name]:[Exit Fee Name]],0)+5) -> 275.4818487 | M27: =INDEX(Table3[2030–31],MATCH('Output | Exit Fee price caps'!$D27,Table3[[Exit Fee Name]:[Exit Fee Name]],0)+5) -> 326.9486696
D28: ='Input | Exit Fees'!$D34 -> Multiphase CT connected | F28: $dollars | G28: nominal | H28: =INDEX(Table3[2025–26],MATCH('Output | Exit Fee price caps'!$D28,Table3[[Exit Fee Name]:[Exit Fee Name]],0)+5) -> 315.22 | I28: =INDEX(Table3[2026–27],MATCH('Output | Exit Fee price caps'!$D28,Table3[[Exit Fee Name]:[Exit Fee Name]],0)+5) -> 387.8275972 | J28: =INDEX(Table3[2027–28],MATCH('Output | Exit Fee price caps'!$D28,Table3[[Exit Fee Name]:[Exit Fee Name]],0)+5) -> 353.9651831 | K28: =INDEX(Table3[2028–29],MATCH('Output | Exit Fee price caps'!$D28,Table3[[Exit Fee Name]:[Exit Fee Name]],0)+5) -> 388.9538034 | L28: =INDEX(Table3[2029–30],MATCH('Output | Exit Fee price caps'!$D28,Table3[[Exit Fee Name]:[Exit Fee Name]],0)+5) -> 470.740257 | M28: =INDEX(Table3[2030–31],MATCH('Output | Exit Fee price caps'!$D28,Table3[[Exit Fee Name]:[Exit Fee Name]],0)+5) -> 572.4246843
D29: ='Input | Exit Fees'!$D35 -> 0 | F29: $dollars | G29: nominal | H29: =INDEX(Table3[2025–26],MATCH('Output | Exit Fee price caps'!$D29,Table3[[Exit Fee Name]:[Exit Fee Name]],0)+5) -> 0 | I29: =INDEX(Table3[2026–27],MATCH('Output | Exit Fee price caps'!$D29,Table3[[Exit Fee Name]:[Exit Fee Name]],0)+5) -> 0 | J29: =INDEX(Table3[2027–28],MATCH('Output | Exit Fee price caps'!$D29,Table3[[Exit Fee Name]:[Exit Fee Name]],0)+5) -> 0 | K29: =INDEX(Table3[2028–29],MATCH('Output | Exit Fee price caps'!$D29,Table3[[Exit Fee Name]:[Exit Fee Name]],0)+5) -> 0 | L29: =INDEX(Table3[2029–30],MATCH('Output | Exit Fee price caps'!$D29,Table3[[Exit Fee Name]:[Exit Fee Name]],0)+5) -> 0 | M29: =INDEX(Table3[2030–31],MATCH('Output | Exit Fee price caps'!$D29,Table3[[Exit Fee Name]:[Exit Fee Name]],0)+5) -> 0
D30: ='Input | Exit Fees'!$D36 -> 0 | F30: $dollars | G30: nominal | H30: =INDEX(Table3[2025–26],MATCH('Output | Exit Fee price caps'!$D30,Table3[[Exit Fee Name]:[Exit Fee Name]],0)+5) -> 0 | I30: =INDEX(Table3[2026–27],MATCH('Output | Exit Fee price caps'!$D30,Table3[[Exit Fee Name]:[Exit Fee Name]],0)+5) -> 0 | J30: =INDEX(Table3[2027–28],MATCH('Output | Exit Fee price caps'!$D30,Table3[[Exit Fee Name]:[Exit Fee Name]],0)+5) -> 0 | K30: =INDEX(Table3[2028–29],MATCH('Output | Exit Fee price caps'!$D30,Table3[[Exit Fee Name]:[Exit Fee Name]],0)+5) -> 0 | L30: =INDEX(Table3[2029–30],MATCH('Output | Exit Fee price caps'!$D30,Table3[[Exit Fee Name]:[Exit Fee Name]],0)+5) -> 0 | M30: =INDEX(Table3[2030–31],MATCH('Output | Exit Fee price caps'!$D30,Table3[[Exit Fee Name]:[Exit Fee Name]],0)+5) -> 0
D31: ='Input | Exit Fees'!$D37 -> 0 | F31: $dollars | G31: nominal | H31: =INDEX(Table3[2025–26],MATCH('Output | Exit Fee price caps'!$D31,Table3[[Exit Fee Name]:[Exit Fee Name]],0)+5) -> 0 | I31: =INDEX(Table3[2026–27],MATCH('Output | Exit Fee price caps'!$D31,Table3[[Exit Fee Name]:[Exit Fee Name]],0)+5) -> 0 | J31: =INDEX(Table3[2027–28],MATCH('Output | Exit Fee price caps'!$D31,Table3[[Exit Fee Name]:[Exit Fee Name]],0)+5) -> 0 | K31: =INDEX(Table3[2028–29],MATCH('Output | Exit Fee price caps'!$D31,Table3[[Exit Fee Name]:[Exit Fee Name]],0)+5) -> 0 | L31: =INDEX(Table3[2029–30],MATCH('Output | Exit Fee price caps'!$D31,Table3[[Exit Fee Name]:[Exit Fee Name]],0)+5) -> 0 | M31: =INDEX(Table3[2030–31],MATCH('Output | Exit Fee price caps'!$D31,Table3[[Exit Fee Name]:[Exit Fee Name]],0)+5) -> 0
D32: ='Input | Exit Fees'!$D38 -> 0 | F32: $dollars | G32: nominal | H32: =INDEX(Table3[2025–26],MATCH('Output | Exit Fee price caps'!$D32,Table3[[Exit Fee Name]:[Exit Fee Name]],0)+5) -> 0 | I32: =INDEX(Table3[2026–27],MATCH('Output | Exit Fee price caps'!$D32,Table3[[Exit Fee Name]:[Exit Fee Name]],0)+5) -> 0 | J32: =INDEX(Table3[2027–28],MATCH('Output | Exit Fee price caps'!$D32,Table3[[Exit Fee Name]:[Exit Fee Name]],0)+5) -> 0 | K32: =INDEX(Table3[2028–29],MATCH('Output | Exit Fee price caps'!$D32,Table3[[Exit Fee Name]:[Exit Fee Name]],0)+5) -> 0 | L32: =INDEX(Table3[2029–30],MATCH('Output | Exit Fee price caps'!$D32,Table3[[Exit Fee Name]:[Exit Fee Name]],0)+5) -> 0 | M32: =INDEX(Table3[2030–31],MATCH('Output | Exit Fee price caps'!$D32,Table3[[Exit Fee Name]:[Exit Fee Name]],0)+5) -> 0
D33: ='Input | Exit Fees'!$D39 -> 0 | F33: $dollars | G33: nominal | H33: =INDEX(Table3[2025–26],MATCH('Output | Exit Fee price caps'!$D33,Table3[[Exit Fee Name]:[Exit Fee Name]],0)+5) -> 0 | I33: =INDEX(Table3[2026–27],MATCH('Output | Exit Fee price caps'!$D33,Table3[[Exit Fee Name]:[Exit Fee Name]],0)+5) -> 0 | J33: =INDEX(Table3[2027–28],MATCH('Output | Exit Fee price caps'!$D33,Table3[[Exit Fee Name]:[Exit Fee Name]],0)+5) -> 0 | K33: =INDEX(Table3[2028–29],MATCH('Output | Exit Fee price caps'!$D33,Table3[[Exit Fee Name]:[Exit Fee Name]],0)+5) -> 0 | L33: =INDEX(Table3[2029–30],MATCH('Output | Exit Fee price caps'!$D33,Table3[[Exit Fee Name]:[Exit Fee Name]],0)+5) -> 0 | M33: =INDEX(Table3[2030–31],MATCH('Output | Exit Fee price caps'!$D33,Table3[[Exit Fee Name]:[Exit Fee Name]],0)+5) -> 0
D34: ='Input | Exit Fees'!$D40 -> 0 | F34: $dollars | G34: nominal | H34: =INDEX(Table3[2025–26],MATCH('Output | Exit Fee price caps'!$D34,Table3[[Exit Fee Name]:[Exit Fee Name]],0)+5) -> 0 | I34: =INDEX(Table3[2026–27],MATCH('Output | Exit Fee price caps'!$D34,Table3[[Exit Fee Name]:[Exit Fee Name]],0)+5) -> 0 | J34: =INDEX(Table3[2027–28],MATCH('Output | Exit Fee price caps'!$D34,Table3[[Exit Fee Name]:[Exit Fee Name]],0)+5) -> 0 | K34: =INDEX(Table3[2028–29],MATCH('Output | Exit Fee price caps'!$D34,Table3[[Exit Fee Name]:[Exit Fee Name]],0)+5) -> 0 | L34: =INDEX(Table3[2029–30],MATCH('Output | Exit Fee price caps'!$D34,Table3[[Exit Fee Name]:[Exit Fee Name]],0)+5) -> 0 | M34: =INDEX(Table3[2030–31],MATCH('Output | Exit Fee price caps'!$D34,Table3[[Exit Fee Name]:[Exit Fee Name]],0)+5) -> 0
C39: Xfactors
D41: CPI | F41: % | I41: ='Inputs | General'!J26 -> 0.02599975634 | J41: ='Inputs | General'!K26 -> 0.02599975634 | K41: ='Inputs | General'!L26 -> 0.02599975634 | L41: ='Inputs | General'!M26 -> 0.02599975634 | M41: ='Inputs | General'!N26 -> 0.02599975634
I43: =FPFirstYear -> 2026-27 | J43: =LEFT(I43,4)+1&"-"&RIGHT(I43,2)+1 -> 2027-28 | K43: =LEFT(J43,4)+1&"-"&RIGHT(J43,2)+1 -> 2028-29 | L43: =LEFT(K43,4)+1&"-"&RIGHT(K43,2)+1 -> 2029-30 | M43: =LEFT(L43,4)+1&"-"&RIGHT(L43,2)+1 -> 2030-31
D44: Exit Fee Name | F44: Units | I44: P_0 | J44: X_02 | K44: X_03 | L44: X_04 | M44: X_05
D45: ='Input | Exit Fees'!$D31 -> Single phase single element | F45: % | I45: =IFERROR(-1*(((I25/H25)/(1+I$41)-1)),"") -> 0.3556319722 | J45: 0.1008266676 | K45: -0.0387043928 | L45: -0.1231572427 | M45: -0.1429745714
D46: ='Input | Exit Fees'!$D32 -> Single phase two element with contactor | F46: % | I46: 0.3378314124 | J46: 0.1011173008 | K46: -0.04088174643 | L46: -0.1269017956 | M46: -0.1460419266
D47: ='Input | Exit Fees'!$D33 -> Multiphase | F47: % | I47: 0.2653517957 | J47: 0.1021555651 | K47: -0.04867168323 | L47: -0.1401713814 | M47: -0.1567495203
D48: ='Input | Exit Fees'!$D34 -> Multiphase CT connected | F48: % | I48: -0.199161529 | J48: 0.1104413673 | K48: -0.07100184551 | L48: -0.17960352 | M48: -0.1851948497
D49: ='Input | Exit Fees'!$D35 -> 0 | F49: %
D50: ='Input | Exit Fees'!$D36 -> 0 | F50: %
D51: ='Input | Exit Fees'!$D37 -> 0 | F51: %
D52: ='Input | Exit Fees'!$D38 -> 0 | F52: %
D53: ='Input | Exit Fees'!$D39 -> 0 | F53: %
D54: ='Input | Exit Fees'!$D40 -> 0 | F54: %
C58: Cost Metric
H60: Base Year | I60: Regulatory Period
D61: Exit Fee Per Meter | F61: Units | G61: Basis | H61: =LEFT(I61,4)-1&"-"&RIGHT(I61,2)-1 -> 2025-26 | I61: =FPFirstYear -> 2026-27 | J61: =LEFT(I61,4)+1&"-"&RIGHT(I61,2)+1 -> 2027-28 | K61: =LEFT(J61,4)+1&"-"&RIGHT(J61,2)+1 -> 2028-29 | L61: 2029-30 | M61: 2030-31
D62: Volume Weighted Average Exit Fee - Per Meter | F62: $dollars | G62: nominal | H62: =SUMPRODUCT(H$25:H$34,'Calc | Exit Fees'!J$31:J$40)/'Calc | Exit Fees'!J$41 -> 315.2119127 | I62: =SUMPRODUCT(I$25:I$34,'Calc | Exit Fees'!K$31:K$40)/'Calc | Exit Fees'!K$41 -> 215.8256331 | J62: =SUMPRODUCT(J$25:J$34,'Calc | Exit Fees'!L$31:L$40)/'Calc | Exit Fees'!L$41 -> 199.277494 | K62: =SUMPRODUCT(K$25:K$34,'Calc | Exit Fees'!M$31:M$40)/'Calc | Exit Fees'!M$41 -> 213.3032283 | L62: =SUMPRODUCT(L$25:L$34,'Calc | Exit Fees'!N$31:N$40)/'Calc | Exit Fees'!N$41 -> 247.4348293 | M62: =SUMPRODUCT(M$25:M$34,'Calc | Exit Fees'!O$31:O$40)/'Calc | Exit Fees'!O$41 -> 292.0073767

Sheet LUTs and Dropdowns
B1: ='Title Page'!B8&" v"&'Title Page'!$C$10 -> Final Standardised Metering Pricing Model v1.02
B2: =MID(CELL("filename",A1),FIND("]",CELL("filename",A1))+1,255) -> LUTs and Dropdowns
B14: Model Use
B15: Price Cap
B16: Exit Fees (Vic)
B17: Show All Sheets
B20: Admin Charges
B21: Entered
B22: Calc-Fixed
B23: Calc-Hourly
